Workbook

Sheet SkillConfig
B1: Id | C1: Name | D1: Type | E1: ShortDesc | F1: Desc | G1: DescValue | H1: DescColor | I1: Icon | J1: NoUse | K1: NoUse
B2: int | C2: string | D2: int | E2: string | F2: string | G2: mut,string#string,1 | H2: mut,int#int,1 | I2: int | J2: boolean | K2: boolean
B3: 2 | C3: 3 | D3: 2 | E3: 3 | F3: 3 | G3: 3 | H3: 3 | I3: 3 | J3: 0 | K3: 0
B4: 技能id | C4: 技能名称 | D4: 技能类型 | E4: 短描述 | F4: 技能描述 | G4: 描述参数 | H4: 参数颜色 | I4: 技能图标 关联资源表 | J4: 校验 | K4: 校验
A5: 默认值 | B5: 0 | I5: 0
A6: 正确性校对
A7: 校对值
B8: 100001 | C8: 悲鸣 | D8: 1 | E8: 弱者就该被淘汰！ | F8: 对随机一名敌人造成伤害，附加流血效果。 | I8: 238011
B9: 100002 | C9: 鬼蝉 | D9: 2 | E9: 死吧！ | F9: 对随机三名敌人造成伤害。 | I9: 224021
B10: 1000111 | C10: 寒冰刺 | D10: 1 | E10: 冰寒刺骨！ | F10: 挥舞双斧，对对位敌人造成%s水属性物理伤害，%s概率%s敌方全体，持续%s秒。 | G10: 220%#80%#嘲讽#10 | H10: 2#0#1#0 | I10: 203011 | J10: =IF((LEN(F10)-LEN(SUBSTITUTE(F10,"%","")))=(LEN(G10)-LEN(SUBSTITUTE(G10,"#","")))+1,"",FALSE) ->  | K10: =IF((LEN(G10)-LEN(SUBSTITUTE(G10,"#","")))=(LEN(H10)-LEN(SUBSTITUTE(H10,"#",""))),"",FALSE) -> 
B11: 1000112 | C11: 寒冰刺 | D11: 1 | E11: 冰寒刺骨！ | F11: 挥舞双斧，对对位敌人造成%s水属性物理伤害，%s概率%s敌方全体，持续%s秒。 | G11: 250%#80%#嘲讽#10 | H11: 2#0#1#0 | I11: 203011 | J11: =IF((LEN(F11)-LEN(SUBSTITUTE(F11,"%","")))=(LEN(G11)-LEN(SUBSTITUTE(G11,"#","")))+1,"",FALSE) ->  | K11: =IF((LEN(G11)-LEN(SUBSTITUTE(G11,"#","")))=(LEN(H11)-LEN(SUBSTITUTE(H11,"#",""))),"",FALSE) -> 
B12: 1000113 | C12: 寒冰刺 | D12: 1 | E12: 冰寒刺骨！ | F12: 挥舞双斧，对对位敌人造成%s水属性物理伤害，%s概率%s敌方全体，持续%s秒。 | G12: 360%#80%#嘲讽#10 | H12: 2#0#1#0 | I12: 203011
B13: 1000114 | C13: 寒冰刺 | D13: 1 | E13: 冰寒刺骨！ | F13: 挥舞双斧，对对位敌人造成%s水属性物理伤害，%s概率%s敌方全体，持续%s秒。 | G13: 430%#80%#嘲讽#10 | H13: 2#0#1#0 | I13: 203011
B14: 1000115 | C14: 寒冰刺 | D14: 1 | E14: 冰寒刺骨！ | F14: 挥舞双斧，对对位敌人造成%s水属性物理伤害，%s概率%s敌方全体，持续%s秒。 | G14: 540%#80%#嘲讽#10 | H14: 2#0#1#0 | I14: 203011
B15: 1000121 | C15: 裂山贯云 | D15: 2 | I15: 203021 | J15: FALSE
B16: 1000122 | C16: 裂山贯云 | D16: 2 | I16: 203021 | J16: FALSE
B17: 1000123 | C17: 裂山贯云 | D17: 2 | I17: 203021 | J17: FALSE
B18: 1000124 | C18: 裂山贯云 | D18: 2 | I18: 203021 | J18: FALSE
B19: 1000125 | C19: 裂山贯云 | D19: 2 | I19: 203021 | J19: FALSE
B20: 1000211 | C20: 拽刀 | D20: 1 | E20: 不要放松警惕！ | F20: 斩出一道刀罡，对对位及相邻敌人造成%s风属性物理伤害，同时%s概率%s目标，持续%s秒。为自身施加%s印记，持续%s秒，期间受到控制效果回复自身攻击%s的生命值。 | G20: 220%#60%#嘲讽#10#甘霖#5#140% | H20: 2#1#0#0#0#1#0 | I20: 201011
B21: 1000212 | C21: 拽刀 | D21: 1 | E21: 不要放松警惕！ | F21: 斩出一道刀罡，对对位及相邻敌人造成%s风属性物理伤害，同时%s概率%s目标，持续%s秒。为自身施加%s印记，持续%s秒，期间受到控制效果回复自身攻击%s的生命值。 | G21: 250%#60%#嘲讽#10#甘霖#5#160% | H21: 2#1#0#0#0#1#0 | I21: 201011
B22: 1000213 | C22: 拽刀 | D22: 1 | E22: 不要放松警惕！ | F22: 斩出一道刀罡，对对位及相邻敌人造成%s风属性物理伤害，同时%s概率%s目标，持续%s秒。为自身施加%s印记，持续%s秒，期间受到控制效果回复自身攻击%s的生命值。 | G22: 360%#60%#嘲讽#10#甘霖#5#230% | H22: 2#1#0#0#0#1#0 | I22: 201011
B23: 1000214 | C23: 拽刀 | D23: 1 | E23: 不要放松警惕！ | F23: 斩出一道刀罡，对对位及相邻敌人造成%s风属性物理伤害，同时%s概率%s目标，持续%s秒。为自身施加%s印记，持续%s秒，期间受到控制效果回复自身攻击%s的生命值。 | G23: 430%#60%#嘲讽#10#甘霖#5#270% | H23: 2#1#0#0#0#1#0 | I23: 201011
B24: 1000215 | C24: 拽刀 | D24: 1 | E24: 不要放松警惕！ | F24: 斩出一道刀罡，对对位及相邻敌人造成%s风属性物理伤害，同时%s概率%s目标，持续%s秒。为自身施加%s印记，持续%s秒，期间受到控制效果回复自身攻击%s的生命值。 | G24: 540%#60%#嘲讽#10#甘霖#5#340% | H24: 2#1#0#0#0#1#0 | I24: 201011
B25: 1000221 | C25: 风之庇佑 | D25: 2 | E25: 号令疾风，联结护佑！ | F25: 对对位敌人造成%s风属性物理伤害，召唤风之庇佑，获得%s伤害减免，同时为相邻队友分担%s伤害，持续%s秒。 | G25: 340%#40%#40%#6 | H25: 2#0#0#0 | I25: 201021
B26: 1000222 | C26: 风之庇佑 | D26: 2 | E26: 号令疾风，联结护佑！ | F26: 对对位敌人造成%s风属性物理伤害，召唤风之庇佑，获得%s伤害减免，同时为相邻队友分担%s伤害，持续%s秒。 | G26: 380%#40%#40%#6 | H26: 2#0#0#0 | I26: 201021
B27: 1000223 | C27: 风之庇佑 | D27: 2 | E27: 号令疾风，联结护佑！ | F27: 对对位敌人造成%s风属性物理伤害，召唤风之庇佑，获得%s伤害减免，同时为相邻队友分担%s伤害，持续%s秒。 | G27: 430%#40%#50%#6 | H27: 2#0#0#0 | I27: 201021
B28: 1000224 | C28: 风之庇佑 | D28: 2 | E28: 号令疾风，联结护佑！ | F28: 对对位敌人造成%s风属性物理伤害，召唤风之庇佑，获得%s伤害减免，同时为相邻队友分担%s伤害，持续%s秒。 | G28: 580%#40%#50%#6 | H28: 2#0#0#0 | I28: 201021
B29: 1000225 | C29: 风之庇佑 | D29: 2 | E29: 号令疾风，联结护佑！ | F29: 对对位敌人造成%s风属性物理伤害，召唤风之庇佑，获得%s伤害减免，同时为相邻队友分担%s伤害，持续%s秒。 | G29: 720%#60%#50%#6 | H29: 2#0#0#0 | I29: 201021
B30: 1000311 | C30: 狂斩 | D30: 1 | E30: 挥刀，就得用力！ | F30: 挥舞大刀，斩出一道虎形刀罡跳向敌阵，对对位敌人造成%s地属性物理伤害，%s概率%s全体敌人，持续%s秒。 | G30: 220%#60%#嘲讽#10 | H30: 2#0#1#0 | I30: 242011
B31: 1000312 | C31: 狂斩 | D31: 1 | E31: 挥刀，就得用力！ | F31: 挥舞大刀，斩出一道虎形刀罡跳向敌阵，对对位敌人造成%s地属性物理伤害，%s概率%s全体敌人，持续%s秒。 | G31: 250%#60%#嘲讽#10 | H31: 2#0#1#0 | I31: 242011
B32: 1000313 | C32: 狂斩 | D32: 1 | E32: 挥刀，就得用力！ | F32: 挥舞大刀，斩出一道虎形刀罡跳向敌阵，对对位敌人造成%s地属性物理伤害，%s概率%s全体敌人，持续%s秒。 | G32: 360%#60%#嘲讽#10 | H32: 2#0#1#0 | I32: 242011
B33: 1000314 | C33: 狂斩 | D33: 1 | E33: 挥刀，就得用力！ | F33: 挥舞大刀，斩出一道虎形刀罡跳向敌阵，对对位敌人造成%s地属性物理伤害，%s概率%s全体敌人，持续%s秒。 | G33: 430%#60%#嘲讽#10 | H33: 2#0#1#0 | I33: 242011
B34: 1000315 | C34: 狂斩 | D34: 1 | E34: 挥刀，就得用力！ | F34: 挥舞大刀，斩出一道虎形刀罡跳向敌阵，对对位敌人造成%s地属性物理伤害，%s概率%s全体敌人，持续%s秒。 | G34: 540%#60%#嘲讽#10 | H34: 2#0#1#0 | I34: 242011
B35: 1000321 | C35: 惊风斩 | D35: 2 | I35: 242021 | J35: FALSE
B36: 1000322 | C36: 惊风斩 | D36: 2 | I36: 242021 | J36: FALSE
B37: 1000323 | C37: 惊风斩 | D37: 2 | I37: 242021 | J37: FALSE
B38: 1000324 | C38: 惊风斩 | D38: 2 | I38: 242021 | J38: FALSE
B39: 1000325 | C39: 惊风斩 | D39: 2 | I39: 242021 | J39: FALSE
B40: 1000411 | C40: 秋波 | D40: 1 | E40: 我知道你需要我。 | F40: 妩媚秋波，造成%s风属性魔法单体伤害，为血量最低的队友提供在%s秒内的%s次气血回复，每次回复量为攻击的%s，并且驱散%s个减益效果。 | G40: 230%#6#2#180%#1 | H40: 2#0#0#0#0 | I40: 219011
B41: 1000412 | C41: 秋波 | D41: 1 | E41: 我知道你需要我。 | F41: 妩媚秋波，造成%s风属性魔法单体伤害，为血量最低的队友提供在%s秒内的%s次气血回复，每次回复量为攻击的%s，并且驱散%s个减益效果。 | G41: 260%#6#2#210%#1 | H41: 2#0#0#0#0 | I41: 219011
B42: 1000413 | C42: 秋波 | D42: 1 | E42: 我知道你需要我。 | F42: 妩媚秋波，造成%s风属性魔法单体伤害，为血量最低的队友提供在%s秒内的%s次气血回复，每次回复量为攻击的%s，并且驱散%s个减益效果。 | G42: 380%#6#2#300%#1 | H42: 2#0#0#0#0 | I42: 219011
B43: 1000414 | C43: 秋波 | D43: 1 | E43: 我知道你需要我。 | F43: 妩媚秋波，造成%s风属性魔法单体伤害，为血量最低的队友提供在%s秒内的%s次气血回复，每次回复量为攻击的%s，并且驱散%s个减益效果。 | G43: 480%#6#2#360%#1 | H43: 2#0#0#0#0 | I43: 219011
B44: 1000415 | C44: 秋波 | D44: 1 | E44: 我知道你需要我。 | F44: 妩媚秋波，造成%s风属性魔法单体伤害，为血量最低的队友提供在%s秒内的%s次气血回复，每次回复量为攻击的%s，并且驱散%s个减益效果。 | G44: 560%#6#2#450%#2 | H44: 2#0#0#0#0 | I44: 219011
B45: 1000421 | C45: 香云绕 | D45: 2 | E45: 残风袅袅香云绕。 | F45: 显化狐狸真身越向敌阵，造成%s风属性魔法全体伤害，为已方全体回复攻击%s的气血，降低敌方全体%s施法率，持续%s秒。 | G45: 350%#280%#20%#12 | H45: 2#0#0#0 | I45: 219021
B46: 1000422 | C46: 香云绕 | D46: 2 | E46: 残风袅袅香云绕。 | F46: 显化狐狸真身越向敌阵，造成%s风属性魔法全体伤害，为已方全体回复攻击%s的气血，降低敌方全体%s施法率，持续%s秒。 | G46: 400%#320%#20%#12 | H46: 2#0#0#0 | I46: 219021
B47: 1000423 | C47: 香云绕 | D47: 2 | E47: 残风袅袅香云绕。 | F47: 显化狐狸真身越向敌阵，造成%s风属性魔法全体伤害，为已方全体回复攻击%s的气血，降低敌方全体%s施法率，持续%s秒。 | G47: 450%#360%#20%#12 | H47: 2#0#0#0 | I47: 219021
B48: 1000424 | C48: 香云绕 | D48: 2 | E48: 残风袅袅香云绕。 | F48: 显化狐狸真身越向敌阵，造成%s风属性魔法全体伤害，为已方全体回复攻击%s的气血，降低敌方全体%s施法率，持续%s秒。 | G48: 600%#480%#30%#12 | H48: 2#0#0#0 | I48: 219021
B49: 1000425 | C49: 香云绕 | D49: 2 | E49: 残风袅袅香云绕。 | F49: 显化狐狸真身越向敌阵，造成%s风属性魔法全体伤害，为已方全体回复攻击%s的气血，降低敌方全体%s施法率，持续%s秒。 | G49: 750%#600%#40%#12 | H49: 2#0#0#0 | I49: 219021
B50: 1000511 | C50: 破风斩 | D50: 1 | E50: 哼！颤栗吧！ | F50: 拔刀出鞘，刀光一闪，对对位及相邻敌人造成%s地属性魔法伤害，对被眩晕的目标造成三倍伤害。 | G50: 120% | H50: 2 | I50: 206011
B51: 1000512 | C51: 破风斩 | D51: 1 | E51: 哼！颤栗吧！ | F51: 拔刀出鞘，刀光一闪，对对位及相邻敌人造成%s地属性魔法伤害，对被眩晕的目标造成三倍伤害。 | G51: 140% | H51: 2 | I51: 206011
B52: 1000513 | C52: 破风斩 | D52: 1 | E52: 哼！颤栗吧！ | F52: 拔刀出鞘，刀光一闪，对对位及相邻敌人造成%s地属性魔法伤害，对被眩晕的目标造成三倍伤害。 | G52: 200% | H52: 2 | I52: 206011
B53: 1000514 | C53: 破风斩 | D53: 1 | E53: 哼！颤栗吧！ | F53: 拔刀出鞘，刀光一闪，对对位及相邻敌人造成%s地属性魔法伤害，对被眩晕的目标造成三倍伤害。 | G53: 240% | H53: 2 | I53: 206011
B54: 1000515 | C54: 破风斩 | D54: 1 | E54: 哼！颤栗吧！ | F54: 拔刀出鞘，刀光一闪，对对位及相邻敌人造成%s地属性魔法伤害，对被眩晕的目标造成三倍伤害。 | G54: 300% | H54: 2 | I54: 206011
B55: 1000521 | C55: 疾风斩 | D55: 2 | E55: 见过比风还快的刀么？ | F55: 拔刀快斩，多道刀光叠加在一起，对敌方全体造成%s地属性魔法伤害，对被眩晕的目标造成三倍伤害。 | G55: 210% | H55: 2 | I55: 206021
B56: 1000522 | C56: 疾风斩 | D56: 2 | E56: 见过比风还快的刀么？ | F56: 拔刀快斩，多道刀光叠加在一起，对敌方全体造成%s地属性魔法伤害，对被眩晕的目标造成三倍伤害。 | G56: 240% | H56: 2 | I56: 206021
B57: 1000523 | C57: 疾风斩 | D57: 2 | E57: 见过比风还快的刀么？ | F57: 拔刀快斩，多道刀光叠加在一起，对敌方全体造成%s地属性魔法伤害，对被眩晕的目标造成三倍伤害。 | G57: 270% | H57: 2 | I57: 206021
B58: 1000524 | C58: 疾风斩 | D58: 2 | E58: 见过比风还快的刀么？ | F58: 拔刀快斩，多道刀光叠加在一起，对敌方全体造成%s地属性魔法伤害，对被眩晕的目标造成三倍伤害。 | G58: 360% | H58: 2 | I58: 206021
B59: 1000525 | C59: 疾风斩 | D59: 2 | E59: 见过比风还快的刀么？ | F59: 拔刀快斩，多道刀光叠加在一起，对敌方全体造成%s地属性魔法伤害，对被眩晕的目标造成三倍伤害。 | G59: 450% | H59: 2 | I59: 206021
B60: 1000611 | C60: 火拳 | D60: 1 | E60: 带火的拳头打人更疼！ | F60: 挥舞燃火的拳头，对对位敌人造成%s火属性魔法伤害，同时%s敌人，在%s秒内造成%s次%s魔法伤害。使灼烧状态敌人受到的伤害增加%s，持续%s秒。 | G60: 120%#灼烧#10#5#20%#10%#10 | H60: 2#1#0#0#2#0#0 | I60: 218011 | K60: =IF((LEN(G60)-LEN(SUBSTITUTE(G60,"#","")))=(LEN(H60)-LEN(SUBSTITUTE(H60,"#",""))),"",FALSE) -> 
B61: 1000612 | C61: 火拳 | D61: 1 | E61: 带火的拳头打人更疼！ | F61: 挥舞燃火的拳头，对对位敌人造成%s火属性魔法伤害，同时%s敌人，在%s秒内造成%s次%s魔法伤害。使灼烧状态敌人受到的伤害增加%s，持续%s秒。 | G61: 140%#灼烧#10#5#20%#10%#10 | H61: 2#1#0#0#2#0#0 | I61: 218011
B62: 1000613 | C62: 火拳 | D62: 1 | E62: 带火的拳头打人更疼！ | F62: 挥舞燃火的拳头，对对位敌人造成%s火属性魔法伤害，同时%s敌人，在%s秒内造成%s次%s魔法伤害。使灼烧状态敌人受到的伤害增加%s，持续%s秒。 | G62: 200%#灼烧#10#5#20%#10%#10 | H62: 2#1#0#0#2#0#0 | I62: 218011
B63: 1000614 | C63: 火拳 | D63: 1 | E63: 带火的拳头打人更疼！ | F63: 挥舞燃火的拳头，对对位敌人造成%s火属性魔法伤害，同时%s敌人，在%s秒内造成%s次%s魔法伤害。使灼烧状态敌人受到的伤害增加%s，持续%s秒。 | G63: 240%#灼烧#10#5#20%#10%#10 | H63: 2#1#0#0#2#0#0 | I63: 218011
B64: 1000615 | C64: 火拳 | D64: 1 | E64: 带火的拳头打人更疼！ | F64: 挥舞燃火的拳头，对对位敌人造成%s火属性魔法伤害，同时%s敌人，在%s秒内造成%s次%s魔法伤害。使灼烧状态敌人受到的伤害增加%s，持续%s秒。 | G64: 300%#灼烧#10#5#20%#10%#10 | H64: 2#1#0#0#2#0#0 | I64: 218011
B65: 1000621 | C65: 炎皇降世 | D65: 2 | E65: 高温预警！ | F65: 掷出一个巨大火球，对随机3人造成%s火属性魔法伤害，同时%s敌人，在%s秒内造成%s次%s魔法伤害。使灼烧状态敌人受到的伤害增加%s，持续%s秒。 | G65: 230%#灼烧#10#5#30%#25%#10 | H65: 2#1#0#0#2#0#0 | I65: 218021
B66: 1000622 | C66: 炎皇降世 | D66: 2 | E66: 高温预警！ | F66: 掷出一个巨大火球，对随机3人造成%s火属性魔法伤害，同时%s敌人，在%s秒内造成%s次%s魔法伤害。使灼烧状态敌人受到的伤害增加%s，持续%s秒。 | G66: 260%#灼烧#10#5#30%#25%#10 | H66: 2#1#0#0#2#0#0 | I66: 218021
B67: 1000623 | C67: 炎皇降世 | D67: 2 | E67: 高温预警！ | F67: 掷出一个巨大火球，对随机3人造成%s火属性魔法伤害，同时%s敌人，在%s秒内造成%s次%s魔法伤害。使灼烧状态敌人受到的伤害增加%s，持续%s秒。 | G67: 300%#灼烧#10#5#30%#25%#10 | H67: 2#1#0#0#2#0#0 | I67: 218021
B68: 1000624 | C68: 炎皇降世 | D68: 2 | E68: 高温预警！ | F68: 掷出一个巨大火球，对随机3人造成%s火属性魔法伤害，同时%s敌人，在%s秒内造成%s次%s魔法伤害。使灼烧状态敌人受到的伤害增加%s，持续%s秒。 | G68: 400%#灼烧#10#5#30%#25%#10 | H68: 2#1#0#0#2#0#0 | I68: 218021
B69: 1000625 | C69: 炎皇降世 | D69: 2 | E69: 高温预警！ | F69: 掷出一个巨大火球，对随机3人造成%s火属性魔法伤害，同时%s敌人，在%s秒内造成%s次%s魔法伤害。使灼烧状态敌人受到的伤害增加%s，持续%s秒。 | G69: 500%#灼烧#10#5#30%#25%#10 | H69: 2#1#0#0#2#0#0 | I69: 218021
B70: 1000711 | C70: 水龙吟 | D70: 1 | E70: 龙吟袅袅，经久不散！ | F70: 召唤一条水龙从地底涌出攻击敌人，对对位敌人造成%s水属性魔法伤害，为自身提供自身攻击%s的护盾，持续%s秒。 | G70: 220%#150%#10 | H70: 2#0#0 | I70: 204011
B71: 1000712 | C71: 水龙吟 | D71: 1 | E71: 龙吟袅袅，经久不散！ | F71: 召唤一条水龙从地底涌出攻击敌人，对对位敌人造成%s水属性魔法伤害，为自身提供自身攻击%s的护盾，持续%s秒。 | G71: 250%#180%#10 | H71: 2#0#0 | I71: 204011
B72: 1000713 | C72: 水龙吟 | D72: 1 | E72: 龙吟袅袅，经久不散！ | F72: 召唤一条水龙从地底涌出攻击敌人，对对位敌人造成%s水属性魔法伤害，为自身提供自身攻击%s的护盾，持续%s秒。 | G72: 360%#250%#10 | H72: 2#0#0 | I72: 204011
B73: 1000714 | C73: 水龙吟 | D73: 1 | E73: 龙吟袅袅，经久不散！ | F73: 召唤一条水龙从地底涌出攻击敌人，对对位敌人造成%s水属性魔法伤害，为自身提供自身攻击%s的护盾，持续%s秒。 | G73: 430%#300%#10 | H73: 2#0#0 | I73: 204011
B74: 1000715 | C74: 水龙吟 | D74: 1 | E74: 龙吟袅袅，经久不散！ | F74: 召唤一条水龙从地底涌出攻击敌人，对对位敌人造成%s水属性魔法伤害，为自身提供自身攻击%s的护盾，持续%s秒。 | G74: 540%#380%#10 | H74: 2#0#0 | I74: 204011
B75: 1000721 | C75: 天咏诀 | D75: 2 | I75: 204021 | J75: =IF((LEN(F75)-LEN(SUBSTITUTE(F75,"%","")))=(LEN(G75)-LEN(SUBSTITUTE(G75,"#","")))+1,"",FALSE) -> FALSE | K75: =IF((LEN(G75)-LEN(SUBSTITUTE(G75,"#","")))=(LEN(H75)-LEN(SUBSTITUTE(H75,"#",""))),"",FALSE) -> 
B76: 1000722 | C76: 天咏诀 | D76: 2 | I76: 204021 | J76: FALSE
B77: 1000723 | C77: 天咏诀 | D77: 2 | I77: 204021 | J77: FALSE
B78: 1000724 | C78: 天咏诀 | D78: 2 | I78: 204021 | J78: FALSE
B79: 1000725 | C79: 天咏诀 | D79: 2 | I79: 204021 | J79: FALSE
B80: 1000811 | C80: 风旋 | D80: 1 | E80: 狂风可以带走一切 | F80: 召唤一阵旋风吹向敌人，对对位敌人造成%s风属性物理伤害。 | G80: 220% | H80: 2 | I80: 220011
B81: 1000812 | C81: 风旋 | D81: 1 | E81: 狂风可以带走一切 | F81: 召唤一阵旋风吹向敌人，对对位敌人造成%s风属性物理伤害。 | G81: 250% | H81: 2 | I81: 220011
B82: 1000813 | C82: 风旋 | D82: 1 | E82: 狂风可以带走一切 | F82: 召唤一阵旋风吹向敌人，对对位敌人造成%s风属性物理伤害。 | G82: 360% | H82: 2 | I82: 220011
B83: 1000814 | C83: 风旋 | D83: 1 | E83: 狂风可以带走一切 | F83: 召唤一阵旋风吹向敌人，对对位敌人造成%s风属性物理伤害。 | G83: 430% | H83: 2 | I83: 220011
B84: 1000815 | C84: 风旋 | D84: 1 | E84: 狂风可以带走一切 | F84: 召唤一阵旋风吹向敌人，对对位敌人造成%s风属性物理伤害。 | G84: 540% | H84: 2 | I84: 220011
B85: 1000821 | C85: 飞沙走石 | D85: 2 | E85: 大风起兮云飞扬。 | F85: 飞沙走石，造成%s风属性魔法全体伤害，生命值越低则伤害越高，最多不超过%s，同时回复自身攻击%s的气血。 | G85: 27%#60%#40% | H85: 2#0#0 | I85: 220021
B86: 1000822 | C86: 飞沙走石 | D86: 2 | E86: 大风起兮云飞扬。 | F86: 飞沙走石，造成%s风属性魔法全体伤害，生命值越低则伤害越高，最多不超过%s，同时回复自身攻击%s的气血。 | G86: 32%#60%#48% | H86: 2#0#0 | I86: 220021
B87: 1000823 | C87: 飞沙走石 | D87: 2 | E87: 大风起兮云飞扬。 | F87: 飞沙走石，造成%s风属性魔法全体伤害，生命值越低则伤害越高，最多不超过%s，同时回复自身攻击%s的气血。 | G87: 38%#60%#56% | H87: 2#0#0 | I87: 220021
B88: 1000824 | C88: 飞沙走石 | D88: 2 | E88: 大风起兮云飞扬。 | F88: 飞沙走石，造成%s风属性魔法全体伤害，生命值越低则伤害越高，最多不超过%s，同时回复自身攻击%s的气血。 | G88: 43%#60%#64% | H88: 2#0#0 | I88: 220021
B89: 1000825 | C89: 飞沙走石 | D89: 2 | E89: 大风起兮云飞扬。 | F89: 飞沙走石，造成%s风属性魔法全体伤害，生命值越低则伤害越高，最多不超过%s，同时回复自身攻击%s的气血。 | G89: 54%#60%#80% | H89: 2#0#0 | I89: 220021
B90: 1000911 | C90: 潮汐 | D90: 1 | E90: 海上明月共潮生。 | F90: 释放一道水流，对对位及相邻敌人造成%s水属性魔法伤害，施加%s印记，最大%s层。 | G90: 140%#幽冥#10 | H90: 2#1#0 | I90: 209011
B91: 1000912 | C91: 潮汐 | D91: 1 | E91: 海上明月共潮生。 | F91: 释放一道水流，对对位及相邻敌人造成%s水属性魔法伤害，施加%s印记，最大%s层。 | G91: 170%#幽冥#10 | H91: 2#1#0 | I91: 209011
B92: 1000913 | C92: 潮汐 | D92: 1 | E92: 海上明月共潮生。 | F92: 释放一道水流，对对位及相邻敌人造成%s水属性魔法伤害，施加%s印记，最大%s层。 | G92: 240%#幽冥#10 | H92: 2#1#0 | I92: 209011
B93: 1000914 | C93: 潮汐 | D93: 1 | E93: 海上明月共潮生。 | F93: 释放一道水流，对对位及相邻敌人造成%s水属性魔法伤害，施加%s印记，最大%s层。 | G93: 290%#幽冥#10 | H93: 2#1#0 | I93: 209011
B94: 1000915 | C94: 潮汐 | D94: 1 | E94: 海上明月共潮生。 | F94: 释放一道水流，对对位及相邻敌人造成%s水属性魔法伤害，施加%s印记，最大%s层。 | G94: 360%#幽冥#10 | H94: 2#1#0 | I94: 209011
B95: 1000921 | C95: 怒海幽歌 | D95: 2 | E95: 别激怒大海！ | F95: 召唤一阵怒涛，对对位及相邻敌人造成%s水属性魔法伤害，每层%s印记可使此技能最终伤害增加%s伤害。 | G95: 280%#幽冥#20% | H95: 2#1#2 | I95: 209021
B96: 1000922 | C96: 怒海幽歌 | D96: 2 | E96: 别激怒大海！ | F96: 召唤一阵怒涛，对对位及相邻敌人造成%s水属性魔法伤害，每层%s印记可使此技能最终伤害增加%s伤害。 | G96: 320%#幽冥#20% | H96: 2#1#2 | I96: 209021
B97: 1000923 | C97: 怒海幽歌 | D97: 2 | E97: 别激怒大海！ | F97: 召唤一阵怒涛，对对位及相邻敌人造成%s水属性魔法伤害，每层%s印记可使此技能最终伤害增加%s伤害。 | G97: 360%#幽冥#20% | H97: 2#1#2 | I97: 209021
B98: 1000924 | C98: 怒海幽歌 | D98: 2 | E98: 别激怒大海！ | F98: 召唤一阵怒涛，对对位及相邻敌人造成%s水属性魔法伤害，每层%s印记可使此技能最终伤害增加%s伤害。 | G98: 480%#幽冥#20% | H98: 2#1#2 | I98: 209021
B99: 1000925 | C99: 怒海幽歌 | D99: 2 | E99: 别激怒大海！ | F99: 召唤一阵怒涛，对对位及相邻敌人造成%s水属性魔法伤害，每层%s印记可使此技能最终伤害增加%s伤害。 | G99: 600%#幽冥#20% | H99: 2#1#2 | I99: 209021
B100: 1001011 | C100: 双龙出海 | D100: 1 | E100: 双龙飞！ | F100: 二龙剑傲然出鞘，对敌方单体造成两段攻击，每段%s水属性物理伤害，并有%s概率%s目标，持续%s秒。如果目标已经%s，则必定暴击。 | G100: 110%#15%#眩晕#3#眩晕 | H100: 2#0#1#0#1 | I100: 210011
B101: 1001012 | C101: 双龙出海 | D101: 1 | E101: 双龙飞！ | F101: 二龙剑傲然出鞘，对敌方单体造成两段攻击，每段%s水属性物理伤害，并有%s概率%s目标，持续%s秒。如果目标已经%s，则必定暴击。 | G101: 130%#15%#眩晕#3#眩晕 | H101: 2#0#1#0#1 | I101: 210011
B102: 1001013 | C102: 双龙出海 | D102: 1 | E102: 双龙飞！ | F102: 二龙剑傲然出鞘，对敌方单体造成两段攻击，每段%s水属性物理伤害，并有%s概率%s目标，持续%s秒。如果目标已经%s，则必定暴击。 | G102: 190%#20%#眩晕#3#眩晕 | H102: 2#0#1#0#1 | I102: 210011
B103: 1001014 | C103: 双龙出海 | D103: 1 | E103: 双龙飞！ | F103: 二龙剑傲然出鞘，对敌方单体造成两段攻击，每段%s水属性物理伤害，并有%s概率%s目标，持续%s秒。如果目标已经%s，则必定暴击。 | G103: 230%#20%#眩晕#3#眩晕 | H103: 2#0#1#0#1 | I103: 210011
B104: 1001015 | C104: 双龙出海 | D104: 1 | E104: 双龙飞！ | F104: 二龙剑傲然出鞘，对敌方单体造成两段攻击，每段%s水属性物理伤害，并有%s概率%s目标，持续%s秒。如果目标已经%s，则必定暴击。 | G104: 290%#25%#眩晕#3#眩晕 | H104: 2#0#1#0#1 | I104: 210011
B105: 1001021 | C105: 青鸾鸣海 | D105: 2 | E105: 青鸾舞！ | F105: 召唤青鸾协助攻击，对敌方单体造成四段攻击，每段%s水属性物理伤害，并有%s概率%s目标，持续%s秒。如果目标已经%s，则必定暴击。 | G105: 130%#20%#眩晕#3#眩晕 | H105: 2#0#1#0#1 | I105: 210021
B106: 1001022 | C106: 青鸾鸣海 | D106: 2 | E106: 青鸾舞！ | F106: 召唤青鸾协助攻击，对敌方单体造成四段攻击，每段%s水属性物理伤害，并有%s概率%s目标，持续%s秒。如果目标已经%s，则必定暴击。 | G106: 150%#20%#眩晕#3#眩晕 | H106: 2#0#1#0#1 | I106: 210021
B107: 1001023 | C107: 青鸾鸣海 | D107: 2 | E107: 青鸾舞！ | F107: 召唤青鸾协助攻击，对敌方单体造成四段攻击，每段%s水属性物理伤害，并有%s概率%s目标，持续%s秒。如果目标已经%s，则必定暴击。 | G107: 170%#20%#眩晕#3#眩晕 | H107: 2#0#1#0#1 | I107: 210021
B108: 1001024 | C108: 青鸾鸣海 | D108: 2 | E108: 青鸾舞！ | F108: 召唤青鸾协助攻击，对敌方单体造成四段攻击，每段%s水属性物理伤害，并有%s概率%s目标，持续%s秒。如果目标已经%s，则必定暴击。 | G108: 230%#25%#眩晕#3#眩晕 | H108: 2#0#1#0#1 | I108: 210021
B109: 1001025 | C109: 青鸾鸣海 | D109: 2 | E109: 青鸾舞！ | F109: 召唤青鸾协助攻击，对敌方单体造成四段攻击，每段%s水属性物理伤害，并有%s概率%s目标，持续%s秒。如果目标已经%s，则必定暴击。 | G109: 290%#30%#眩晕#3#眩晕 | H109: 2#0#1#0#1 | I109: 210021
B110: 1001111 | C110: 剑气凌人 | D110: 1 | E110: 剑气入体，内伤不止。 | F110: 凝聚一把巨大气剑攻向敌方生命值最低的目标，造成%s地属性魔法伤害，若目标死亡，则对其余目标造成全数剩余伤害量的伤害。 | G110: 290% | H110: 2 | I110: 253011
B111: 1001112 | C111: 剑气凌人 | D111: 1 | E111: 剑气入体，内伤不止。 | F111: 凝聚一把巨大气剑攻向敌方生命值最低的目标，造成%s地属性魔法伤害，若目标死亡，则对其余目标造成全数剩余伤害量的伤害。 | G111: 340% | H111: 2 | I111: 253011
B112: 1001113 | C112: 剑气凌人 | D112: 1 | E112: 剑气入体，内伤不止。 | F112: 凝聚一把巨大气剑攻向敌方生命值最低的目标，造成%s地属性魔法伤害，若目标死亡，则对其余目标造成全数剩余伤害量的伤害。 | G112: 490% | H112: 2 | I112: 253011
B113: 1001114 | C113: 剑气凌人 | D113: 1 | E113: 剑气入体，内伤不止。 | F113: 凝聚一把巨大气剑攻向敌方生命值最低的目标，造成%s地属性魔法伤害，若目标死亡，则对其余目标造成全数剩余伤害量的伤害。 | G113: 590% | H113: 2 | I113: 253011
B114: 1001115 | C114: 剑气凌人 | D114: 1 | E114: 剑气入体，内伤不止。 | F114: 凝聚一把巨大气剑攻向敌方生命值最低的目标，造成%s地属性魔法伤害，若目标死亡，则对其余目标造成全数剩余伤害量的伤害。 | G114: 740% | H114: 2 | I114: 253011
B115: 1001121 | C115: 无名剑诀 | D115: 2 | I115: 253021 | J115: FALSE
B116: 1001122 | C116: 无名剑诀 | D116: 2 | I116: 253021 | J116: FALSE
B117: 1001123 | C117: 无名剑诀 | D117: 2 | I117: 253021 | J117: FALSE
B118: 1001124 | C118: 无名剑诀 | D118: 2 | I118: 253021 | J118: FALSE
B119: 1001125 | C119: 无名剑诀 | D119: 2 | I119: 253021 | J119: FALSE
B120: 1001211 | C120: 风火轮 | D120: 1 | E120: 可别被它砸坏脑袋。 | F120: 引动风火轮攻向敌人，对对位及其相邻目标造成%s火属性物理伤害，若暴击，则减少自身%s秒技能cd。 | G120: 230%#1.5 | H120: 2#0 | I120: 212011
B121: 1001212 | C121: 风火轮 | D121: 1 | E121: 可别被它砸坏脑袋。 | F121: 引动风火轮攻向敌人，对对位及其相邻目标造成%s火属性物理伤害，若暴击，则减少自身%s秒技能cd。 | G121: 260%#1.5 | H121: 2#0 | I121: 212011
B122: 1001213 | C122: 风火轮 | D122: 1 | E122: 可别被它砸坏脑袋。 | F122: 引动风火轮攻向敌人，对对位及其相邻目标造成%s火属性物理伤害，若暴击，则减少自身%s秒技能cd。 | G122: 380%#1.5 | H122: 2#0 | I122: 212011
B123: 1001214 | C123: 风火轮 | D123: 1 | E123: 可别被它砸坏脑袋。 | F123: 引动风火轮攻向敌人，对对位及其相邻目标造成%s火属性物理伤害，若暴击，则减少自身%s秒技能cd。 | G123: 450%#1.5 | H123: 2#0 | I123: 212011
B124: 1001215 | C124: 风火轮 | D124: 1 | E124: 可别被它砸坏脑袋。 | F124: 引动风火轮攻向敌人，对对位及其相邻目标造成%s火属性物理伤害，若暴击，则减少自身%s秒技能cd。 | G124: 560%#1.5 | H124: 2#0 | I124: 212011
B125: 1001221 | C125: 业火红莲 | D125: 2 | E125: 这不是火苗，是流星！ | F125: 召唤一道流火飞向敌人，落地击中后绽放成一朵红莲，对对位敌人造成%s火属性物理伤害。若目标血量低于%s，则直接斩杀，但目标剩余血量不能超过攻击的%s倍。 | G125: 420%#10%#10 | H125: 2#0#0 | I125: 212021
B126: 1001222 | C126: 业火红莲 | D126: 2 | E126: 这不是火苗，是流星！ | F126: 召唤一道流火飞向敌人，落地击中后绽放成一朵红莲，对对位敌人造成%s火属性物理伤害。若目标血量低于%s，则直接斩杀，但目标剩余血量不能超过攻击的%s倍。 | G126: 480%#10%#10 | H126: 2#0#0 | I126: 212021
B127: 1001223 | C127: 业火红莲 | D127: 2 | E127: 这不是火苗，是流星！ | F127: 召唤一道流火飞向敌人，落地击中后绽放成一朵红莲，对对位敌人造成%s火属性物理伤害。若目标血量低于%s，则直接斩杀，但目标剩余血量不能超过攻击的%s倍。 | G127: 540%#10%#10 | H127: 2#0#0 | I127: 212021
B128: 1001224 | C128: 业火红莲 | D128: 2 | E128: 这不是火苗，是流星！ | F128: 召唤一道流火飞向敌人，落地击中后绽放成一朵红莲，对对位敌人造成%s火属性物理伤害。若目标血量低于%s，则直接斩杀，但目标剩余血量不能超过攻击的%s倍。 | G128: 720%#10%#10 | H128: 2#0#0 | I128: 212021
B129: 1001225 | C129: 业火红莲 | D129: 2 | E129: 这不是火苗，是流星！ | F129: 召唤一道流火飞向敌人，落地击中后绽放成一朵红莲，对对位敌人造成%s火属性物理伤害。若目标血量低于%s，则直接斩杀，但目标剩余血量不能超过攻击的%s倍。 | G129: 900%#10%#10 | H129: 2#0#0 | I129: 212021
B130: 1001311 | C130: 破岳枪 | D130: 1 | E130: 一击必杀！ | F130: 挥舞长枪攻击目标，对对位敌人造成%s地属性物理伤害，为自身施加一层%s印记，最多%s层。 | G130: 220%#莫邪#5 | H130: 2#1#0 | I130: 208011
B131: 1001312 | C131: 破岳枪 | D131: 1 | E131: 一击必杀！ | F131: 挥舞长枪攻击目标，对对位敌人造成%s地属性物理伤害，为自身施加一层%s印记，最多%s层。 | G131: 250%#莫邪#5 | H131: 2#1#0 | I131: 208011
B132: 1001313 | C132: 破岳枪 | D132: 1 | E132: 一击必杀！ | F132: 挥舞长枪攻击目标，对对位敌人造成%s地属性物理伤害，为自身施加一层%s印记，最多%s层。 | G132: 360%#莫邪#5 | H132: 2#1#0 | I132: 208011
B133: 1001314 | C133: 破岳枪 | D133: 1 | E133: 一击必杀！ | F133: 挥舞长枪攻击目标，对对位敌人造成%s地属性物理伤害，为自身施加一层%s印记，最多%s层。 | G133: 430%#莫邪#5 | H133: 2#1#0 | I133: 208011
B134: 1001315 | C134: 破岳枪 | D134: 1 | E134: 一击必杀！ | F134: 挥舞长枪攻击目标，对对位敌人造成%s地属性物理伤害，为自身施加一层%s印记，最多%s层。 | G134: 530%#莫邪#5 | H134: 2#1#0 | I134: 208011
B135: 1001321 | C135: 莫邪 | D135: 2 | E135: 神剑听令！ | F135: 莫邪出鞘攻击敌人，对对位敌人造成%s地属性物理伤害，每层%s印记增加此技能%s伤害。 | G135: 350%#莫邪#10% | H135: 2#1#0 | I135: 208021
B136: 1001322 | C136: 莫邪 | D136: 2 | E136: 神剑听令！ | F136: 莫邪出鞘攻击敌人，对对位敌人造成%s地属性物理伤害，每层%s印记增加此技能%s伤害。 | G136: 400%#莫邪#10% | H136: 2#1#0 | I136: 208021
B137: 1001323 | C137: 莫邪 | D137: 2 | E137: 神剑听令！ | F137: 莫邪出鞘攻击敌人，对对位敌人造成%s地属性物理伤害，每层%s印记增加此技能%s伤害。 | G137: 450%#莫邪#10% | H137: 2#1#0 | I137: 208021
B138: 1001324 | C138: 莫邪 | D138: 2 | E138: 神剑听令！ | F138: 莫邪出鞘攻击敌人，对对位敌人造成%s地属性物理伤害，每层%s印记增加此技能%s伤害。 | G138: 600%#莫邪#10% | H138: 2#1#0 | I138: 208021
B139: 1001325 | C139: 莫邪 | D139: 2 | E139: 神剑听令！ | F139: 莫邪出鞘攻击敌人，对对位敌人造成%s地属性物理伤害，每层%s印记增加此技能%s伤害。 | G139: 750%#莫邪#10% | H139: 2#1#0 | I139: 208021 | J139: =IF((LEN(F139)-LEN(SUBSTITUTE(F139,"%","")))=(LEN(G139)-LEN(SUBSTITUTE(G139,"#","")))+1,"",FALSE) ->  | K139: =IF((LEN(G139)-LEN(SUBSTITUTE(G139,"#","")))=(LEN(H139)-LEN(SUBSTITUTE(H139,"#",""))),"",FALSE) -> 
B140: 1001411 | C140: 雷霆 | D140: 1 | E140: 被电的滋味可不好受！ | F140: 召唤一道黑色雷霆炸向敌人，对对位敌人造成%s暗属性魔法伤害。永久提升自身%s攻击和%s暴击，但会赋予自身%s状态，%s概率受到额外%s伤害，持续%s秒。若此技能击杀目标则立即发动一次绝技。 | G140: 230%#5%#5%#虚弱#70%#25%#10 | H140: 2#0#0#1#0#0#2 | I140: 222011
B141: 1001412 | C141: 雷霆 | D141: 1 | E141: 被电的滋味可不好受！ | F141: 召唤一道黑色雷霆炸向敌人，对对位敌人造成%s暗属性魔法伤害。永久提升自身%s攻击和%s暴击，但会赋予自身%s状态，%s概率受到额外%s伤害，持续%s秒。若此技能击杀目标则立即发动一次绝技。 | G141: 260%#5%#5%#虚弱#70%#25%#10 | H141: 2#0#0#1#0#0#2 | I141: 222011
B142: 1001413 | C142: 雷霆 | D142: 1 | E142: 被电的滋味可不好受！ | F142: 召唤一道黑色雷霆炸向敌人，对对位敌人造成%s暗属性魔法伤害。永久提升自身%s攻击和%s暴击，但会赋予自身%s状态，%s概率受到额外%s伤害，持续%s秒。若此技能击杀目标则立即发动一次绝技。 | G142: 380%#10%#5%#虚弱#70%#25%#10 | H142: 2#0#0#1#0#0#2 | I142: 222011
B143: 1001414 | C143: 雷霆 | D143: 1 | E143: 被电的滋味可不好受！ | F143: 召唤一道黑色雷霆炸向敌人，对对位敌人造成%s暗属性魔法伤害。永久提升自身%s攻击和%s暴击，但会赋予自身%s状态，%s概率受到额外%s伤害，持续%s秒。若此技能击杀目标则立即发动一次绝技。 | G143: 450%#10%#5%#虚弱#70%#25%#10 | H143: 2#0#0#1#0#0#2 | I143: 222011
B144: 1001415 | C144: 雷霆 | D144: 1 | E144: 被电的滋味可不好受！ | F144: 召唤一道黑色雷霆炸向敌人，对对位敌人造成%s暗属性魔法伤害。永久提升自身%s攻击和%s暴击，但会赋予自身%s状态，%s概率受到额外%s伤害，持续%s秒。若此技能击杀目标则立即发动一次绝技。 | G144: 560%#10%#5%#虚弱#70%#15%#10 | H144: 2#0#0#1#0#0#2 | I144: 222011
B145: 1001421 | C145: 天罚 | D145: 2 | E145: 漫天神雷！ | F145: 凝成一只黑色雷霆的雷鸟轰向敌阵，造成%s暗属性魔法全体伤害，自身每个/每层增益状态都会提高此技能%s伤害。 | G145: 220%#10% | H145: 2#2 | I145: 222021
B146: 1001422 | C146: 天罚 | D146: 2 | E146: 漫天神雷！ | F146: 凝成一只黑色雷霆的雷鸟轰向敌阵，造成%s暗属性魔法全体伤害，自身每个/每层增益状态都会提高此技能%s伤害。 | G146: 260%#10% | H146: 2#2 | I146: 222021
B147: 1001423 | C147: 天罚 | D147: 2 | E147: 漫天神雷！ | F147: 凝成一只黑色雷霆的雷鸟轰向敌阵，造成%s暗属性魔法全体伤害，自身每个/每层增益状态都会提高此技能%s伤害。 | G147: 290%#10% | H147: 2#2 | I147: 222021
B148: 1001424 | C148: 天罚 | D148: 2 | E148: 漫天神雷！ | F148: 凝成一只黑色雷霆的雷鸟轰向敌阵，造成%s暗属性魔法全体伤害，自身每个/每层增益状态都会提高此技能%s伤害。 | G148: 380%#10% | H148: 2#2 | I148: 222021
B149: 1001425 | C149: 天罚 | D149: 2 | E149: 漫天神雷！ | F149: 凝成一只黑色雷霆的雷鸟轰向敌阵，造成%s暗属性魔法全体伤害，自身每个/每层增益状态都会提高此技能%s伤害。 | G149: 480%#10% | H149: 2#2 | I149: 222021
B150: 1001511 | C150: 流光 | D150: 1 | E150: 害怕就躲起来吧！ | F150: 召唤五道光束攻向敌人，对对位敌人造成5段攻击，每段%s光属性物理伤害。如果目标死亡，则转移剩余段数到敌方生命最低目标。 | G150: 45% | H150: 2 | I150: 254011
B151: 1001512 | C151: 流光 | D151: 1 | E151: 害怕就躲起来吧！ | F151: 召唤五道光束攻向敌人，对对位敌人造成5段攻击，每段%s光属性物理伤害。如果目标死亡，则转移剩余段数到敌方生命最低目标。 | G151: 54% | H151: 2 | I151: 254011
B152: 1001513 | C152: 流光 | D152: 1 | E152: 害怕就躲起来吧！ | F152: 召唤五道光束攻向敌人，对对位敌人造成5段攻击，每段%s光属性物理伤害。如果目标死亡，则转移剩余段数到敌方生命最低目标。 | G152: 63% | H152: 2 | I152: 254011
B153: 1001514 | C153: 流光 | D153: 1 | E153: 害怕就躲起来吧！ | F153: 召唤五道光束攻向敌人，对对位敌人造成5段攻击，每段%s光属性物理伤害。如果目标死亡，则转移剩余段数到敌方生命最低目标。 | G153: 72% | H153: 2 | I153: 254011
B154: 1001515 | C154: 流光 | D154: 1 | E154: 害怕就躲起来吧！ | F154: 召唤五道光束攻向敌人，对对位敌人造成5段攻击，每段%s光属性物理伤害。如果目标死亡，则转移剩余段数到敌方生命最低目标。 | G154: 140% | H154: 2 | I154: 254011
B155: 1001521 | C155: 赤雷 | D155: 2 | I155: 254021 | J155: FALSE
B156: 1001522 | C156: 赤雷 | D156: 2 | I156: 254021 | J156: FALSE
B157: 1001523 | C157: 赤雷 | D157: 2 | I157: 254021 | J157: FALSE
B158: 1001524 | C158: 赤雷 | D158: 2 | I158: 254021 | J158: FALSE
B159: 1001525 | C159: 赤雷 | D159: 2 | I159: 254021 | J159: FALSE
B160: 1001611 | C160: 真火 | D160: 1 | E160: 尝尝火焰的味道！ | F160: 发出一道火球，对对位敌人造成%s火属性物理伤害，%s目标，在%s秒内造成%s次%s魔法伤害。同时提升我方攻击最高者%s攻击，持续%s秒。 | G160: 120%#灼烧#10#5#12%#10%#10 | H160: 2#1#0#0#2#0#0 | I160: 264011
B161: 1001612 | C161: 真火 | D161: 1 | E161: 尝尝火焰的味道！ | F161: 发出一道火球，对对位敌人造成%s火属性物理伤害，%s目标，在%s秒内造成%s次%s魔法伤害。同时提升我方攻击最高者%s攻击，持续%s秒。 | G161: 140%#灼烧#10#5#14%#10%#10 | H161: 2#1#0#0#2#0#0 | I161: 264011
B162: 1001613 | C162: 真火 | D162: 1 | E162: 尝尝火焰的味道！ | F162: 发出一道火球，对对位敌人造成%s火属性物理伤害，%s目标，在%s秒内造成%s次%s魔法伤害。同时提升我方攻击最高者%s攻击，持续%s秒。 | G162: 200%#灼烧#10#5#20%#10%#10 | H162: 2#1#0#0#2#0#0 | I162: 264011
B163: 1001614 | C163: 真火 | D163: 1 | E163: 尝尝火焰的味道！ | F163: 发出一道火球，对对位敌人造成%s火属性物理伤害，%s目标，在%s秒内造成%s次%s魔法伤害。同时提升我方攻击最高者%s攻击，持续%s秒。 | G163: 240%#灼烧#10#5#24%#10%#10 | H163: 2#1#0#0#2#0#0 | I163: 264011
B164: 1001615 | C164: 真火 | D164: 1 | E164: 尝尝火焰的味道！ | F164: 发出一道火球，对对位敌人造成%s火属性物理伤害，%s目标，在%s秒内造成%s次%s魔法伤害。同时提升我方攻击最高者%s攻击，持续%s秒。 | G164: 300%#灼烧#10#5#30%#10%#10 | H164: 2#1#0#0#2#0#0 | I164: 264011
B165: 1001621 | C165: 宝塔天降 | D165: 2 | E165: 熔岩雨露，皆是天恩！ | F165: 宝塔悬空，猛然砸下，对对位敌人造成%s火属性物理伤害，%s目标，在%s秒内造成%s次%s魔法伤害。同时提升我方攻击最高者%s攻击%s暴击，持续%s秒。 | G165: 250%#灼烧#10#5#30%#10%#15%#10 | H165: 2#1#0#0#2#0#0#0 | I165: 264021
B166: 1001622 | C166: 宝塔天降 | D166: 2 | E166: 熔岩雨露，皆是天恩！ | F166: 宝塔悬空，猛然砸下，对对位敌人造成%s火属性物理伤害，%s目标，在%s秒内造成%s次%s魔法伤害。同时提升我方攻击最高者%s攻击%s暴击，持续%s秒。 | G166: 280%#灼烧#10#5#35%#10%#15%#10 | H166: 2#1#0#0#2#0#0#0 | I166: 264021
B167: 1001623 | C167: 宝塔天降 | D167: 2 | E167: 熔岩雨露，皆是天恩！ | F167: 宝塔悬空，猛然砸下，对对位敌人造成%s火属性物理伤害，%s目标，在%s秒内造成%s次%s魔法伤害。同时提升我方攻击最高者%s攻击%s暴击，持续%s秒。 | G167: 320%#灼烧#10#5#50%#10%#15%#10 | H167: 2#1#0#0#2#0#0#0 | I167: 264021
B168: 1001624 | C168: 宝塔天降 | D168: 2 | E168: 熔岩雨露，皆是天恩！ | F168: 宝塔悬空，猛然砸下，对对位敌人造成%s火属性物理伤害，%s目标，在%s秒内造成%s次%s魔法伤害。同时提升我方攻击最高者%s攻击%s暴击，持续%s秒。 | G168: 420%#灼烧#10#5#60%#10%#15%#10 | H168: 2#1#0#0#2#0#0#0 | I168: 264021
B169: 1001625 | C169: 宝塔天降 | D169: 2 | E169: 熔岩雨露，皆是天恩！ | F169: 宝塔悬空，猛然砸下，对对位敌人造成%s火属性物理伤害，%s目标，在%s秒内造成%s次%s魔法伤害。同时提升我方攻击最高者%s攻击%s暴击，持续%s秒。 | G169: 530%#灼烧#10#5#75%#10%#15%#10 | H169: 2#1#0#0#2#0#0#0 | I169: 264021
B170: 1001711 | C170: 凌波 | D170: 1 | E170: 别慌！看我的！ | F170: 对对位敌人造成%s水属性物理伤害，使用水灵之力为自身提供自身攻击%s的护盾，持续%s秒，若护盾被击破，则对击破者造成最大生命值%s伤害。 | G170: 100%#90%#5#10% | H170: 2#0#0#2 | I170: 236011
B171: 1001712 | C171: 凌波 | D171: 1 | E171: 别慌！看我的！ | F171: 对对位敌人造成%s水属性物理伤害，使用水灵之力为自身提供自身攻击%s的护盾，持续%s秒，若护盾被击破，则对击破者造成最大生命值%s伤害。 | G171: 120%#110%#5#10% | H171: 2#0#0#2 | I171: 236011
B172: 1001713 | C172: 凌波 | D172: 1 | E172: 别慌！看我的！ | F172: 对对位敌人造成%s水属性物理伤害，使用水灵之力为自身提供自身攻击%s的护盾，持续%s秒，若护盾被击破，则对击破者造成最大生命值%s伤害。 | G172: 170%#150%#5#10% | H172: 2#0#0#2 | I172: 236011
B173: 1001714 | C173: 凌波 | D173: 1 | E173: 别慌！看我的！ | F173: 对对位敌人造成%s水属性物理伤害，使用水灵之力为自身提供自身攻击%s的护盾，持续%s秒，若护盾被击破，则对击破者造成最大生命值%s伤害。 | G173: 200%#180%#5#10% | H173: 2#0#0#2 | I173: 236011
B174: 1001715 | C174: 凌波 | D174: 1 | E174: 别慌！看我的！ | F174: 对对位敌人造成%s水属性物理伤害，使用水灵之力为自身提供自身攻击%s的护盾，持续%s秒，若护盾被击破，则对击破者造成最大生命值%s伤害。 | G174: 260%#230%#5#10% | H174: 2#0#0#2 | I174: 236011
B175: 1001721 | C175: 上善若水 | D175: 2 | E175: 感受水之祝福吧！ | F175: 对对位敌人造成%s水属性物理伤害，召唤水灵之神为自身及相邻队友提供自身攻击%s的护盾，持续%s秒，若护盾被击破，则对击破者造成最大生命值%s伤害。 | G175: 170%#110%#5#10% | H175: 2#0#0#2 | I175: 236021
B176: 1001722 | C176: 上善若水 | D176: 2 | E176: 感受水之祝福吧！ | F176: 对对位敌人造成%s水属性物理伤害，召唤水灵之神为自身及相邻队友提供自身攻击%s的护盾，持续%s秒，若护盾被击破，则对击破者造成最大生命值%s伤害。 | G176: 190%#120%#5#10% | H176: 2#0#0#2 | I176: 236021
B177: 1001723 | C177: 上善若水 | D177: 2 | E177: 感受水之祝福吧！ | F177: 对对位敌人造成%s水属性物理伤害，召唤水灵之神为自身及相邻队友提供自身攻击%s的护盾，持续%s秒，若护盾被击破，则对击破者造成最大生命值%s伤害。 | G177: 220%#140%#5#10% | H177: 2#0#0#2 | I177: 236021
B178: 1001724 | C178: 上善若水 | D178: 2 | E178: 感受水之祝福吧！ | F178: 对对位敌人造成%s水属性物理伤害，召唤水灵之神为自身及相邻队友提供自身攻击%s的护盾，持续%s秒，若护盾被击破，则对击破者造成最大生命值%s伤害。 | G178: 290%#180%#5#10% | H178: 2#0#0#2 | I178: 236021
B179: 1001725 | C179: 上善若水 | D179: 2 | E179: 感受水之祝福吧！ | F179: 对对位敌人造成%s水属性物理伤害，召唤水灵之神为自身及相邻队友提供自身攻击%s的护盾，持续%s秒，若护盾被击破，则对击破者造成最大生命值%s伤害。 | G179: 360%#230%#5#10% | H179: 2#0#0#2 | I179: 236021
B180: 1001811 | C180: 厚土 | D180: 1 | E180: 土固青山，承德载物。 | F180: 召唤一座山岳压向对位敌人，对对位敌人造成%s地属性魔法伤害，同时凝聚土灵之力，为自身及血量最低的队友回复自身攻击%s的气血。 | G180: 140%#90% | H180: 2#0 | I180: 262011
B181: 1001812 | C181: 厚土 | D181: 1 | E181: 土固青山，承德载物。 | F181: 召唤一座山岳压向对位敌人，对对位敌人造成%s地属性魔法伤害，同时凝聚土灵之力，为自身及血量最低的队友回复自身攻击%s的气血。 | G181: 170%#110% | H181: 2#0 | I181: 262011
B182: 1001813 | C182: 厚土 | D182: 1 | E182: 土固青山，承德载物。 | F182: 召唤一座山岳压向对位敌人，对对位敌人造成%s地属性魔法伤害，同时凝聚土灵之力，为自身及血量最低的队友回复自身攻击%s的气血。 | G182: 240%#150% | H182: 2#0 | I182: 262011
B183: 1001814 | C183: 厚土 | D183: 1 | E183: 土固青山，承德载物。 | F183: 召唤一座山岳压向对位敌人，对对位敌人造成%s地属性魔法伤害，同时凝聚土灵之力，为自身及血量最低的队友回复自身攻击%s的气血。 | G183: 290%#180% | H183: 2#0 | I183: 262011
B184: 1001815 | C184: 厚土 | D184: 1 | E184: 土固青山，承德载物。 | F184: 召唤一座山岳压向对位敌人，对对位敌人造成%s地属性魔法伤害，同时凝聚土灵之力，为自身及血量最低的队友回复自身攻击%s的气血。 | G184: 360%#230% | H184: 2#0 | I184: 262011
B185: 1001821 | C185: 仙荷 | D185: 2 | E185: 妙法青莲。 | F185: 挥舞莲花，对对位敌人造成%s地属性魔法伤害，同时为我方血量最低的队友回复自身攻击%s的气血。 | G185: 230%#350% | H185: 2#0 | I185: 262021
B186: 1001822 | C186: 仙荷 | D186: 2 | E186: 妙法青莲。 | F186: 挥舞莲花，对对位敌人造成%s地属性魔法伤害，同时为我方血量最低的队友回复自身攻击%s的气血。 | G186: 270%#400% | H186: 2#0 | I186: 262021
B187: 1001823 | C187: 仙荷 | D187: 2 | E187: 妙法青莲。 | F187: 挥舞莲花，对对位敌人造成%s地属性魔法伤害，同时为我方血量最低的队友回复自身攻击%s的气血。 | G187: 380%#450% | H187: 2#0 | I187: 262021
B188: 1001824 | C188: 仙荷 | D188: 2 | E188: 妙法青莲。 | F188: 挥舞莲花，对对位敌人造成%s地属性魔法伤害，同时为我方血量最低的队友回复自身攻击%s的气血。 | G188: 460%#600% | H188: 2#0 | I188: 262021
B189: 1001825 | C189: 仙荷 | D189: 2 | E189: 妙法青莲。 | F189: 挥舞莲花，对对位敌人造成%s地属性魔法伤害，同时为我方血量最低的队友回复自身攻击%s的气血。 | G189: 570%#750% | H189: 2#0 | I189: 262021
B190: 1001911 | C190: 云卷 | D190: 1 | E190: 云有型，亦无形。 | F190: 召唤一阵狂风，造成%s风属性物理全体伤害，降低敌方%s攻击，持续%s秒。 | G190: 110%#20%#5 | H190: 2#0#0 | I190: 215011
B191: 1001912 | C191: 云卷 | D191: 1 | E191: 云有型，亦无形。 | F191: 召唤一阵狂风，造成%s风属性物理全体伤害，降低敌方%s攻击，持续%s秒。 | G191: 130%#20%#5 | H191: 2#0#0 | I191: 215011
B192: 1001913 | C192: 云卷 | D192: 1 | E192: 云有型，亦无形。 | F192: 召唤一阵狂风，造成%s风属性物理全体伤害，降低敌方%s攻击，持续%s秒。 | G192: 180%#20%#5 | H192: 2#0#0 | I192: 215011
B193: 1001914 | C193: 云卷 | D193: 1 | E193: 云有型，亦无形。 | F193: 召唤一阵狂风，造成%s风属性物理全体伤害，降低敌方%s攻击，持续%s秒。 | G193: 220%#20%#5 | H193: 2#0#0 | I193: 215011
B194: 1001915 | C194: 云卷 | D194: 1 | E194: 云有型，亦无形。 | F194: 召唤一阵狂风，造成%s风属性物理全体伤害，降低敌方%s攻击，持续%s秒。 | G194: 270%#20%#5 | H194: 2#0#0 | I194: 215011
B195: 1001921 | C195: 幻影预兆 | D195: 2 | I195: 215021 | J195: FALSE
B196: 1001922 | C196: 幻影预兆 | D196: 2 | I196: 215021 | J196: FALSE
B197: 1001923 | C197: 幻影预兆 | D197: 2 | I197: 215021 | J197: FALSE
B198: 1001924 | C198: 幻影预兆 | D198: 2 | I198: 215021 | J198: FALSE
B199: 1001925 | C199: 幻影预兆 | D199: 2 | I199: 215021 | J199: FALSE
B200: 1002011 | C200: 烈焰枪 | D200: 1 | E200: 燃枪一点，焰芒先到！ | F200: 召出一条火龙冲向敌方，对对位敌人造成%s火属性物理伤害，增加自身%s的护甲与魔抗，持续%s秒。 | G200: 220%#40%#6 | H200: 2#0#0 | I200: 235011
... 713 more rows

Sheet Sheet7
A1: 1 | B1: 倩女幽魂 | C1: =B1 -> 倩女幽魂 | F1: 倩女幽魂 | G1: 100572 | I1: =IF(F1<>"",F1,H1) -> 倩女幽魂
A2: 1 | G2: 100581 | H2: 九头 | I2: =IF(F2<>"",F2,H2) -> 九头
A3: 2 | B3: 水毒火灼 | F3: 水毒火灼 | G3: 100582 | H3: 九婴火 | I3: =IF(F3<>"",F3,H3) -> 水毒火灼
A4: 2 | G4: 100591 | H4: 灵击 | I4: 灵击
A5: 3 | B5: 怨灵嘶吼 | F5: 怨灵嘶吼 | G5: 100592 | H5: 怨灵怒 | I5: 怨灵嘶吼
A6: 3 | G6: 100601 | H6: 追魂 | I6: 追魂
A7: 4 | B7: 悼亡哀花 | F7: 悼亡哀花 | G7: 100602 | H7: 悼亡花 | I7: 悼亡哀花
A8: 4 | G8: 100611 | H8: 大悲 | I8: 大悲
A9: 5 | B9: 秽土清居 | F9: 秽土清居 | G9: 100612 | H9: 秽土居 | I9: 秽土清居
A10: 5 | G10: 100621 | H10: 驱蛇 | I10: 驱蛇
A11: 6 | B11: 羽箭急流 | F11: 羽箭急流 | G11: 100622 | H11: 羽箭流 | I11: 羽箭急流
A12: 6 | G12: 100631 | H12: 御龙 | I12: 御龙
A13: 7 | B13: 逐恶除魔 | F13: 逐恶除魔 | G13: 100632 | H13: 净恶断 | I13: 逐恶除魔
A14: 7 | G14: 100641 | H14: 非天 | I14: 非天
A15: 8 | B15: 修罗一闪 | F15: 修罗一闪 | G15: 100642 | H15: 修罗斩 | I15: 修罗一闪
A16: 8 | G16: 100651 | H16: 重击 | I16: 重击
A17: 9 | B17: 除魔卫道 | F17: 除魔卫道 | G17: 100652 | H17: 破邪斩 | I17: 除魔卫道
A18: 9 | G18: 100661 | H18: 连弩 | I18: 连弩
A19: 10 | B19: 连环箭雨 | F19: 连环箭雨 | G19: 100662 | H19: 连环箭 | I19: 连环箭雨
A20: 10 | G20: 100671 | H20: 化蝶 | I20: 化蝶
A21: 11 | B21: 庄周梦蝶 | F21: 庄周梦蝶 | G21: 100672 | H21: 庄周梦 | I21: 庄周梦蝶
A22: 11 | G22: 100681 | H22: 落凡 | I22: 落凡
A23: 12 | B23: 羽衣魅舞 | F23: 羽衣魅舞 | G23: 100682 | H23: 羽衣舞 | I23: 羽衣魅舞
A24: 12 | G24: 100691 | H24: 神火 | I24: 神火
A25: 13 | B25: 神火乱离 | F25: 神火乱离 | G25: 100692 | H25: 乱离火 | I25: 神火乱离
A26: 13 | G26: 100701 | H26: 殇水 | I26: 殇水
A27: 14 | B27: 御水平魔 | F27: 御水平魔 | G27: 100702 | H27: 水波击 | I27: 御水平魔
A28: 14 | G28: 100711 | H28: 流击 | I28: 流击
A29: 15 | B29: 渊流川涌 | F29: 渊流川涌 | G29: 100712 | H29: 渊流破 | I29: 渊流川涌
A30: 15 | G30: 100721 | H30: 仙扇 | I30: 仙扇
A31: 16 | B31: 灼扇轮舞 | F31: 灼扇轮舞 | G31: 100722 | H31: 扇环舞 | I31: 灼扇轮舞
A32: 16

Sheet Sheet6
B1: 100571 | C1: 大悲 | D1: 1 | F1: 对敌方单体造成%s物理伤害 | G1: 95% | H1: 2 | I1: 245011
B2: 100572 | C2: 秽土居 | D2: 2 | F2: 对敌方前排造成%s物理伤害，自身回复%s点怒气 | G2: 163%#1 | H2: 2#0 | I2: 245021
B3: 100581 | C3: 龙斩 | D3: 1 | F3: 对敌方单体造成%s物理伤害 | G3: 95% | H3: 2 | I3: 245011
B4: 100582 | C4: 泾龙斩 | D4: 2 | F4: 对敌方纵排造成%s物理伤害 | G4: 232% | H4: 2 | I4: 245021
B5: 100591 | C5: 殇水 | D5: 1 | F5: 对敌方前排造成%s物理伤害 | G5: 47% | H5: 2 | I5: 245011
B6: 100592 | C6: 水波击 | D6: 2 | F6: 对敌方随机%s人造成%s物理伤害 | G6: 3#163% | H6: 0#2 | I6: 245021
B7: 100601 | C7: 流击 | D7: 1 | F7: 对敌方单体造成%s法术伤害 | G7: 95% | H7: 2 | I7: 245011
B8: 100602 | C8: 渊流破 | D8: 2 | F8: 对敌方单体造成%s法术伤害，技能伤害的%s转化为治疗，治疗己方生命最少的队友 | G8: 333%#10% | H8: 2#0 | I8: 245021
B9: 100611 | C9: 重击 | D9: 1 | F9: 对敌方单体造成%s物理伤害 | G9: 90% | H9: 2 | I9: 245011
B10: 100612 | C10: 破邪斩 | D10: 2 | F10: 对敌方单体造成%s物理伤害 | G10: 315% | H10: 2 | I10: 245021
B11: 100621 | C11: 云流 | D11: 1 | F11: 对敌方单体造成%s物理伤害 | G11: 90% | H11: 2 | I11: 245011
B12: 100622 | C12: 云化龙 | D12: 2 | F12: 对敌方纵排造成%s物理伤害有%s概率%s目标持续%s回合 | G12: 212%#30%#眩晕#1 | H12: 2#0#1#0 | I12: 245021
B13: 100631 | C13: 盾击 | D13: 1 | F13: 对敌方纵排造成%s物理伤害 | G13: 60% | H13: 2 | I13: 245011
B14: 100632 | C14: 遁龙桩 | D14: 2 | F14: 对敌方纵排造成%s物理伤害并增加自身%s伤害持续%s回合可叠加 | G14: 212%#5%#7 | H14: 2#0#0 | I14: 245021
B15: 100641 | C15: 速击 | D15: 1 | F15: 对敌方单体造成%s物理伤害 | G15: 90% | H15: 2 | I15: 245011
B16: 100642 | C16: 穿云箭 | D16: 2 | F16: 对敌方单体造成%s物理伤害并回复自身%s点怒气 | G16: 315%#1 | H16: 2#0 | I16: 245021
B17: 100651 | C17: 九头 | D17: 1 | F17: 对敌方单体造成%s物理伤害 | G17: 90% | H17: 2 | I17: 245011
B18: 100652 | C18: 九婴火 | D18: 2 | F18: 对敌方单体造成%s物理伤害有%s概率%s目标，每回合造成自身攻击力%s的灼烧伤害持续%s回合 | G18: 315%#60%#灼烧#20%#2 | H18: 2#0#1#0#0 | I18: 245021
B19: 100661 | C19: 连弩 | D19: 1 | F19: 对敌方单体造成%s物理伤害 | G19: 90% | H19: 2 | I19: 245011
B20: 100662 | C20: 蝶踪箭 | D20: 2 | F20: 对敌方单体造成%s物理伤害 | G20: 315% | H20: 2 | I20: 245021
B21: 100671 | C21: 扇击 | D21: 1 | F21: 对敌方前排造成%s法术伤害 | G21: 44% | H21: 2 | I21: 245011
B22: 100672 | C22: 燎原火 | D22: 2 | F22: 对敌方随机%s人造成%s法术伤害有%s概率附加%s效果每回合对目标造成自身攻击%s的灼烧伤害持续%s回合 | G22: 3#140%#40%#灼烧#20%#2 | H22: 0#2#0#1#0#0 | I22: 245021
B23: 100681 | C23: 飞羽 | D23: 1 | F23: 对敌方单体造成%s法术伤害 | G23: 90% | H23: 2 | I23: 245011
B24: 100682 | C24: 鸟羽击 | D24: 2 | F24: 对敌方随机%s人造成%s法术伤害如果目标处于%s状态，则有%s概率附加%s持续%s回合 | G24: 3#155%#灼烧#20%#麻痹#1 | H24: 0#2#1#0#1#0 | I24: 245021
B25: 100691 | C25: 鬼怨 | D25: 1 | F25: 对敌方单体造成%s物理伤害 | G25: 100% | H25: 2 | I25: 245011
B26: 100692 | C26: 狱锁击 | D26: 2 | F26: 对敌方前排造成%s物理伤害，技能目标每减少%s个技能伤害增加%s | G26: 172%#1#10% | H26: 2#0#0 | I26: 245021
B27: 100701 | C27: 倩魂 | D27: 1 | F27: 对敌方单体造成%s法术伤害 | G27: 100% | H27: 2 | I27: 245011
B28: 100702 | C28: 灵幽缠 | D28: 2 | F28: 对敌方单体造成%s法术伤害 | G28: 350% | H28: 2 | I28: 245021
B29: 100711 | C29: 魂乱 | D29: 1 | F29: 对敌方前排造成%s物理伤害 | G29: 49% | H29: 2 | I29: 245011
B30: 100712 | C30: 百鬼行 | D30: 2 | F30: 对敌方随机%s人造成%s物理伤害，每次击杀目标自身伤害增加%s | G30: 3#140%#24% | H30: 0#2#0 | I30: 245021
B31: 100721 | C31: 灵击 | D31: 1 | F31: 对敌方单体造成%s法术伤害 | G31: 100% | H31: 2 | I31: 245011
B32: 100722 | C32: 怨灵怒 | D32: 2 | F32: 对敌方单体造成%s的法术伤害，伤害的%s转化为生命，治疗己方生命最少的队友 | G32: 350%#30% | H32: 2#0 | I32: 245021

Sheet Sheet5
B1: 1 | D1: 1 | E1: 雷棍 | F1: =C1&E1 -> 雷棍
B2: 2 | C2: 风卷雷涌 | D2: 1 | F2: =C2&E2 -> 风卷雷涌
B3: 1 | D3: 2 | E3: 石落 | F3: 石落
B4: 2 | C4: 精卫填海 | D4: 2 | F4: 精卫填海
B5: 1 | D5: 3 | E5: 流觞 | F5: 流觞
B6: 2 | C6: 洛水横断 | D6: 3 | F6: 洛水横断
B7: 1 | D7: 4 | E7: 水怒 | F7: 水怒
B8: 2 | C8: 暗流狂涌 | D8: 4 | F8: 暗流狂涌
B9: 1 | D9: 5 | E9: 广寒 | F9: 广寒
B10: 2 | C10: 月兔之助 | D10: 5 | F10: 月兔之助
B11: 1 | D11: 6 | E11: 耙击 | F11: 耙击
B12: 2 | C12: 天蓬余威 | D12: 6 | F12: 天蓬余威
B13: 1 | D13: 7 | E13: 墨痕 | F13: 墨痕
B14: 2 | C14: 文曲降世 | D14: 7 | F14: 文曲降世
B15: 1 | D15: 8 | E15: 兵戎 | F15: 兵戎
B16: 2 | C16: 五行连斩 | D16: 8 | F16: 五行连斩
B17: 1 | D17: 9 | E17: 乱刀 | F17: 乱刀
B18: 2 | C18: 混世邪斩 | D18: 9 | F18: 混世邪斩
B19: 1 | D19: 10 | E19: 狂风 | F19: 狂风
B20: 2 | C20: 三昧神风 | D20: 10 | F20: 三昧神风
B21: 1 | D21: 11 | E21: 飞剑 | F21: 飞剑
B22: 2 | C22: 诛仙剑阵 | D22: 11 | F22: 诛仙剑阵
B23: 1 | D23: 12 | E23: 花吻 | F23: 花吻
B24: 2 | C24: 灵花绽放 | D24: 12 | F24: 灵花绽放
B25: 1 | D25: 13 | E25: 雷波 | F25: 雷波
B26: 2 | C26: 龙子唤雷 | D26: 13 | F26: 龙子唤雷
B27: 1 | D27: 14 | E27: 千钧 | F27: 千钧
B28: 2 | C28: 奋起千钧 | D28: 14 | F28: 奋起千钧
B29: 1 | D29: 15 | E29: 烁光 | F29: 烁光
B30: 2 | C30: 补天神石 | D30: 15 | F30: 补天神石
B31: 1 | D31: 16 | E31: 祈祷 | F31: 祈祷
B32: 2 | C32: 九转灵禅 | D32: 16 | F32: 九转灵禅
B33: 1 | D33: 17 | E33: 镇关 | F33: 镇关
B34: 2 | C34: 玲珑宝塔 | D34: 17 | F34: 玲珑宝塔
B35: 1 | D35: 18 | E35: 狐媚 | F35: 狐媚
B36: 2 | C36: 狐媚惑心 | D36: 18 | F36: 狐媚惑心
B37: 1 | D37: 19 | E37: 飞梭 | F37: 飞梭
B38: 2 | C38: 织云编雾 | D38: 19 | F38: 织云编雾
B39: 1 | D39: 20 | E39: 莫邪 | F39: 莫邪
B40: 2 | C40: 破邪怒斩 | D40: 20 | F40: 破邪怒斩
B41: 1 | D41: 21 | E41: 镇军 | F41: 镇军
B42: 2 | C42: 破阵一击 | D42: 21 | F42: 破阵一击
B43: 1 | D43: 22 | E43: 龙跃 | F43: 龙跃
B44: 2 | C44: 白龙护主 | D44: 22 | F44: 白龙护主
B45: 1 | D45: 23 | E45: 穿神 | F45: 穿神
B46: 2 | C46: 驱魔慑鬼 | D46: 23 | F46: 驱魔慑鬼
B47: 1 | D47: 24 | E47: 蝶灵 | F47: 蝶灵
B48: 2 | C48: 庄周梦蝶 | D48: 24 | F48: 庄周梦蝶
B49: 1 | D49: 25 | E49: 仙音 | F49: 仙音
B50: 2 | C50: 余音绕梁 | D50: 25 | F50: 余音绕梁
B51: 1 | D51: 26 | E51: 金羽 | F51: 金羽
B52: 2 | C52: 大鹏展翅 | D52: 26 | F52: 大鹏展翅
B53: 1 | D53: 27 | E53: 日炎 | F53: 日炎
B54: 2 | C54: 烈日灼烧 | D54: 27 | F54: 烈日灼烧
B55: 1 | D55: 28 | E55: 枪刺 | F55: 枪刺
B56: 2 | C56: 天降火莲 | D56: 28 | F56: 天降火莲
B57: 1 | D57: 29 | E57: 火灵 | F57: 火灵
B58: 2 | C58: 神火锻体 | D58: 29 | F58: 神火锻体
B59: 1 | D59: 30 | E59: 怒兽 | F59: 怒兽
B60: 2 | C60: 蛮荒乱击 | D60: 30 | F60: 蛮荒乱击
B61: 1 | D61: 31 | E61: 灼烧 | F61: 灼烧
B62: 2 | C62: 邪火乱世 | D62: 31 | F62: 邪火乱世
B63: 1 | D63: 32 | E63: 助火 | F63: 助火
B64: 2 | C64: 风助火势 | D64: 32 | F64: 风助火势
B65: 1 | D65: 33 | E65: 猫拳 | F65: 猫拳
B66: 2 | C66: 猫爪连击 | D66: 33 | F66: =C66&E66 -> 猫爪连击
B67: 1 | D67: 34 | E67: 炎灼 | F67: 炎灼
B68: 2 | C68: 火烧连城 | D68: 34 | F68: 火烧连城
B69: 1 | D69: 35 | E69: 狐火 | F69: 狐火
B70: 2 | C70: 涂山魔火 | D70: 35 | F70: 涂山魔火
B71: 1 | D71: 36 | E71: 邪光 | F71: 邪光
B72: 2 | C72: 八卦邪帕 | D72: 36 | F72: 八卦邪帕
B73: 1 | D73: 37 | E73: 枪花 | F73: 枪花
B74: 2 | C74: 三昧真火 | D74: 37 | F74: 三昧真火
B75: 1 | D75: 38 | E75: 定海 | F75: 定海
B76: 2 | C76: 纵火灵符 | D76: 38 | F76: 纵火灵符
B77: 1 | D77: 39 | E77: 天眼 | F77: 天眼
B78: 2 | C78: 风卷残云 | D78: 39 | F78: 风卷残云
B79: 1 | D79: 40 | E79: 鞭击 | F79: 鞭击
B80: 2 | C80: 雷光霹雳 | D80: 40 | F80: 雷光霹雳
B81: 1 | D81: 41 | E81: 瞬剑 | F81: 瞬剑
B82: 2 | C82: 东华剑法 | D82: 41 | F82: 东华剑法
B83: 1 | D83: 42 | E83: 天道 | F83: 天道
B84: 2 | C84: 诸邪退避 | D84: 42 | F84: 诸邪退避
B85: 1 | D85: 43 | E85: 盾猛 | F85: 盾猛
B86: 2 | C86: 巨灵神威 | D86: 43 | F86: 巨灵神威
B87: 1 | D87: 44 | E87: 机关 | F87: 机关
B88: 2 | C88: 机巧巨炮 | D88: 44 | F88: 机巧巨炮
B89: 1 | D89: 45 | E89: 佛威 | F89: 佛威
B90: 2 | C90: 古佛托梦 | D90: 45 | F90: 古佛托梦
B91: 1 | D91: 46 | E91: 天遁 | F91: 天遁
B92: 2 | C92: 全真剑法 | D92: 46 | F92: 全真剑法
B93: 1 | D93: 47 | E93: 妖斩 | F93: 妖斩
B94: 2 | C94: 百目金光 | D94: 47 | F94: 百目金光
B95: 1 | D95: 48 | E95: 飞斧 | F95: 飞斧
B96: 2 | C96: 吴刚伐桂 | D96: 48 | F96: 吴刚伐桂
B97: 1 | D97: 49 | E97: 锁魂 | F97: 锁魂
B98: 2 | C98: 生死有命 | D98: 49 | F98: 生死有命
B99: 1 | D99: 50 | E99: 试汤 | F99: 试汤
B100: 2 | C100: 了却凡尘 | D100: 50 | F100: 了却凡尘
B101: 1 | D101: 51 | E101: 夜行 | F101: 夜行
B102: 2 | C102: 夜叉魔火 | D102: 51 | F102: 夜叉魔火
B103: 1 | D103: 52 | E103: 判命 | F103: 判命
B104: 2 | C104: 判官断命 | D104: 52 | F104: 判官断命

Sheet Sheet2
A1: 红色 | B1: [b4595e][-]
A2: 绿色 | B2: [4c805e][-]

Sheet Sheet1
A1: 10001 | B1: 石御霏 | F1: 10001 | G1: 1 | H1: 1 | I1: 1000111 | J1: =VLOOKUP(F1,$A:$B,2,0) -> 石御霏 | K1: =VLOOKUP(J1,[2]特效需求!$A$5:$F$5664,6,0) -> 凌甲 | L1: =VLOOKUP(J1,[2]特效需求!A$5:G$56,7,FALSE) -> 对敌方单体造成灵魂力%的水属性物理伤害， 对自身有%的概率(+效果命中)造成嘲讽，并提升护甲%，持续x秒。
A2: 10002 | B2: 楚恒 | F2: 10002 | G2: 1 | H2: 1 | I2: 1000211 | J2: =VLOOKUP(F2,$A:$B,2,0) -> 楚恒 | K2: =VLOOKUP(J2,[2]特效需求!$A$5:$F$5664,6,0) -> 啸牙 | L2: =VLOOKUP(J2,[2]特效需求!A$5:G$56,7,FALSE) -> 对敌方单体造成灵魂力%的风属性物理伤害， 对自身有%的概率(+效果命中)造成嘲讽，并提升灵魂力%，持续x秒。
A3: 10003 | B3: 夏侯鸿天 | F3: 10003 | G3: 1 | H3: 1 | I3: 1000311 | J3: =VLOOKUP(F3,$A:$B,2,0) -> 夏侯鸿天 | K3: =VLOOKUP(J3,[2]特效需求!$A$5:$F$5664,6,0) -> 断鸿 | L3: =VLOOKUP(J3,[2]特效需求!A$5:G$56,7,FALSE) -> 对敌方单体造成灵魂力%的地属性物理伤害， 将造成伤害的%转化为生命
A4: 10004 | B4: 应茹 | F4: 10004 | G4: 1 | H4: 1 | I4: 1000411 | J4: 应茹 | K4: =VLOOKUP(J4,[2]特效需求!$A$5:$F$5664,6,0) -> 轻流 | L4: =VLOOKUP(J4,[2]特效需求!A$5:G$56,7,FALSE) -> 对敌方单体造成灵魂力%的风属性魔法伤害， 为当前生命最低的x名队友在x秒内，每秒恢复灵魂力%的生命
A5: 10005 | B5: 端木葵 | F5: 10005 | G5: 1 | H5: 1 | I5: 1000511 | J5: 端木葵 | K5: =VLOOKUP(J5,[2]特效需求!$A$5:$F$5664,6,0) -> 长槐琼灯 | L5: =VLOOKUP(J5,[2]特效需求!A$5:G$56,7,FALSE) -> 对敌方单体造成灵魂力%的地属性魔法伤害， 恢复自身灵魂力%的生命， 持续x秒灵魂力增加25%
A6: 10006 | B6: 兰卿 | F6: 10006 | G6: 1 | H6: 1 | I6: 1000611 | J6: 兰卿 | K6: =VLOOKUP(J6,[2]特效需求!$A$5:$F$5664,6,0) -> 阳炎破阵曲 | L6: =VLOOKUP(J6,[2]特效需求!A$5:G$56,7,FALSE) -> 对敌方全体造成灵魂力%的火属性魔法伤害， 在x秒内，友方全体灵魂力增加%
A7: 10007 | B7: 靖之 | F7: 10007 | G7: 1 | H7: 1 | I7: 1000711 | J7: 靖之 | K7: =VLOOKUP(J7,[2]特效需求!$A$5:$F$5664,6,0) -> 破甲裂 | L7: =VLOOKUP(J7,[2]特效需求!A$5:G$56,7,FALSE) -> 对随机3名敌方造成灵魂力%的水属性物理伤害， 造成伤害后，在x秒内降低目标%的护甲
A8: 10008 | B8: 白梦凡 | F8: 10008 | G8: 1 | H8: 1 | I8: 1000811 | J8: 白梦凡 | K8: =VLOOKUP(J8,[2]特效需求!$A$5:$F$5664,6,0) -> 幻境之瞳 | L8: =VLOOKUP(J8,[2]特效需求!A$5:G$56,7,FALSE) -> 对敌方单体造成灵魂力%的光属性魔法伤害， 对生花类妖灵师造成额外%伤害。
A9: 10009 | B9: 祁菲 | F9: 10009 | G9: 1 | H9: 1 | I9: 1000911 | J9: 祁菲 | K9: =VLOOKUP(J9,[2]特效需求!$A$5:$F$5664,6,0) -> 黑符 | L9: =VLOOKUP(J9,[2]特效需求!A$5:G$56,7,FALSE) -> 对随机3名敌人造成灵魂力%的暗属性物理伤害， 造成伤害时，在x秒内对敌人造成燃烧效果， 燃烧效果持续期间，每秒造成灵魂力%的伤害。
A10: 10010 | B10: 颜祈佳 | F10: 10010 | G10: 1 | H10: 1 | I10: 1001011 | J10: 颜祈佳 | K10: =VLOOKUP(J10,[2]特效需求!$A$5:$F$5664,6,0) -> 涡流 | L10: =VLOOKUP(J10,[2]特效需求!A$5:G$56,7,FALSE) -> 对随机3名敌人造成灵魂力%的水属性魔法伤害， 对武卫类妖灵师造成额外%伤害。
A11: 10011 | B11: 叶延 | F11: 10011 | G11: 1 | H11: 1 | I11: 1001111 | J11: 叶延 | K11: =VLOOKUP(J11,[2]特效需求!$A$5:$F$5664,6,0) -> 地灵咒 | L11: =VLOOKUP(J11,[2]特效需求!A$5:G$56,7,FALSE) -> 对随机2名敌人造成灵魂力%的地属性魔法伤害， 造成伤害时，在x秒内对敌人造成中毒效果， 中毒效果持续期间，每秒造成灵魂力%的伤害。
A12: 10012 | B12: 慕容子期 | F12: 10012 | G12: 1 | H12: 1 | I12: 1001211 | J12: 慕容子期 | K12: =VLOOKUP(J12,[2]特效需求!$A$5:$F$5664,6,0) -> 焚花 | L12: =VLOOKUP(J12,[2]特效需求!A$5:G$56,7,FALSE) -> 对敌方单体造成灵魂力%的火属性物理伤害， 施展技能后，冷却时间增加x秒， 造成伤害时，为敌人附加1层中毒效果，最多叠加x层。
A13: 10013 | B13: 云灵 | F13: 10013 | G13: 1 | H13: 1 | I13: 1001311 | J13: 云灵 | K13: =VLOOKUP(J13,[2]特效需求!$A$5:$F$5664,6,0) -> 黑泉利箭 | L13: =VLOOKUP(J13,[2]特效需求!A$5:G$56,7,FALSE) -> 对敌方单体造成灵魂力%的地属性物理伤害， 在x秒内，暴击率增加%， 在x秒内，暴击伤害增加%。
A14: 10014 | B14: 耿陶 | F14: 10014 | G14: 1 | H14: 1 | I14: 1001411 | J14: 耿陶 | K14: =VLOOKUP(J14,[2]特效需求!$A$5:$F$5664,6,0) -> 墨意 | L14: =VLOOKUP(J14,[2]特效需求!A$5:G$56,7,FALSE) -> 对敌方2名敌人造成灵魂力%的暗属性物理伤害， 造成伤害时，有%的概率（+效果命中）降低其%护甲， 造成伤害时，有%的概率（+效果命中）沉默x秒。
A15: 10015 | B15: 云 | F15: 10015 | G15: 1 | H15: 1 | I15: 1001511 | J15: 云 | K15: =VLOOKUP(J15,[2]特效需求!$A$5:$F$5664,6,0) -> 辉映 | L15: =VLOOKUP(J15,[2]特效需求!A$5:G$56,7,FALSE) -> 对敌方单体造成灵魂力%的光属性魔法伤害， 将造成伤害的%转化为自身生命
A16: 10016 | B16: 岑以航 | F16: 10016 | G16: 1 | H16: 1 | I16: 1001611 | J16: 岑以航 | K16: =VLOOKUP(J16,[2]特效需求!$A$5:$F$5664,6,0) -> 无明火 | L16: =VLOOKUP(J16,[2]特效需求!A$5:G$56,7,FALSE) -> 对敌方单体造成灵魂力%的火属性魔法伤害， 对异常状态的敌人造成伤害时，无视敌人38%抗性
A17: 10017 | B17: 影蓟 | F17: 10017 | G17: 1 | H17: 1 | I17: 1001711 | J17: =VLOOKUP(F17,$A:$B,2,0) -> 影蓟 | K17: =VLOOKUP(J17,[2]特效需求!$A$5:$F$5664,6,0) -> 晦影 | L17: =VLOOKUP(J17,[2]特效需求!A$5:G$56,7,FALSE) -> 对随机2名敌人造成灵魂力%的暗属性魔法伤害， 造成伤害时，有%的概率（+效果命中）在x秒内护甲降低% 造成伤害时，有%的概率（+效果命中）沉默x秒
A18: 10018 | B18: 朱贺 | F18: 10018 | G18: 1 | H18: 1 | I18: 1001811 | J18: 朱贺 | K18: =VLOOKUP(J18,[2]特效需求!$A$5:$F$5664,6,0) -> 天照 | L18: =VLOOKUP(J18,[2]特效需求!A$5:G$56,7,FALSE) -> 对敌方单体造成灵魂力%的光属性魔法伤害， 造成伤害时，在x秒内对敌人造成流血效果， 流血效果持续期间，每秒造成灵魂力%的伤害。
A19: 10019 | B19: 孔谦 | F19: 10019 | G19: 1 | H19: 1 | I19: 1001911 | J19: 孔谦 | K19: =VLOOKUP(J19,[2]特效需求!$A$5:$F$5664,6,0) -> 辰变 | L19: =VLOOKUP(J19,[2]特效需求!A$5:G$56,7,FALSE) -> 对敌方单体造成灵魂力%的风属性物理伤害， 施展技能后，在x秒内增加自身%灵魂力，%的暴击伤害。
A20: 10020 | B20: 颜无雍 | F20: 10020 | G20: 1 | H20: 1 | I20: 1002011 | J20: 颜无雍 | K20: =VLOOKUP(J20,[2]特效需求!$A$5:$F$5664,6,0) -> 天回 | L20: =VLOOKUP(J20,[2]特效需求!A$5:G$56,7,FALSE) -> 对随机3名敌人造成灵魂力%的火属性物理伤害， 为随机恢复2名友方恢复灵魂力%的生命。
A21: 10021 | B21: 岑以璇 | F21: 10021 | G21: 1 | H21: 1 | I21: 1002111 | J21: 岑以璇 | K21: =VLOOKUP(J21,[2]特效需求!$A$5:$F$5664,6,0) -> 水玉缚灵 | L21: =VLOOKUP(J21,[2]特效需求!A$5:G$56,7,FALSE) -> 对敌方单体造成灵魂力%的水属性魔法伤害， 造成伤害时，有%的概率（+效果命中）眩晕x秒。
A22: 10022 | B22: 颜无诡 | F22: 10022 | G22: 1 | H22: 1 | I22: 1002211 | J22: 颜无诡 | K22: =VLOOKUP(J22,[2]特效需求!$A$5:$F$5664,6,0) -> 煞气 | L22: =VLOOKUP(J22,[2]特效需求!A$5:G$56,7,FALSE) -> 对敌方单体造成灵魂力%的风属性魔法伤害， 造成伤害时，有%的概率（+效果命中）眩晕x秒。
A23: 10023 | B23: 荧荧 | F23: 10023 | G23: 1 | H23: 1 | I23: 1002311 | J23: 荧荧 | K23: =VLOOKUP(J23,[2]特效需求!$A$5:$F$5664,6,0) -> 雷罚 | L23: =VLOOKUP(J23,[2]特效需求!A$5:G$56,7,FALSE) -> 对敌方单体造成灵魂力%的光属性魔法伤害， 在x秒内，抗性增加%
A24: 10024 | B24: 许槿然 | F24: 10024 | G24: 1 | H24: 1 | I24: 1002411 | J24: 许槿然 | K24: =VLOOKUP(J24,[2]特效需求!$A$5:$F$5664,6,0) -> 风烈打 | L24: =VLOOKUP(J24,[2]特效需求!A$5:G$56,7,FALSE) -> 对敌方单体造成灵魂力%的风属性物理伤害， 造成伤害时，有%的概率（+效果命中）眩晕x秒。
A25: 10025 | B25: 唐萱 | F25: 10025 | G25: 1 | H25: 1 | I25: 1002511 | J25: =VLOOKUP(F25,$A:$B,2,0) -> 唐萱 | K25: =VLOOKUP(J25,[2]特效需求!$A$5:$F$5664,6,0) -> 宣火符 | L25: =VLOOKUP(J25,[2]特效需求!A$5:G$56,7,FALSE) -> 对敌方单体造成灵魂力%的火属性魔法伤害， 造成伤害时，有%的概率（+效果命中）眩晕x秒。
A26: 10026 | B26: 孙晴 | F26: 10026 | G26: 1 | H26: 1 | I26: 1002611 | J26: 孙晴 | K26: =VLOOKUP(J26,[2]特效需求!$A$5:$F$5664,6,0) -> 敲山震虎 | L26: =VLOOKUP(J26,[2]特效需求!A$5:G$56,7,FALSE) -> 对随机2名敌方造成灵魂力%的光属性物理伤害， 对天罚类妖灵师造成额外%伤害。
A27: 10027 | B27: 宁月 | F27: 10027 | G27: 1 | H27: 1 | I27: 1002711 | J27: 宁月 | K27: =VLOOKUP(J27,[2]特效需求!$A$5:$F$5664,6,0) -> 应援 | L27: =VLOOKUP(J27,[2]特效需求!A$5:G$56,7,FALSE) -> 对敌方单体造成灵魂力%的光属性物理伤害， 为随机1名友方恢复灵魂力%的生命。
A28: 10028 | B28: 紫川 | F28: 10028 | G28: 1 | H28: 1 | I28: 1002811 | J28: 紫川 | K28: =VLOOKUP(J28,[2]特效需求!$A$5:$F$5664,6,0) -> 落英之舞 | L28: =VLOOKUP(J28,[2]特效需求!A$5:G$56,7,FALSE) -> 对随机2名敌方造成灵魂力%的光属性魔法伤害， 对武卫类妖灵师造成额外%伤害。
A29: 10029 | B29: 晏息 | F29: 10029 | G29: 1 | H29: 1 | I29: 1002911 | J29: =VLOOKUP(F29,$A:$B,2,0) -> 晏息 | K29: =VLOOKUP(J29,[2]特效需求!$A$5:$F$5664,6,0) -> 昙华动地 | L29: =VLOOKUP(J29,[2]特效需求!A$5:G$56,7,FALSE) -> 对随机2名敌方造成灵魂力%的地属性魔法伤害。
A30: 10030 | B30: 瑶瑶 | F30: 10030 | G30: 1 | H30: 1 | I30: 1003011 | J30: 瑶瑶 | K30: =VLOOKUP(J30,[2]特效需求!$A$5:$F$5664,6,0) -> 碧砂 | L30: =VLOOKUP(J30,[2]特效需求!A$5:G$56,7,FALSE) -> 对敌方单体造成灵魂力%的风属性魔法伤害， 造成伤害时，有%的概率（+效果命中）沉默x秒。
A31: 10031 | B31: 贾裴武 | F31: 10031 | G31: 1 | H31: 1 | I31: 1003111 | J31: 贾裴武 | K31: =VLOOKUP(J31,[2]特效需求!$A$5:$F$5664,6,0) -> 破邪二连 | L31: =VLOOKUP(J31,[2]特效需求!A$5:G$56,7,FALSE) -> 对随机2名敌方造成灵魂力%的地属性物理伤害， 对秘法类妖灵师造成额外%伤害。
A32: 10032 | B32: 雷燕 | F32: 10032 | G32: 1 | H32: 1 | I32: 1003211 | J32: 雷燕 | K32: =VLOOKUP(J32,[2]特效需求!$A$5:$F$5664,6,0) -> 天雷地火 | L32: =VLOOKUP(J32,[2]特效需求!A$5:G$56,7,FALSE) -> 对敌方单体造成灵魂力%的地属性物理伤害， 造成伤害时，在x秒内对敌人造成燃烧效果， 燃烧效果持续期间，每秒造成灵魂力%的伤害。
A33: 10033 | B33: 辛夷 | F33: 10033 | G33: 1 | H33: 1 | I33: 1003311 | J33: 辛夷 | K33: =VLOOKUP(J33,[2]特效需求!$A$5:$F$5664,6,0) -> 隐遁 | L33: =VLOOKUP(J33,[2]特效需求!A$5:G$56,7,FALSE) -> 对随机2名敌方造成灵魂力%的地属性物理伤害， 对武卫类妖灵师造成额外%伤害。
A34: 10034 | B34: 伏冥 | F34: 10034 | G34: 1 | H34: 1 | I34: 1003411 | J34: 伏冥 | K34: =VLOOKUP(J34,[2]特效需求!$A$5:$F$5664,6,0) -> 辟魂 | L34: =VLOOKUP(J34,[2]特效需求!A$5:G$56,7,FALSE) -> 对敌方单体造成灵魂力%的暗属性魔法伤害， 造成伤害时，有%的概率（+效果命中）眩晕x秒。
A35: 10035 | B35: 司空染 | F35: 10035 | G35: 1 | H35: 1 | I35: 1003511 | J35: 司空染 | K35: =VLOOKUP(J35,[2]特效需求!$A$5:$F$5664,6,0) -> 血影迷踪 | L35: =VLOOKUP(J35,[2]特效需求!A$5:G$56,7,FALSE) -> 对随机3名敌方造成灵魂力%的暗属性物理伤害， 有%的概率（+效果命中）对生花类妖灵师造成虚弱效果。
A36: 10036 | B36: 解幽 | F36: 10036 | G36: 1 | H36: 1 | I36: 1003611 | J36: 解幽 | K36: =VLOOKUP(J36,[2]特效需求!$A$5:$F$5664,6,0) -> 深海冥灵 | L36: =VLOOKUP(J36,[2]特效需求!A$5:G$56,7,FALSE) -> 对随机2名敌方造成灵魂力%的水属性魔法伤害， 对天罚类妖灵师造成额外%伤害。
A37: 10037 | B37: 薛苓 | F37: 10037 | G37: 1 | H37: 1 | I37: 1003711 | J37: 薛苓 | K37: =VLOOKUP(J37,[2]特效需求!$A$5:$F$5664,6,0) -> 凝霜箭 | L37: =VLOOKUP(J37,[2]特效需求!A$5:G$56,7,FALSE) -> 对敌方单体造成灵魂力%的水属性物理伤害， 在x秒内，自身抗性增加%
A38: 10038 | B38: 常申 | F38: 10038 | G38: 1 | H38: 1 | I38: 1003811 | J38: 常申 | K38: =VLOOKUP(J38,[2]特效需求!$A$5:$F$5664,6,0) -> 火相炎流 | L38: =VLOOKUP(J38,[2]特效需求!A$5:G$56,7,FALSE) -> 对敌方单体造成灵魂力%的火属性魔法伤害， 造成伤害时，武卫类妖灵师降低%抗性，降低%护甲。
A39: 10039 | B39: 呼延腾 | F39: 10039 | G39: 1 | H39: 1 | I39: 1003911 | J39: 呼延腾 | K39: =VLOOKUP(J39,[2]特效需求!$A$5:$F$5664,6,0) -> 寒芒刺 | L39: =VLOOKUP(J39,[2]特效需求!A$5:G$56,7,FALSE) -> 对敌方单体造成灵魂力%的水属性物理伤害， 造成伤害时，在x秒内降低敌人护甲%
A40: 10040 | B40: 冉宜 | F40: 10040 | G40: 1 | H40: 1 | I40: 1004011 | J40: 冉宜 | K40: =VLOOKUP(J40,[2]特效需求!$A$5:$F$5664,6,0) -> 煌炎斩 | L40: =VLOOKUP(J40,[2]特效需求!A$5:G$56,7,FALSE) -> 对随机2名敌人造成灵魂力%的火属性物理伤害， 对玄策类妖灵师造成额外%伤害。
A41: 10041 | B41: 孟灿 | F41: 10041 | G41: 1 | H41: 1 | I41: 1004111 | J41: 孟灿 | K41: =VLOOKUP(J41,[2]特效需求!$A$5:$F$5664,6,0) -> 烈虎归山 | L41: =VLOOKUP(J41,[2]特效需求!A$5:G$56,7,FALSE) -> 对敌方单体造成灵魂力%的火属性物理伤害， 造成伤害的%转化为生命
A42: 10042 | B42: 叶辽 | F42: 10042 | G42: 1 | H42: 1 | I42: 1004211 | J42: 叶辽 | K42: =VLOOKUP(J42,[2]特效需求!$A$5:$F$5664,6,0) -> 寻鹰剑 | L42: =VLOOKUP(J42,[2]特效需求!A$5:G$56,7,FALSE) -> 对随机2名敌人造成灵魂力%的风属性物理伤害。
A43: 10043 | B43: 乌廉 | F43: 10043 | G43: 1 | H43: 1 | I43: 1004311 | J43: 乌廉 | K43: =VLOOKUP(J43,[2]特效需求!$A$5:$F$5664,6,0) -> 侵染之刃 | L43: =VLOOKUP(J43,[2]特效需求!A$5:G$56,7,FALSE) -> 对敌方单体造成灵魂力%的水属性物理伤害， 造成伤害时，在x秒内对敌人造成中毒效果， 中毒效果持续期间，每秒造成灵魂力%的伤害。
A44: 10044 | B44: 姜燧 | F44: 10044 | G44: 1 | H44: 1 | I44: 1004411 | J44: 姜燧 | K44: =VLOOKUP(J44,[2]特效需求!$A$5:$F$5664,6,0) -> 绝息 | L44: =VLOOKUP(J44,[2]特效需求!A$5:G$56,7,FALSE) -> 对随机2名敌人造成灵魂力%的暗属性魔法伤害。 对生花类妖灵师造成额外%伤害。
A45: 10045 | B45: 苏可 | F45: 10045 | G45: 1 | H45: 1 | I45: 1004511 | J45: 苏可 | K45: =VLOOKUP(J45,[2]特效需求!$A$5:$F$5664,6,0) -> 援应 | L45: =VLOOKUP(J45,[2]特效需求!A$5:G$56,7,FALSE) -> 对敌方单体造成灵魂力%的风属性魔法伤害， 为生命比例最低的友方恢复灵魂力%的生命。
A46: 10046 | B46: 林越 | F46: 10046 | G46: 1 | H46: 1 | I46: 1004611 | J46: 林越 | K46: =VLOOKUP(J46,[2]特效需求!$A$5:$F$5664,6,0) -> 光元刃 | L46: =VLOOKUP(J46,[2]特效需求!A$5:G$56,7,FALSE) -> 对随机2名敌人造成灵魂力%的光属性魔法伤害。
A47: 10047 | B47: 赤肥肥 | F47: 10047 | G47: 1 | H47: 1 | I47: 1004711 | J47: 赤肥肥 | K47: =VLOOKUP(J47,[2]特效需求!$A$5:$F$5664,6,0) -> 焦热 | L47: =VLOOKUP(J47,[2]特效需求!A$5:G$56,7,FALSE) -> 对随机2名敌人造成灵魂力%的火属性物理伤害。
A48: 10048 | B48: 银肥肥 | F48: 10048 | G48: 1 | H48: 1 | I48: 1004811 | J48: 银肥肥 | K48: =VLOOKUP(J48,[2]特效需求!$A$5:$F$5664,6,0) -> 吹息 | L48: =VLOOKUP(J48,[2]特效需求!A$5:G$56,7,FALSE) -> 对敌方单体造成灵魂力%的风属性物理伤害。
A49: 10049 | B49: 苍肥肥 | F49: 10049 | G49: 1 | H49: 1 | I49: 1004911 | J49: 苍肥肥 | K49: =VLOOKUP(J49,[2]特效需求!$A$5:$F$5664,6,0) -> 逐浪 | L49: =VLOOKUP(J49,[2]特效需求!A$5:G$56,7,FALSE) -> 对敌方单体造成灵魂力%的水属性魔法伤害。
A50: 10050 | B50: 金肥肥 | F50: 10050 | G50: 1 | H50: 1 | I50: 1005011 | J50: 金肥肥 | K50: =VLOOKUP(J50,[2]特效需求!$A$5:$F$5664,6,0) -> 岩落 | L50: =VLOOKUP(J50,[2]特效需求!A$5:G$56,7,FALSE) -> 对随机2名敌人造成灵魂力%的地属性魔法伤害。
A51: 10051 | B51: 阳魔 | F51: 10051 | G51: 1 | H51: 1 | I51: 1005111 | J51: 阳魔 | K51: =VLOOKUP(J51,[2]特效需求!$A$5:$F$5664,6,0) -> 震元 | L51: =VLOOKUP(J51,[2]特效需求!A$5:G$56,7,FALSE) -> 对敌方单体造成灵魂力%的光属性物理伤害。
A52: 10052 | B52: 阴魔 | F52: 10052 | G52: 1 | H52: 1 | I52: 1005211 | J52: 阴魔 | K52: =VLOOKUP(J52,[2]特效需求!$A$5:$F$5664,6,0) -> 混沌 | L52: =VLOOKUP(J52,[2]特效需求!A$5:G$56,7,FALSE) -> 对敌方单体造成灵魂力%的暗属性魔法伤害。
F53: 10001 | G53: 2 | H53: 1 | I53: 1000121 | J53: =VLOOKUP(F53,$A:$B,2,0) -> 石御霏 | K53: =VLOOKUP(J53,[2]特效需求!A$5:I$56,9,0) -> 震岳 | L53: =VLOOKUP(J53,[2]特效需求!A$5:J$56,10,0) -> 对敌方单体造成灵魂力%的水属性物理伤害， 造成伤害时，有%的概率(+效果命中)眩晕x秒。
F54: 10002 | G54: 2 | H54: 1 | I54: 1000221 | J54: =VLOOKUP(F54,$A:$B,2,0) -> 楚恒 | K54: =VLOOKUP(J54,[2]特效需求!A$5:I$56,9,0) -> 白虎风涛 | L54: =VLOOKUP(J54,[2]特效需求!A$5:J$56,10,0) -> 对随机2名敌方造成灵魂力%的风属性物理伤害， 自身在x秒内获得最大生命%的伤害吸收盾 护盾消失时，对随机1名敌人造成护盾吸收伤害的80%。
F55: 10003 | G55: 2 | H55: 1 | I55: 1000321 | J55: =VLOOKUP(F55,$A:$B,2,0) -> 夏侯鸿天 | K55: =VLOOKUP(J55,[2]特效需求!A$5:I$56,9,0) -> 裂山贯云 | L55: =VLOOKUP(J55,[2]特效需求!A$5:J$56,10,0) -> 对敌方单体造成灵魂力%的地属性物理伤害， 造成伤害时，在x秒内抗性降低% 施展技能后，在x秒内有%的概率对自己施展嘲讽
F56: 10004 | G56: 2 | H56: 1 | I56: 1000421 | J56: 应茹 | K56: =VLOOKUP(J56,[2]特效需求!A$5:I$56,9,0) -> 天咏诀 | L56: =VLOOKUP(J56,[2]特效需求!A$5:J$56,10,0) -> 对敌方全体造成灵魂力%的风属性魔法伤害， 在x秒内，全体队友每秒恢复灵魂力%的生命 技能满级：每次恢复生命时，有%的概率额外恢复%生命
F57: 10005 | G57: 2 | H57: 1 | I57: 1000521 | J57: 端木葵 | K57: =VLOOKUP(J57,[2]特效需求!A$5:I$56,9,0) -> 百卉含英 | L57: =VLOOKUP(J57,[2]特效需求!A$5:J$56,10,0) -> 对随机3名敌人造成灵魂力%的地属性魔法伤害， 施展技能后，全体友方在x秒内，每秒持续恢复灵魂力%的生命
F58: 10006 | G58: 2 | H58: 1 | I58: 1000621 | J58: 兰卿 | K58: =VLOOKUP(J58,[2]特效需求!A$5:I$56,9,0) -> 焚心引 | L58: =VLOOKUP(J58,[2]特效需求!A$5:J$56,10,0) -> 对敌方全体造成灵魂力%的火属性魔法伤害， 受到伤害时，在x秒内灵魂力降低%
F59: 10007 | G59: 2 | H59: 1 | I59: 1000721 | J59: 靖之 | K59: =VLOOKUP(J59,[2]特效需求!A$5:I$56,9,0) -> 轮转之海 | L59: =VLOOKUP(J59,[2]特效需求!A$5:J$56,10,0) -> 对敌方单体造成灵魂力%的水属性物理伤害， 清除CD最长的1名友军立刻成可释放技能， 技能满级：造成伤害后，虚弱敌人x秒
F60: 10008 | G60: 2 | H60: 1 | I60: 1000821 | J60: 白梦凡 | K60: =VLOOKUP(J60,[2]特效需求!A$5:I$56,9,0) -> 无尽莲塘 | L60: =VLOOKUP(J60,[2]特效需求!A$5:J$56,10,0) -> 对敌方全体造成灵魂力%的光属性魔法伤害， 造成伤害时，有%的概率（+效果命中）晕眩敌方，持续x秒 技能满级：造成伤害后，降低目标暴击率，提升自己灵魂力
F61: 10009 | G61: 2 | H61: 1 | I61: 1000921 | J61: 祁菲 | K61: =VLOOKUP(J61,[2]特效需求!A$5:I$56,9,0) -> 炎冥锁狱 | L61: =VLOOKUP(J61,[2]特效需求!A$5:J$56,10,0) -> 对敌方全体造成灵魂力%的暗属性物理伤害， 对燃烧效果的敌人造成额外伤害
F62: 10010 | G62: 2 | H62: 1 | I62: 1001021 | J62: 颜祈佳 | K62: =VLOOKUP(J62,[2]特效需求!A$5:I$56,9,0) -> 龙兴之潮 | L62: =VLOOKUP(J62,[2]特效需求!A$5:J$56,10,0) -> 对敌方全体造成灵魂力%的水属性魔法伤害， 造成伤害后，有%的概率（+效果命中）增加随机2名敌人的冷却时间
F63: 10011 | G63: 2 | H63: 1 | I63: 1001121 | J63: 叶延 | K63: =VLOOKUP(J63,[2]特效需求!A$5:I$56,9,0) -> 缚傀诀 | L63: =VLOOKUP(J63,[2]特效需求!A$5:J$56,10,0) -> 对敌方全体造成灵魂力%的地属性魔法伤害， 对中毒目标有%的概率（+效果命中）眩晕x秒
F64: 10012 | G64: 2 | H64: 1 | I64: 1001221 | J64: 慕容子期 | K64: =VLOOKUP(J64,[2]特效需求!A$5:I$56,9,0) -> 断雨 | L64: =VLOOKUP(J64,[2]特效需求!A$5:J$56,10,0) -> 对血量最低的2名敌人造成灵魂力%的火属性物理伤害， 造成伤害后，有%的概率（+效果命中）使得对方x秒禁疗。
F65: 10013 | G65: 2 | H65: 1 | I65: 1001321 | J65: 云灵 | K65: =VLOOKUP(J65,[2]特效需求!A$5:I$56,9,0) -> 芙蓉箭雨 | L65: =VLOOKUP(J65,[2]特效需求!A$5:J$56,10,0) -> 对灵魂力最高的2名敌人造成灵魂力%的地属性物理伤害， 有%的概率造成一次额外伤害，最多追加x次
F66: 10014 | G66: 2 | H66: 1 | I66: 1001421 | J66: 耿陶 | K66: =VLOOKUP(J66,[2]特效需求!A$5:I$56,9,0) -> 画龙点睛 | L66: =VLOOKUP(J66,[2]特效需求!A$5:J$56,10,0) -> 对敌方随机4名敌人造成灵魂力%的暗属性物理伤害， 处于沉默状态的敌人额外造成%伤害。
F67: 10015 | G67: 2 | H67: 1 | I67: 1001521 | J67: 云 | K67: =VLOOKUP(J67,[2]特效需求!A$5:I$56,9,0) -> 幻影预兆 | L67: =VLOOKUP(J67,[2]特效需求!A$5:J$56,10,0) -> 对随机2名敌人造成灵魂力%的光属性魔法伤害， 造成伤害时，在x秒内偷取随机一名受到伤害的敌方%的灵魂力 技能升满：偷取灵魂力的效果持续期间，增加自身%的暴击伤害
F68: 10016 | G68: 2 | H68: 1 | I68: 1001621 | J68: 岑以航 | K68: =VLOOKUP(J68,[2]特效需求!A$5:I$56,9,0) -> 禁焰觉醒 | L68: =VLOOKUP(J68,[2]特效需求!A$5:J$56,10,0) -> 对随机3名敌方造成灵魂力%的火属性魔法伤害， 造成伤害时，若带有持续恢复效果，则额外造成%的伤害 自身在x秒内护甲降低%，灵魂力提升%
F69: 10017 | G69: 2 | H69: 1 | I69: 1001721 | J69: =VLOOKUP(F69,$A:$B,2,0) -> 影蓟 | K69: =VLOOKUP(J69,[2]特效需求!A$5:I$56,9,0) -> 常世之暗 | L69: =VLOOKUP(J69,[2]特效需求!A$5:J$56,10,0) -> 对随机4名敌人造成灵魂力%的暗属性魔法伤害， 对沉默敌人额外造成%伤害。
F70: 10018 | G70: 2 | H70: 1 | I70: 1001821 | J70: 朱贺 | K70: =VLOOKUP(J70,[2]特效需求!A$5:I$56,9,0) -> 剜心刺骨 | L70: =VLOOKUP(J70,[2]特效需求!A$5:J$56,10,0) -> 对生命比例最低的敌人造成灵魂力%的光属性魔法伤害， 造成伤害时，在x秒内偷取对方%的灵魂力， 造成伤害时，在x秒内对敌人造成流血效果， 流血效果持续期间，每秒造成灵魂力%的伤害。
F71: 10019 | G71: 2 | H71: 1 | I71: 1001921 | J71: 孔谦 | K71: =VLOOKUP(J71,[2]特效需求!A$5:I$56,9,0) -> 凭虚御风 | L71: =VLOOKUP(J71,[2]特效需求!A$5:J$56,10,0) -> 对敌方全体造成灵魂力%的风属性物理伤害， 施展技能后，减少我方全体基础冷却时间x秒。
F72: 10020 | G72: 2 | H72: 1 | I72: 1002021 | J72: 颜无雍 | K72: =VLOOKUP(J72,[2]特效需求!A$5:I$56,9,0) -> 白炎离火 | L72: =VLOOKUP(J72,[2]特效需求!A$5:J$56,10,0) -> 对敌方全体造成灵魂力%的火属性物理伤害， 全体友方x秒内受到伤害降低%
F73: 10021 | G73: 2 | H73: 1 | I73: 1002121 | J73: 岑以璇 | K73: =VLOOKUP(J73,[2]特效需求!A$5:I$56,9,0) -> 深渊流葬 | L73: =VLOOKUP(J73,[2]特效需求!A$5:J$56,10,0) -> 对敌方全体造成灵魂力%的水属性魔法伤害， 造成伤害时，有%的概率使得随机2名敌人x秒内致盲效果， 致盲效果持续期间，点击技与滑动技无法应用指定目标效果
F74: 10022 | G74: 2 | H74: 1 | I74: 1002221 | J74: 颜无诡 | K74: =VLOOKUP(J74,[2]特效需求!A$5:I$56,9,0) -> 侵风摧魂 | L74: =VLOOKUP(J74,[2]特效需求!A$5:J$56,10,0) -> 对生命比例最高的敌人造成灵魂力%的风属性魔法伤害 造成的击杀敌人时，敌方全体受到该次伤害%的伤害
F75: 10023 | G75: 2 | H75: 1 | I75: 1002321 | J75: 荧荧 | K75: =VLOOKUP(J75,[2]特效需求!A$5:I$56,9,0) -> 苍穹天雷 | L75: =VLOOKUP(J75,[2]特效需求!A$5:J$56,10,0) -> 对敌方全体造成灵魂力%的光属性魔法伤害， 造成伤害后，对目标附加荧光，最多叠加10层 对携带荧光的敌人造成伤害时，每层荧光使得本次伤害增加10%。
F76: 10024 | G76: 2 | H76: 1 | I76: 1002421 | J76: 许槿然
F77: 10025 | G77: 2 | H77: 1 | I77: 1002521 | J77: 唐萱
F78: 10026 | G78: 2 | H78: 1 | I78: 1002621 | J78: 孙晴 | K78: =VLOOKUP(J78,[2]特效需求!A$5:I$56,9,0) -> 崩雷式 | L78: =VLOOKUP(J78,[2]特效需求!A$5:J$56,10,0) -> 对随机3名敌方造成灵魂力%的光属性物理伤害， 针对眩晕目标，暴击时，造成额外%的伤害。
F79: 10027 | G79: 2 | H79: 1 | I79: 1002721 | J79: 宁月 | K79: =VLOOKUP(J79,[2]特效需求!A$5:I$56,9,0) -> 兔兔拳 | L79: =VLOOKUP(J79,[2]特效需求!A$5:J$56,10,0) -> 对随机2名敌方造成灵魂力%的光属性物理伤害， 在x秒内，自身暴击率提高%
F80: 10028 | G80: 2 | H80: 1 | I80: 1002821 | J80: 紫川 | K80: =VLOOKUP(J80,[2]特效需求!A$5:I$56,9,0) -> 月舞灵息 | L80: =VLOOKUP(J80,[2]特效需求!A$5:J$56,10,0) -> 对敌方单体造成灵魂力%的光属性魔法伤害， 造成伤害暴击时，降低1秒冷却时间。
F81: 10029 | G81: 2 | H81: 1 | I81: 1002921 | J81: =VLOOKUP(F81,$A:$B,2,0) -> 晏息
F82: 10030 | G82: 2 | H82: 1 | I82: 1003021 | J82: 瑶瑶
F83: 10031 | G83: 2 | H83: 1 | I83: 1003121 | J83: 贾裴武
F84: 10032 | G84: 2 | H84: 1 | I84: 1003221 | J84: 雷燕
F85: 10033 | G85: 2 | H85: 1 | I85: 1003321 | J85: 辛夷
F86: 10034 | G86: 2 | H86: 1 | I86: 1003421 | J86: 伏冥 | K86: =VLOOKUP(J86,[2]特效需求!A$5:I$56,9,0) -> 夺形之雾 | L86: =VLOOKUP(J86,[2]特效需求!A$5:J$56,10,0) -> 对敌方全体造成灵魂力%的暗属性魔法伤害。
F87: 10035 | G87: 2 | H87: 1 | I87: 1003521 | J87: 司空染 | K87: =VLOOKUP(J87,[2]特效需求!A$5:I$56,9,0) -> 沥血诛心 | L87: =VLOOKUP(J87,[2]特效需求!A$5:J$56,10,0) -> 对生命比例最低的敌方造成灵魂力%的暗属性物理伤害，
F88: 10036 | G88: 2 | H88: 1 | I88: 1003621 | J88: 解幽
F89: 10037 | G89: 2 | H89: 1 | I89: 1003721 | J89: 薛苓
F90: 10038 | G90: 2 | H90: 1 | I90: 1003821 | J90: 常申
F91: 10039 | G91: 2 | H91: 1 | I91: 1003921 | J91: 呼延腾
F92: 10040 | G92: 2 | H92: 1 | I92: 1004021 | J92: 冉宜
F93: 10041 | G93: 2 | H93: 1 | I93: 1004121 | J93: 孟灿
F94: 10042 | G94: 2 | H94: 1 | I94: 1004221 | J94: 叶辽
F95: 10043 | G95: 2 | H95: 1 | I95: 1004321 | J95: 乌廉
F96: 10044 | G96: 2 | H96: 1 | I96: 1004421 | J96: 姜燧 | K96: =VLOOKUP(J96,[2]特效需求!A$5:I$56,9,0) -> 化灵灭影 | L96: =VLOOKUP(J96,[2]特效需求!A$5:J$56,10,0) -> 对3名敌人造成灵魂力%的暗属性魔法伤害。 针对处于燃烧或流血状态的敌人，伤害增加%。
F97: 10045 | G97: 2 | H97: 1 | I97: 1004521 | J97: 苏可
F98: 10046 | G98: 2 | H98: 1 | I98: 1004621 | J98: 林越 | K98: =VLOOKUP(J98,[2]特效需求!A$5:I$56,9,0) -> 月曜闪裂 | L98: =VLOOKUP(J98,[2]特效需求!A$5:J$56,10,0) -> 对敌方单体造成灵魂力%的光属性魔法伤害， 造成伤害时，在x秒内对敌人造成流血效果， 流血效果持续期间，每秒造成灵魂力%的伤害。
F99: 10047 | G99: 2 | H99: 1 | I99: 1004721 | J99: 赤肥肥
F100: 10048 | G100: 2 | H100: 1 | I100: 1004821 | J100: 银肥肥
F101: 10049 | G101: 2 | H101: 1 | I101: 1004921 | J101: 苍肥肥
F102: 10050 | G102: 2 | H102: 1 | I102: 1005021 | J102: 金肥肥
F103: 10051 | G103: 2 | H103: 1 | I103: 1005121 | J103: 阳魔
F104: 10052 | G104: 2 | H104: 1 | I104: 1005221 | J104: 阴魔

Sheet Sheet4
B1: Id | C1: Name | D1: ShortDesc | E1: Desc | F1: ChangeInfo | G1: Icon
B2: int | C2: string | D2: string | E2: string | F2: string | G2: int
B3: 2 | C3: 3 | D3: 3 | E3: 3 | F3: 3 | G3: 3
B4: 技能id | C4: 技能名称 | D4: 短描述 | E4: 技能描述 | F4: 技能改变内容 | G4: 技能图标 关联资源表
A5: 默认值 | B5: 0 | G5: 0
A6: 正确性校对
A7: 校对值
B8: 1000111 | C8: 凌甲 | D8: 用水源之力，护我躯体。 | E8: 对敌方单体造成<color=#b4595eFF>85%</color>水属性物理伤害， 有100%的概率对所有敌人造成<color=#4c805eFF>嘲讽效果</color>，持续5秒。 | F8: 等级2 额外提升双抗15%，持续4秒。 | G8: 201011
B9: 1000112 | C9: 凌甲 | D9: 用水源之力，护我躯体。 | E9: 对敌方单体造成<color=#b4595eFF>85%</color>水属性物理伤害， 有100%的概率对所有敌人造成<color=#4c805eFF>嘲讽效果</color>，持续5秒，技能释放后提升自身15%双抗，持续4秒。 | F9: 等级3 嘲讽效果持续时长提升至10秒，额外提升双抗20%，持续5秒。 | G9: 201012
B10: 1000113 | C10: 凌甲 | D10: 用水源之力，护我躯体。 | E10: 对敌方单体造成<color=#b4595eFF>85%</color>水属性物理伤害， 有100%的概率对所有敌人造成<color=#4c805eFF>嘲讽效果</color>，持续10秒，技能释放后提升自身20%双抗，持续6秒。 | F10: 等级4 物理伤害提升至108%，额外双抗提升至30%，持续时间延长至6秒。 | G10: 201013
B11: 1000114 | C11: 凌甲 | D11: 用水源之力，护我躯体。 | E11: 对敌方单体造成<color=#b4595eFF>108%</color>水属性物理伤害， 有100%的概率对所有敌人造成<color=#4c805eFF>嘲讽效果</color>，持续10秒，技能释放后提升自身30%双抗，持续6秒。 | G11: 201014
B12: 1000115 | C12: 凌甲 | D12: 用水源之力，护我躯体。 | G12: 201015
B13: 1000121 | C13: 震岳 | D13: 斩破水源之利刃。 | E13: 对敌方随机2人造成<color=#b4595eFF>165%</color>水属性物理伤害， 有40%概率<color=#4c805eFF>眩晕敌方</color>其中1人，持续3秒。 | F13: 等级2 物理伤害提升至185%。 | G13: 201021
B14: 1000122 | C14: 震岳 | D14: 斩破水源之利刃。 | E14: 对敌方随机2人造成<color=#b4595eFF>185%</color>水属性物理伤害， 有40%概率<color=#4c805eFF>眩晕敌方</color>其中1人，持续3秒。 | F14: 等级3 眩晕概率提升至60%，持续时间提升至4秒。 | G14: 201022
B15: 1000123 | C15: 震岳 | D15: 斩破水源之利刃。 | E15: 对敌方随机2人造成<color=#b4595eFF>185%</color>水属性物理伤害， 有60%概率<color=#4c805eFF>眩晕敌方</color>其中1人，持续4秒。 | F15: 等级4 物理伤害提升至205%，眩晕触发几率提升至60%，持续时间延长至5秒。 | G15: 201023
B16: 1000124 | C16: 震岳 | D16: 斩破水源之利刃。 | E16: 对敌方随机2人造成<color=#b4595eFF>205%</color>水属性物理伤害， 有60%概率<color=#4c805eFF>眩晕敌方</color>其中1人，持续5秒。 | G16: 201024
B17: 1000125 | C17: 震岳 | D17: 斩破水源之利刃。 | G17: 201025
B18: 1000211 | C18: 啸牙 | D18: 呼啸狂风的利齿。 | E18: 对敌方单体造成<color=#b4595eFF>105%</color>风属性物理伤害， 有80%的概率对所有敌人造成<color=#4c805eFF>嘲讽效果</color>，持续5秒。 | F18: 等级2 提升自身攻击10%，持续4秒。 | G18: 202011
B19: 1000212 | C19: 啸牙 | D19: 呼啸狂风的利齿。 | E19: 对敌方单体造成<color=#b4595eFF>105%</color>风属性物理伤害， 有80%的概率对所有敌人造成<color=#4c805eFF>嘲讽效果</color>，持续5秒，技能释放后提升自身10%攻击，持续4秒。 | F19: 等级3 嘲讽效果持续时间延长到10秒，提升自身攻击至15% | G19: 202012
B20: 1000213 | C20: 啸牙 | D20: 呼啸狂风的利齿。 | E20: 对敌方单体造成<color=#b4595eFF>105%</color>风属性物理伤害， 有80%的概率对所有敌人造成<color=#4c805eFF>嘲讽效果</color>，持续10秒，技能释放后提升自身15%攻击，持续4秒。 | F20: 等级4 物理伤害提升至135%，嘲讽效果持续延长至10秒，提升自身攻击至20%，持续时间延长至6秒。 | G20: 202013
B21: 1000214 | C21: 啸牙 | D21: 呼啸狂风的利齿。 | E21: 对敌方单体造成<color=#b4595eFF>135%</color>风属性物理伤害， 有80%的概率对所有敌人造成<color=#4c805eFF>嘲讽效果</color>，持续10秒，技能释放后提升自身20%攻击，持续6秒。 | G21: 202014
B22: 1000215 | C22: 啸牙 | D22: 呼啸狂风的利齿。 | G22: 202015
B23: 1000221 | C23: 白虎风涛 | D23: 剑齿的虎牙掀起凛冽的风涛。 | E23: 对敌方随机2人造成<color=#b4595eFF>135%</color>风属性物理伤害， 给自身添加最大生命40%的伤害吸收盾，持续4秒，盾消失的时候对随机1人反射吸收盾吸收的35%物理伤害。 | F23: 等级2 护盾消失的时候对随机1名敌方造成吸收伤害45%的物理伤害。 | G23: 202021
B24: 1000222 | C24: 白虎风涛 | D24: 剑齿的虎牙掀起凛冽的风涛。 | E24: 对敌方随机2人造成<color=#b4595eFF>135%</color>风属性物理伤害， 给自身添加最大生命40%的伤害吸收盾，持续4秒，盾消失的时候对随机1人反射吸收盾吸收的45%物理伤害。 | F24: 等级3 护盾强度提升至最大生命50%，持续时长提升至5秒。 | G24: 202022
B25: 1000223 | C25: 白虎风涛 | D25: 剑齿的虎牙掀起凛冽的风涛。 | E25: 对敌方随机2人造成<color=#b4595eFF>135%</color>风属性物理伤害， 给自身添加最大生命50%的伤害吸收盾，持续5秒，盾消失的时候对随机1人反射吸收盾吸收的45%物理伤害。 | F25: 等级4 物理伤害提升至166%，护盾强度提升至最大生命60%，持续时长提升至6秒。 | G25: 202023
B26: 1000224 | C26: 白虎风涛 | D26: 剑齿的虎牙掀起凛冽的风涛。 | E26: 对敌方随机2人造成<color=#b4595eFF>166%</color>风属性物理伤害， 给自身添加最大生命60%的伤害吸收盾，持续6秒，盾消失的时候对随机1人反射吸收盾吸收的45%物理伤害。 | G26: 202024
B27: 1000225 | C27: 白虎风涛 | D27: 剑齿的虎牙掀起凛冽的风涛。 | G27: 202025
B28: 1000311 | C28: 断鸿 | D28: 雁儿，上吧！ | E28: 对敌方单体造成<color=#b4595eFF>65%</color>地属性物理伤害， 将造成伤害的35%转化为自身生命。 | F28: 等级2 恢复生命提升至造成伤害的45%。 | G28: 203011
B29: 1000312 | C29: 断鸿 | D29: 雁儿，上吧！ | E29: 对敌方单体造成<color=#b4595eFF>65%</color>地属性物理伤害， 将造成伤害的45%转化为自身生命。 | F29: 等级3 物理伤害提升至85%。 | G29: 203012
B30: 1000313 | C30: 断鸿 | D30: 雁儿，上吧！ | E30: 对敌方单体造成<color=#b4595eFF>85%</color>地属性物理伤害， 将造成伤害的45%转化为自身生命。 | F30: 等级4 恢复生命提升至造成伤害的65%。 | G30: 203013
B31: 1000314 | C31: 断鸿 | D31: 雁儿，上吧！ | E31: 对敌方单体造成<color=#b4595eFF>85%</color>地属性物理伤害， 将造成伤害的65%转化为自身生命。 | G31: 203014
B32: 1000315 | C32: 断鸿 | D32: 雁儿，上吧！ | G32: 203015
B33: 1000321 | C33: 裂山贯云 | D33: 斩断山脉，击穿云彩。 | E33: 对敌方单体造成<color=#b4595eFF>65%</color>地属性物理伤害，有80%的概率对所有敌人造成<color=#4c805eFF>嘲讽效果</color>，持续6秒。 | F33: 等级2 额外削弱目标魔抗30%，持续3秒。 | G33: 203021
B34: 1000322 | C34: 裂山贯云 | D34: 斩断山脉，击穿云彩。 | E34: 对敌方单体造成<color=#b4595eFF>65%</color>地属性物理伤害，有80%的概率对所有敌人造成<color=#4c805eFF>嘲讽效果</color>，持续6秒。并削弱其魔抗45%，持续3秒。 | F34: 等级3 嘲讽概率提升至100%。持续时间延长至8秒。 | G34: 203022
B35: 1000323 | C35: 裂山贯云 | D35: 斩断山脉，击穿云彩。 | E35: 对敌方单体造成<color=#b4595eFF>65%</color>地属性物理伤害，有100%的概率对所有敌人造成<color=#4c805eFF>嘲讽效果</color>，持续8秒。并削弱其魔抗45%，持续3秒。 | F35: 等级4 物理伤害提升至90%，嘲讽持续时间延长至10秒，降低魔抗持续时间延长至5秒。 | G35: 203023
B36: 1000324 | C36: 裂山贯云 | D36: 斩断山脉，击穿云彩。 | E36: 对敌方单体造成<color=#b4595eFF>90%</color>地属性物理伤害，有100%的概率对所有敌人造成<color=#4c805eFF>嘲讽效果</color>，持续10秒。并削弱其魔抗45%，持续5秒。 | G36: 203024
B37: 1000325 | C37: 裂山贯云 | D37: 斩断山脉，击穿云彩。 | G37: 203025
B38: 1000411 | C38: 轻流 | D38: 温柔的清风将伴随着我们。 | E38: 对敌方单体造成<color=#b4595eFF>95%</color>风属性魔法伤害， 为当前生命最低的1名队友持续恢复生命攻击*60%，持续2秒。 | F38: 等级2持续恢复生命效果提升至攻击*80% | G38: 204011
B39: 1000412 | C39: 轻流 | D39: 温柔的清风将伴随着我们。 | E39: 对敌方单体造成<color=#b4595eFF>95%</color>风属性魔法伤害， 为当前生命最低的1名队友持续恢复生命攻击*80%，持续2秒。 | F39: 等级3 持续恢复效果持续时间延长至4秒。 | G39: 204012
B40: 1000413 | C40: 轻流 | D40: 温柔的清风将伴随着我们。 | E40: 对敌方单体造成<color=#b4595eFF>95%</color>风属性魔法伤害， 为当前生命最低的1名队友持续恢复生命攻击*80%，持续4秒。 | F40: 等级4 魔法伤害提升至120%。 | G40: 204013
B41: 1000414 | C41: 轻流 | D41: 温柔的清风将伴随着我们。 | E41: 对敌方单体造成<color=#b4595eFF>120%</color>风属性魔法伤害， 为当前生命最低的1名队友持续恢复生命攻击*80%，持续4秒。 | G41: 204014
B42: 1000415 | C42: 轻流 | D42: 温柔的清风将伴随着我们。 | G42: 204015
B43: 1000421 | C43: 天咏诀 | D43: 天空呀，借给我你的力量吧！ | E43: 对敌方全体造成<color=#b4595eFF>65%</color>风属性魔法伤害， 为全体队友持续恢复攻击*55%生命，持续3秒。 | F43: 等级2 魔法伤害提升至75%，为全体队友持续恢复攻击*66%生命。 | G43: 204021
B44: 1000422 | C44: 天咏诀 | D44: 天空呀，借给我你的力量吧！ | E44: 对敌方全体造成<color=#b4595eFF>75%</color>风属性魔法伤害， 为全体队友持续恢复攻击*66%生命，持续3秒。 | F44: 等级3 魔法伤害提升至90%，为全体队友持续恢复攻击*77%生命。 | G44: 204022
B45: 1000423 | C45: 天咏诀 | D45: 天空呀，借给我你的力量吧！ | E45: 对敌方全体造成<color=#b4595eFF>90%</color>风属性魔法伤害， 为全体队友持续恢复攻击*77%生命，持续3秒。 | F45: 等级4 魔法伤害提升至105%，为全体队友持续恢复攻击*88%生命。 | G45: 204023
B46: 1000424 | C46: 天咏诀 | D46: 天空呀，借给我你的力量吧！ | E46: 对敌方全体造成<color=#b4595eFF>105%</color>风属性魔法伤害， 为全体队友持续恢复攻击*88%生命，持续3秒。 | G46: 204024
B47: 1000425 | C47: 天咏诀 | D47: 天空呀，借给我你的力量吧！ | G47: 204025
B48: 1000511 | C48: 长槐琼灯 | D48: 圣木的光芒，指引着前方。 | E48: 对敌方单体造成<color=#b4595eFF>65%</color>地属性魔法伤害，恢复自身攻击*68%生命，。 | F48: 等级2 额外提升自己攻击20%，持续3秒。 | G48: 205011
B49: 1000512 | C49: 长槐琼灯 | D49: 圣木的光芒，指引着前方。 | E49: 对敌方单体造成<color=#b4595eFF>65%</color>地属性魔法伤害，恢复自身攻击*68%生命，并提升自己20%攻击，持续3秒。 | F49: 等级3 魔法伤害提升至85%，自身恢复效果增加至攻击力75%。 | G49: 205012
B50: 1000513 | C50: 长槐琼灯 | D50: 圣木的光芒，指引着前方。 | E50: 对敌方单体造成<color=#b4595eFF>85%</color>地属性魔法伤害，恢复自身攻击*78%生命，并提升自己20%攻击，持续3秒。 | F50: 等级4 自身恢复效果增加至攻击力98%，额外攻击提升至30%，效果持续延长至4秒。 | G50: 205013
B51: 1000514 | C51: 长槐琼灯 | D51: 圣木的光芒，指引着前方。 | E51: 对敌方单体造成<color=#b4595eFF>85%</color>地属性魔法伤害，恢复自身攻击*98%生命，并提升自己30%攻击，持续4秒。 | G51: 205014
B52: 1000515 | C52: 长槐琼灯 | D52: 圣木的光芒，指引着前方。 | G52: 205015
B53: 1000521 | C53: 百卉含英 | D53: 绽放的花儿释放生命的光芒吧！ | E53: 对敌方随机4人造成<color=#b4595eFF>78%</color>地属性魔法伤害，为全体队友恢复攻击*68%生命。 | F53: 等级2 魔法伤害提升至86%，为全体队友恢复攻击*74%生命。 | G53: 205021
B54: 1000522 | C54: 百卉含英 | D54: 绽放的花儿释放生命的光芒吧！ | E54: 对敌方随机4人造成<color=#b4595eFF>86%</color>地属性魔法伤害，为全体队友恢复攻击*74%生命。 | F54: 等级3 魔法伤害提升至96%，为全体队友恢复攻击*80%生。 | G54: 205022
B55: 1000523 | C55: 百卉含英 | D55: 绽放的花儿释放生命的光芒吧！ | E55: 对敌方随机4人造成<color=#b4595eFF>96%</color>地属性魔法伤害，为全体队友恢复攻击*80%生命。 | F55: 等级4 魔法伤害提升至120%，为全体队友恢复攻击*98%生命。 | G55: 205023
B56: 1000524 | C56: 百卉含英 | D56: 绽放的花儿释放生命的光芒吧！ | E56: 对敌方随机4人造成<color=#b4595eFF>120%</color>地属性魔法伤害，为全体队友恢复攻击*98%生命。 | G56: 205024
B57: 1000525 | C57: 百卉含英 | D57: 绽放的花儿释放生命的光芒吧！ | G57: 205025
B58: 1000611 | C58: 阳炎破阵曲 | D58: 动听的曲子也暗藏着杀气噢~ | E58: 对敌方全体造成<color=#b4595eFF>78%</color>火属性魔法伤害。 | F58: 等级2 额外增加我方全体攻击20%，持续3秒。 | G58: 206011
B59: 1000612 | C59: 阳炎破阵曲 | D59: 动听的曲子也暗藏着杀气噢~ | E59: 对敌方全体造成<color=#b4595eFF>78%</color>火属性魔法伤害， 增加我方全体攻击20%，持续3秒。 | F59: 等级3 魔法伤害提升至96%。 | G59: 206012
B60: 1000613 | C60: 阳炎破阵曲 | D60: 动听的曲子也暗藏着杀气噢~ | E60: 对敌方全体造成<color=#b4595eFF>96%</color>火属性魔法伤害， 增加我方全体攻击20%，持续3秒。 | F60: 等级4 额外增加攻击力效果提升至30%，效果持续延长至5秒。 | G60: 206013
B61: 1000614 | C61: 阳炎破阵曲 | D61: 动听的曲子也暗藏着杀气噢~ | E61: 对敌方全体造成<color=#b4595eFF>96%</color>火属性魔法伤害， 增加我方全体攻击30%，持续5秒。 | G61: 206014
B62: 1000615 | C62: 阳炎破阵曲 | D62: 动听的曲子也暗藏着杀气噢~ | G62: 206015
B63: 1000621 | C63: 焚心引 | D63: 在烈焰下焚烧殆尽才是你的命运。 | E63: 对敌方全体造成<color=#b4595eFF>70%</color>火属性魔法伤害， 降低其攻击10%，持续4秒。 | F63: 等级2 魔法伤害提升至80%。 | G63: 206021
B64: 1000622 | C64: 焚心引 | D64: 在烈焰下焚烧殆尽才是你的命运。 | E64: 对敌方全体造成<color=#b4595eFF>80%</color>火属性魔法伤害， 降低其攻击10%，持续4秒。 | F64: 等级3 魔法伤害提升至110%，降低攻击效果提升至15%。 | G64: 206022
B65: 1000623 | C65: 焚心引 | D65: 在烈焰下焚烧殆尽才是你的命运。 | E65: 对敌方全体造成<color=#b4595eFF>110%</color>火属性魔法伤害， 降低其攻击15%，持续4秒。 | F65: 等级4 魔法伤害提升至130%，降低其攻击持续时间延长至6秒。 | G65: 206023
B66: 1000624 | C66: 焚心引 | D66: 在烈焰下焚烧殆尽才是你的命运。 | E66: 对敌方全体造成<color=#b4595eFF>130%</color>火属性魔法伤害， 降低其攻击15%，持续6秒。 | G66: 206024
B67: 1000625 | C67: 焚心引 | D67: 在烈焰下焚烧殆尽才是你的命运。 | G67: 206025
B68: 1000711 | C68: 破甲裂 | D68: 你的甲胄，只剩碎片了！ | E68: 对敌方1名敌人造成3段<color=#b4595eFF>78%</color>水属性物理伤害。 | F68: 等级2 额外降低防御效果15%，持续时间延长至6秒。 | G68: 207011
B69: 1000712 | C69: 破甲裂 | D69: 你的甲胄，只剩碎片了！ | E69: 对敌方1名敌人造成3段<color=#b4595eFF>78%</color>水属性物理伤害， 并降低其防御15%，持续6秒。 | F69: 等级3 物理伤害提升至108%。降低防御效果增加至20%，持续时间延长至8秒。 | G69: 207012
B70: 1000713 | C70: 破甲裂 | D70: 你的甲胄，只剩碎片了！ | E70: 对敌方1名敌人造成3段<color=#b4595eFF>108%</color>水属性物理伤害， 并降低其防御20%，持续8秒。 | F70: 等级4 降低防御效果增加至30%，效果持续延长至10秒。 | G70: 207013
B71: 1000714 | C71: 破甲裂 | D71: 你的甲胄，只剩碎片了！ | E71: 对敌方1名敌人造成3段<color=#b4595eFF>108%</color>水属性物理伤害， 并降低其防御30%，持续10秒。 | G71: 207014
B72: 1000715 | C72: 破甲裂 | D72: 你的甲胄，只剩碎片了！ | G72: 207015
B73: 1000721 | C73: 轮转之海 | D73: 命运之轮开始转动。 | E73: 对敌方单体造成<color=#b4595eFF>100%</color>水属性物理伤害， 清除CD最长的1名友军的CD，立刻变成可释放技能状态。 | F73: 等级2 物理伤害提升至110% | G73: 207021
B74: 1000722 | C74: 轮转之海 | D74: 命运之轮开始转动。 | E74: 对敌方单体造成<color=#b4595eFF>110%</color>水属性物理伤害， 清除CD最长的1名友军的CD，立刻变成可释放技能状态。 | F74: 等级3 物理伤害提升至130% | G74: 207022
B75: 1000723 | C75: 轮转之海 | D75: 命运之轮开始转动。 | E75: 对敌方单体造成<color=#b4595eFF>130%</color>水属性物理伤害， 清除CD最长的1名友军的CD，立刻变成可释放技能状态。 | F75: 等级4 物理伤害提升至150% | G75: 207023
B76: 1000724 | C76: 轮转之海 | D76: 命运之轮开始转动。 | E76: 对敌方单体造成<color=#b4595eFF>150%</color>水属性物理伤害， 清除CD最长的1名友军的CD，立刻变成可释放技能状态。 | G76: 207024
B77: 1000725 | C77: 轮转之海 | D77: 命运之轮开始转动。 | G77: 207025
B78: 1000811 | C78: 幻境之瞳 | D78: 我的眼里，是世界的集合体。 | E78: 对敌方单体造成4段伤害<color=#b4595eFF>35%</color>光属性魔法伤害， 对生花造成额外30%伤害。 | F78: 等级2 每段魔法伤害提升至45%。 | G78: 208011
B79: 1000812 | C79: 幻境之瞳 | D79: 我的眼里，是世界的集合体。 | E79: 对敌方单体造成4段伤害<color=#b4595eFF>45%</color>光属性魔法伤害， 对生花造成额外30%伤害。 | F79: 等级3 对生花造成额外伤害提升至40%。 | G79: 208012
B80: 1000813 | C80: 幻境之瞳 | D80: 我的眼里，是世界的集合体。 | E80: 对敌方单体造成4段伤害<color=#b4595eFF>45%</color>光属性魔法伤害， 对生花造成额外40%伤害。 | F80: 等级4 每段的魔法伤害提升至60%，对生花造成额外伤害提升至50%。 | G80: 208013
B81: 1000814 | C81: 幻境之瞳 | D81: 我的眼里，是世界的集合体。 | E81: 对敌方单体造成4段伤害<color=#b4595eFF>60%</color>光属性魔法伤害， 对生花造成额外50%伤害。 | G81: 208014
B82: 1000815 | C82: 幻境之瞳 | D82: 我的眼里，是世界的集合体。 | G82: 208015
B83: 1000821 | C83: 无尽莲塘 | D83: 盛开的莲花，是光芒的象征。 | E83: 对敌方全体造成<color=#b4595eFF>60%</color>光属性魔法伤害， 有15%的概率<color=#4c805eFF>眩晕敌方</color>，持续2秒。 | F83: 等级2 魔法伤害提升至70%。 | G83: 208021
B84: 1000822 | C84: 无尽莲塘 | D84: 盛开的莲花，是光芒的象征。 | E84: 对敌方全体造成<color=#b4595eFF>70%</color>光属性魔法伤害， 有15%的概率<color=#4c805eFF>眩晕敌方</color>，持续2秒。 | F84: 等级3 晕眩概率提升至30%，持续时间延长至4秒。 | G84: 208022
B85: 1000823 | C85: 无尽莲塘 | D85: 盛开的莲花，是光芒的象征。 | E85: 对敌方全体造成<color=#b4595eFF>70%</color>光属性魔法伤害， 有30%的概率<color=#4c805eFF>眩晕敌方</color>，持续4秒。 | F85: 等级4 魔法伤害提升至85%。 | G85: 208023
B86: 1000824 | C86: 无尽莲塘 | D86: 盛开的莲花，是光芒的象征。 | E86: 对敌方全体造成<color=#b4595eFF>85%</color>光属性魔法伤害， 有30%的概率<color=#4c805eFF>眩晕敌方</color>，持续4秒。 | G86: 208024
B87: 1000825 | C87: 无尽莲塘 | D87: 盛开的莲花，是光芒的象征。 | G87: 208025
B88: 1000911 | C88: 黑符 | D88: 黑暗的深渊在等待着你。 | E88: 对敌方随机1人造成3段<color=#b4595eFF>64%</color>暗属性物理伤害， 并造成<color=#4c805eFF>燃烧效果</color>，每秒造成25%攻击的物理伤害，持续3秒。 | F88: 等级2 每段物理伤害提升至71%。 | G88: 209011
B89: 1000912 | C89: 黑符 | D89: 黑暗的深渊在等待着你。 | E89: 对敌方随机1人造成3段<color=#b4595eFF>71%</color>暗属性物理伤害， 并造成<color=#4c805eFF>燃烧效果</color>，每秒造成25%攻击的物理伤害，持续3秒。 | F89: 等级3 燃烧效果每秒造成的物理伤害提升至35%。 | G89: 209012
B90: 1000913 | C90: 黑符 | D90: 黑暗的深渊在等待着你。 | E90: 对敌方随机1人造成3段<color=#b4595eFF>71%</color>暗属性物理伤害， 并造成<color=#4c805eFF>燃烧效果</color>，每秒造成35%攻击的物理伤害，持续3秒。 | F90: 等级4 物理伤害提升至86%，燃烧效果持续时间增加至5秒。 | G90: 209013
B91: 1000914 | C91: 黑符 | D91: 黑暗的深渊在等待着你。 | E91: 对敌方随机1人造成3段<color=#b4595eFF>86%</color>暗属性物理伤害， 并造成<color=#4c805eFF>燃烧效果</color>，每秒造成35%攻击的物理伤害，持续5秒。 | G91: 209014
B92: 1000915 | C92: 黑符 | D92: 黑暗的深渊在等待着你。 | G92: 209015
B93: 1000921 | C93: 炎冥锁狱 | D93: 我会好好惩罚你的哟。 | E93: 对敌方全体造成<color=#b4595eFF>65%</color>暗属性物理伤害， 对<color=#4c805eFF>燃烧效果</color>的敌人造成额外伤害15%。 | F93: 等级2 物理伤害提升至75%。 | G93: 209021
B94: 1000922 | C94: 炎冥锁狱 | D94: 我会好好惩罚你的哟。 | E94: 对敌方全体造成<color=#b4595eFF>75%</color>暗属性物理伤害， 对<color=#4c805eFF>燃烧效果</color>的敌人造成额外伤害15%。 | F94: 等级3 物理伤害提升至90%，对燃烧效果的敌人造成额外伤害提升至25%。 | G94: 209022
B95: 1000923 | C95: 炎冥锁狱 | D95: 我会好好惩罚你的哟。 | E95: 对敌方全体造成<color=#b4595eFF>90%</color>暗属性物理伤害， 对<color=#4c805eFF>燃烧效果</color>的敌人造成额外伤害25%。 | F95: 等级4 物理伤害提升至105%，同时自身获得一层减伤50%护盾，护盾期间60%免疫控制，持续6秒。 | G95: 209023
B96: 1000924 | C96: 炎冥锁狱 | D96: 我会好好惩罚你的哟。 | E96: 对敌方全体造成<color=#b4595eFF>105%</color>暗属性物理伤害， 对<color=#4c805eFF>燃烧效果</color>的敌人造成额外伤害25%。 同时自身获得一层减伤50%护盾，护盾期间60%免疫控制，持续6秒。 | G96: 209024
B97: 1000925 | C97: 炎冥锁狱 | D97: 我会好好惩罚你的哟。 | G97: 209025
B98: 1001011 | C98: 涡流 | D98: 有水的地方，就是我的世界。 | E98: 对敌方1人造成2段<color=#b4595eFF>55%</color>水属性魔法伤害， 对武卫造成额外30%伤害。 | F98: 等级2 每段造成的魔法伤害提升至68%。 | G98: 210011
B99: 1001012 | C99: 涡流 | D99: 有水的地方，就是我的世界。 | E99: 对敌方1人造成2段<color=#b4595eFF>68%</color>水属性魔法伤害， 对武卫造成额外30%伤害。 | F99: 等级3 魔法伤害78%，对武卫类妖灵师造成的额外伤害增加至40%。 | G99: 210012
B100: 1001013 | C100: 涡流 | D100: 有水的地方，就是我的世界。 | E100: 对敌方1人造成2段<color=#b4595eFF>78%</color>水属性魔法伤害， 对武卫造成额外40%伤害。 | F100: 等级4 魔法伤害88%，对武卫类妖灵师造成的额外伤害增加至50%。 | G100: 210013
B101: 1001014 | C101: 涡流 | D101: 有水的地方，就是我的世界。 | E101: 对敌方1人造成2段<color=#b4595eFF>88%</color>水属性魔法伤害， 对武卫造成额外50%伤害。 | G101: 210014
B102: 1001015 | C102: 涡流 | D102: 有水的地方，就是我的世界。 | G102: 210015
B103: 1001021 | C103: 龙兴之潮 | D103: 让巨浪吞噬掉你们。 | E103: 对敌方全体造成<color=#b4595eFF>65%</color>水属性魔法伤害， 并有55%的概率增加随机1人重击CD+2秒。 | F103: 等级2 魔法伤害提升至76%。 | G103: 210021
B104: 1001022 | C104: 龙兴之潮 | D104: 让巨浪吞噬掉你们。 | E104: 对敌方全体造成<color=#b4595eFF>76%</color>水属性魔法伤害， 并有55%的概率增加随机1人重击CD+2秒。 | F104: 等级3 魔法伤害提升至86%，增加重击CD的概率提升至60%。 | G104: 210022
B105: 1001023 | C105: 龙兴之潮 | D105: 让巨浪吞噬掉你们。 | E105: 对敌方全体造成<color=#b4595eFF>86%</color>水属性魔法伤害， 并有60%的概率增加随机1人重击CD+2秒。 | F105: 等级4 魔法伤害提升至96%，增加重击CD的概率提升至70%。 | G105: 210023
B106: 1001024 | C106: 龙兴之潮 | D106: 让巨浪吞噬掉你们。 | E106: 对敌方全体造成<color=#b4595eFF>96%</color>水属性魔法伤害， 并有70%的概率增加随机1人重击CD+2秒。 | G106: 210024
B107: 1001025 | C107: 龙兴之潮 | D107: 让巨浪吞噬掉你们。 | G107: 210025
B108: 1001111 | C108: 地灵咒 | D108: 大地的灵气成为了咒术的食粮。 | E108: 对敌方1人造成2段<color=#b4595eFF>52%</color>地属性魔法伤害， 并造成<color=#4c805eFF>中毒效果</color>，每秒造成15%攻击的伤害，持续3秒。 | F108: 等级2 每段造成的魔法伤害增加至60%。 | G108: 211011
B109: 1001112 | C109: 地灵咒 | D109: 大地的灵气成为了咒术的食粮。 | E109: 对敌方1人造成2段<color=#b4595eFF>60%</color>地属性魔法伤害， 并造成<color=#4c805eFF>中毒效果</color>，每秒造成15%攻击的伤害，持续3秒。 | F109: 等级3 每秒造成攻击的伤害提升至20%。 | G109: 211012
B110: 1001113 | C110: 地灵咒 | D110: 大地的灵气成为了咒术的食粮。 | E110: 对敌方1人造成2段<color=#b4595eFF>60%</color>地属性魔法伤害， 并造成<color=#4c805eFF>中毒效果</color>，每秒造成20%攻击的伤害，持续3秒。 | F110: 等级4 魔法伤害提升至70%， 每秒造成攻击的伤害提升至25%。 | G110: 211013
B111: 1001114 | C111: 地灵咒 | D111: 大地的灵气成为了咒术的食粮。 | E111: 对敌方1人造成2段<color=#b4595eFF>70%</color>地属性魔法伤害， 并造成<color=#4c805eFF>中毒效果</color>，每秒造成25%攻击的伤害，持续3秒。 | G111: 211014
B112: 1001115 | C112: 地灵咒 | D112: 大地的灵气成为了咒术的食粮。 | G112: 211015
B113: 1001121 | C113: 缚傀诀 | D113: 不会让你逃跑的。 | E113: 对敌方全体造成<color=#b4595eFF>64%</color>地属性魔法伤害， 对中毒目标造成42%<color=#4c805eFF>眩晕效果</color>，持续2秒。 | F113: 等级2 魔法伤害提升至72%。 | G113: 211021
B114: 1001122 | C114: 缚傀诀 | D114: 不会让你逃跑的。 | E114: 对敌方全体造成<color=#b4595eFF>72%</color>地属性魔法伤害， 对中毒目标造成42%<color=#4c805eFF>眩晕效果</color>，持续2秒。 | F114: 等级3 眩晕概率提升至50%，眩晕持续时间增加至3秒。 | G114: 211022
B115: 1001123 | C115: 缚傀诀 | D115: 不会让你逃跑的。 | E115: 对敌方全体造成<color=#b4595eFF>72%</color>地属性魔法伤害， 对中毒目标造成50%<color=#4c805eFF>眩晕效果</color>，持续3秒。 | F115: 等级4 魔法伤害提升至90%，眩晕概率提升至66%。 | G115: 211023
B116: 1001124 | C116: 缚傀诀 | D116: 不会让你逃跑的。 | E116: 对敌方全体造成<color=#b4595eFF>90%</color>地属性魔法伤害， 对中毒目标造成66%<color=#4c805eFF>眩晕效果</color>，持续3秒。 | G116: 211024
B117: 1001125 | C117: 缚傀诀 | D117: 不会让你逃跑的。 | G117: 211025
B118: 1001211 | C118: 焚花 | D118: 烈火中的花朵，华丽而残忍。 | E118: 增加重击CD 1秒，对敌方单体造成<color=#b4595eFF>86%</color>火属性物理伤害， 同时给对方加一层<color=#4c805eFF>中毒效果</color>，每秒造成15%伤害，持续3秒。 | F118: 等级2 持续延长至5秒。 | G118: 212011
B119: 1001212 | C119: 焚花 | D119: 烈火中的花朵，华丽而残忍。 | E119: 增加重击CD 1秒，对敌方单体造成<color=#b4595eFF>86%</color>火属性物理伤害， 同时给对方加一层<color=#4c805eFF>中毒效果</color>，每秒造成15%伤害，持续5秒。 | F119: 等级3 物理伤害提升至96%。 | G119: 212012
B120: 1001213 | C120: 焚花 | D120: 烈火中的花朵，华丽而残忍。 | E120: 增加重击CD 1秒，对敌方单体造成<color=#b4595eFF>96%</color>火属性物理伤害， 同时给对方加一层<color=#4c805eFF>中毒效果</color>，每秒造成15%伤害，持续5秒。 | F120: 等级4 物理伤害116% 中毒效果，每秒造成的伤害提升至20%。 | G120: 212013
B121: 1001214 | C121: 焚花 | D121: 烈火中的花朵，华丽而残忍。 | E121: 增加重击CD 1秒，对敌方单体造成<color=#b4595eFF>116%</color>火属性物理伤害， 同时给对方加一层<color=#4c805eFF>中毒效果</color>，每秒造成20%伤害，持续5秒。 | G121: 212014
B122: 1001215 | C122: 焚花 | D122: 烈火中的花朵，华丽而残忍。 | G122: 212015
B123: 1001221 | C123: 断雨 | D123: 燃烧的双剑下，是你的亡魂！ | E123: 对当前血量最低的2个人，造成<color=#b4595eFF>56%</color>火属性物理伤害， 同时使对方3秒无法恢复血量。 | F123: 等级2 物理伤害提升至68%。 | G123: 212021
B124: 1001222 | C124: 断雨 | D124: 燃烧的双剑下，是你的亡魂！ | E124: 对当前血量最低的2个人，造成<color=#b4595eFF>68%</color>火属性物理伤害， 同时使对方3秒无法恢复血量。 | F124: 等级3 物理伤害提升至74%，同时使方无法恢复血量的时间延长至4秒。 | G124: 212022
B125: 1001223 | C125: 断雨 | D125: 燃烧的双剑下，是你的亡魂！ | E125: 对当前血量最低的2个人，造成<color=#b4595eFF>74%</color>火属性物理伤害， 同时使对方4秒无法恢复血量。 | F125: 等级4 物理伤害提升至86%，同时使方无法恢复血量的时间延长至5秒。 | G125: 212023
B126: 1001224 | C126: 断雨 | D126: 燃烧的双剑下，是你的亡魂！ | E126: 对当前血量最低的2个人，造成<color=#b4595eFF>86%</color>火属性物理伤害， 同时使对方5秒无法恢复血量。 | G126: 212024
B127: 1001225 | C127: 断雨 | D127: 燃烧的双剑下，是你的亡魂！ | G127: 212025
B128: 1001311 | C128: 黑泉利箭 | D128: 黑泉的利箭，一箭穿心。 | E128: 对敌方单体造成<color=#b4595eFF>76%</color>地属性物理伤害， 同时给自身添加7%的暴击率，7%的暴击伤害，持续3秒。 | F128: 等级2 物理伤害提升至85%，额外暴击率持续时间延长至4秒。 | G128: 213011
B129: 1001312 | C129: 黑泉利箭 | D129: 黑泉的利箭，一箭穿心。 | E129: 对敌方单体造成<color=#b4595eFF>85%</color>地属性物理伤害， 同时给自身添加7%的暴击率，7%的暴击伤害，持续4秒。 | F129: 等级3 同时增加10%的暴击伤害，持续4秒。 | G129: 213012
B130: 1001313 | C130: 黑泉利箭 | D130: 黑泉的利箭，一箭穿心。 | E130: 对敌方单体造成<color=#b4595eFF>85%</color>地属性物理伤害， 同时给自身添加10%的暴击率，10%的暴击伤害，持续4秒。 | F130: 等级4 物理伤害提升至100%，额外暴击率和暴击伤害持续时间延长至5秒。 | G130: 213013
B131: 1001314 | C131: 黑泉利箭 | D131: 黑泉的利箭，一箭穿心。 | E131: 对敌方单体造成<color=#b4595eFF>100%</color>地属性物理伤害， 同时给自身添加10%的暴击率，10%的暴击伤害，持续5秒。 | G131: 213014
B132: 1001315 | C132: 黑泉利箭 | D132: 黑泉的利箭，一箭穿心。 | G132: 213015
B133: 1001321 | C133: 芙蓉箭雨 | D133: 飘散的莲花，也充满了危险。 | E133: 对敌方攻击力最高的2名角色造成<color=#b4595eFF>105%</color>的地属性物理伤害， 有45%的概率追加一次伤害，最多可追加2次。 | F133: 等级2 物理伤害提升至115%。 | G133: 213021
B134: 1001322 | C134: 芙蓉箭雨 | D134: 飘散的莲花，也充满了危险。 | E134: 对敌方攻击力最高的2名角色造成<color=#b4595eFF>115%</color>的地属性物理伤害， 有45%的概率追加一次伤害，最多可追加2次。 | F134: 等级3 追加概率提升至60%，最多可追加次数提升至3次。 | G134: 213022
B135: 1001323 | C135: 芙蓉箭雨 | D135: 飘散的莲花，也充满了危险。 | E135: 对敌方攻击力最高的2名角色造成<color=#b4595eFF>115%</color>的地属性物理伤害， 有60%的概率追加一次伤害，最多可追加3次。 | F135: 等级4 物理伤害提升至135%，最多可追加次数提升至4次。 | G135: 213023
B136: 1001324 | C136: 芙蓉箭雨 | D136: 飘散的莲花，也充满了危险。 | E136: 对敌方攻击力最高的2名角色造成<color=#b4595eFF>135%</color>的地属性物理伤害， 有60%的概率追加一次伤害，最多可追加4次。 | G136: 213024
B137: 1001325 | C137: 芙蓉箭雨 | D137: 飘散的莲花，也充满了危险。 | G137: 213025
B138: 1001411 | C138: 墨意 | D138: 用水墨点染世界。 | E138: 对敌方敌人造成<color=#b4595eFF>75%</color>暗属性物理伤害， 对秘法目标必定暴击。 | F138: 等级2 物理伤害提升至85% | G138: 214011
B139: 1001412 | C139: 墨意 | D139: 用水墨点染世界。 | E139: 对敌方敌人造成<color=#b4595eFF>85%</color>暗属性物理伤害， 对秘法目标必定暴击。 | F139: 等级3 物理伤害提升至100%。 | G139: 214012
B140: 1001413 | C140: 墨意 | D140: 用水墨点染世界。 | E140: 对敌方敌人造成<color=#b4595eFF>100%</color>暗属性物理伤害， 对秘法目标必定暴击。 | F140: 等级4 物理伤害提升至120% | G140: 214013
B141: 1001414 | C141: 墨意 | D141: 用水墨点染世界。 | E141: 对敌方敌人造成<color=#b4595eFF>120%</color>暗属性物理伤害， 对秘法目标必定暴击。 | G141: 214014
B142: 1001415 | C142: 墨意 | D142: 用水墨点染世界。 | G142: 214015
B143: 1001421 | C143: 画龙点睛 | D143: 水墨中诞生的巨龙。 | E143: 对敌方随机1人造成3-5次<color=#b4595eFF>125%</color>暗属性物理伤害， 提升自身40%暴击伤害。 | F143: 等级2 物理伤害提升至145%。 | G143: 214021
B144: 1001422 | C144: 画龙点睛 | D144: 水墨中诞生的巨龙。 | E144: 对敌方随机1人造成3-5次<color=#b4595eFF>145%</color>暗属性物理伤害， 提升自身40%暴击伤害。 | F144: 等级3 物理伤害提升至175%，暴击伤害提升至45%。 | G144: 214022
B145: 1001423 | C145: 画龙点睛 | D145: 水墨中诞生的巨龙。 | E145: 对敌方随机1人造成3-5次<color=#b4595eFF>175%</color>暗属性物理伤害， 提升自身45%暴击伤害。 | F145: 等级4 物理伤害提升至205%，暴击伤害提升至50%。 | G145: 214023
B146: 1001424 | C146: 画龙点睛 | D146: 水墨中诞生的巨龙。 | E146: 对敌方随机1人造成3-5次<color=#b4595eFF>205%</color>暗属性物理伤害， 提升自身50%暴击伤害。 | G146: 214024
B147: 1001425 | C147: 画龙点睛 | D147: 水墨中诞生的巨龙。 | G147: 214025
B148: 1001511 | C148: 辉映 | D148: 看见了么，那云端的彩霞。 | E148: 对敌方1名敌人造成<color=#b4595eFF>85%</color>光属性魔法伤害， 将造成伤害的25%转化为自己生命。 | F148: 等级2 魔法伤害提升至95%，恢复生命提升至造成伤害的30%。 | G148: 215011
B149: 1001512 | C149: 辉映 | D149: 看见了么，那云端的彩霞。 | E149: 对敌方1名敌人造成<color=#b4595eFF>95%</color>光属性魔法伤害， 将造成伤害的30%转化为自己生命。 | F149: 等级3 魔法伤害提升至110%。 | G149: 215012
B150: 1001513 | C150: 辉映 | D150: 看见了么，那云端的彩霞。 | E150: 对敌方1名敌人造成<color=#b4595eFF>110%</color>光属性魔法伤害， 将造成伤害的30%转化为自己生命。 | F150: 等级4 魔法伤害提升至135%，恢复生命提升至造成伤害的45%。 | G150: 215013
B151: 1001514 | C151: 辉映 | D151: 看见了么，那云端的彩霞。 | E151: 对敌方1名敌人造成<color=#b4595eFF>135%</color>光属性魔法伤害， 将造成伤害的45%转化为自己生命。 | G151: 215014
B152: 1001515 | C152: 辉映 | D152: 看见了么，那云端的彩霞。 | G152: 215015
B153: 1001521 | C153: 幻影预兆 | D153: 光芒之中，无法捕捉的未来。 | E153: 对敌方随机2人造成<color=#b4595eFF>125%</color>光属性魔法伤害， 并偷取对方4%攻击，持续10秒。 | F153: 等级2 魔法伤害提升至140%。 | G153: 215021
B154: 1001522 | C154: 幻影预兆 | D154: 光芒之中，无法捕捉的未来。 | E154: 对敌方随机2人造成<color=#b4595eFF>140%</color>光属性魔法伤害， 并偷取对方4%攻击，持续10秒。 | F154: 等级3 偷取效果增加至6%，效果持续时间延长至15秒。 | G154: 215022
B155: 1001523 | C155: 幻影预兆 | D155: 光芒之中，无法捕捉的未来。 | E155: 对敌方随机2人造成<color=#b4595eFF>140%</color>光属性魔法伤害， 并偷取对方6%攻击，持续15秒。 | F155: 等级4 魔法伤害提升至160%，同时给敌方添加暴击印记，带有印记的目标，额外受到30%的暴击伤害（最高累计300%）。 | G155: 215023
B156: 1001524 | C156: 幻影预兆 | D156: 光芒之中，无法捕捉的未来。 | E156: 对敌方随机2人造成<color=#b4595eFF>160%</color>光属性魔法伤害， 并偷取对方6%攻击，持续15秒， 同时给敌方添加暴击印记，带有印记的目标，额外受到30%的暴击伤害最高累计300%。 | G156: 215024
B157: 1001525 | C157: 幻影预兆 | D157: 光芒之中，无法捕捉的未来。 | G157: 215025
B158: 1001611 | C158: 无明火 | D158: 超越常理的火焰。 | E158: 对敌方单体造成<color=#b4595eFF>65%</color>火属性魔法伤害， 对控制状态的敌人额外造成无视敌人18%防御的攻击。 | F158: 等级2 魔法伤害提升至75%，对控制状态的敌人无视防御的效果增加至24%。 | G158: 216011
B159: 1001612 | C159: 无明火 | D159: 超越常理的火焰。 | E159: 对敌方单体造成<color=#b4595eFF>75%</color>火属性魔法伤害， 对控制状态的敌人额外造成无视敌人24%防御的攻击。 | F159: 等级3 魔法伤害提升至85%，对控制状态的敌人无视防御的效果增加至30%。 | G159: 216012
B160: 1001613 | C160: 无明火 | D160: 超越常理的火焰。 | E160: 对敌方单体造成<color=#b4595eFF>85%</color>火属性魔法伤害， 对控制状态的敌人额外造成无视敌人30%防御的攻击。 | F160: 等级4 魔法伤害提升至95%，对控制状态的敌人无视防御的效果增加至38%。 | G160: 216013
B161: 1001614 | C161: 无明火 | D161: 超越常理的火焰。 | E161: 对敌方单体造成<color=#b4595eFF>95%</color>火属性魔法伤害， 对控制状态的敌人额外造成无视敌人38%防御的攻击。 | G161: 216014
B162: 1001615 | C162: 无明火 | D162: 超越常理的火焰。 | G162: 216015
B163: 1001621 | C163: 禁焰觉醒 | D163: 禁忌的力量，在此觉醒。 | E163: 对随机3人造成<color=#b4595eFF>115%</color>火属性魔法伤害，对带有持续恢复状态的敌人额外造成15%的魔法伤害。 | F163: 等级2 魔法伤害提升至125%。 | G163: 216021
B164: 1001622 | C164: 禁焰觉醒 | D164: 禁忌的力量，在此觉醒。 | E164: 对随机3人造成<color=#b4595eFF>125%</color>火属性魔法伤害，对带有持续恢复状态的敌人额外造成15%的魔法伤害。 | F164: 等级3 对恢复状态的敌人造成额外的魔法伤害提升至30%。 | G164: 216022
B165: 1001623 | C165: 禁焰觉醒 | D165: 禁忌的力量，在此觉醒。 | E165: 对随机3人造成<color=#b4595eFF>125%</color>火属性魔法伤害，对带有持续恢复状态的敌人额外造成30%的魔法伤害。 | F165: 等级4 魔法伤害提升至150%，自身降低20%的魔抗，提高30%的攻击，持续6秒。 | G165: 216023
B166: 1001624 | C166: 禁焰觉醒 | D166: 禁忌的力量，在此觉醒。 | E166: 对随机3人造成<color=#b4595eFF>150%</color>火属性魔法伤害，对带有持续恢复状态的敌人额外造成30%的魔法伤害， 自身降低20%的魔抗，提高30%的攻击，持续6秒。 | G166: 216024
B167: 1001625 | C167: 禁焰觉醒 | D167: 禁忌的力量，在此觉醒。 | G167: 216025
B168: 1001711 | C168: 晦影 | D168: 看不见的影子里，暗藏着杀气。 | E168: 对敌方1名敌人造成2段<color=#b4595eFF>85%</color>暗属性魔法伤害， 降低其30%护甲，同时30%概率沉默敌人3秒。 | F168: 等级2 降低护甲的同时有45%概率沉默敌人，持续3秒。 | G168: 217011
B169: 1001712 | C169: 晦影 | D169: 看不见的影子里，暗藏着杀气。 | E169: 对敌方1名敌人造成2段<color=#b4595eFF>95%</color>暗属性魔法伤害， 降低其30%护甲，同时45%概率沉默敌人3秒。 | F169: 等级3 魔法伤害提升至105%，降低护甲效果提升至40%。 | G169: 217012
B170: 1001713 | C170: 晦影 | D170: 看不见的影子里，暗藏着杀气。 | E170: 对敌方1名敌人造成2段<color=#b4595eFF>105%</color>暗属性魔法伤害， 降低其40%护甲，同时45%概率沉默敌人3秒。 | F170: 等级4 魔法伤害提升至123%，触发沉默的概率提升至60%，持续时长提升至5秒。 | G170: 217013
B171: 1001714 | C171: 晦影 | D171: 看不见的影子里，暗藏着杀气。 | E171: 对敌方1名敌人造成2段<color=#b4595eFF>123%</color>暗属性魔法伤害， 降低其40%护甲，同时60%概率沉默敌人5秒。 | G171: 217014
B172: 1001715 | C172: 晦影 | D172: 看不见的影子里，暗藏着杀气。 | G172: 217015
B173: 1001721 | C173: 常世之暗 | D173: 无光的世界里长眠吧。 | E173: 对敌方随机4人造成<color=#b4595eFF>105%</color>暗属性魔法伤害， 对<color=#4c805eFF>沉默敌人</color>额外造成20%伤害。 | F173: 等级2 魔法伤害提升至120%。 | G173: 217021
B174: 1001722 | C174: 常世之暗 | D174: 无光的世界里长眠吧。 | E174: 对敌方随机4人造成<color=#b4595eFF>120%</color>暗属性魔法伤害， 对<color=#4c805eFF>沉默敌人</color>额外造成20%伤害。 | F174: 等级3 魔法伤害提升至140%，对沉默的敌人额外造成的伤害提升至30%。 | G174: 217022
B175: 1001723 | C175: 常世之暗 | D175: 无光的世界里长眠吧。 | E175: 对敌方随机4人造成<color=#b4595eFF>140%</color>暗属性魔法伤害， 对<color=#4c805eFF>沉默敌人</color>额外造成30%伤害。 | F175: 等级4 魔法伤害提升至167%，对沉默的敌人额外造成的伤害提升至50%。 | G175: 217023
B176: 1001724 | C176: 常世之暗 | D176: 无光的世界里长眠吧。 | E176: 对敌方随机4人造成<color=#b4595eFF>167%</color>暗属性魔法伤害， 对<color=#4c805eFF>沉默敌人</color>额外造成50%伤害。 | G176: 217024
B177: 1001725 | C177: 常世之暗 | D177: 无光的世界里长眠吧。 | G177: 217025
B178: 1001811 | C178: 天照 | D178: 太阳的光芒清除世间黑暗。 | E178: 对敌方1名敌人造成<color=#b4595eFF>143%</color>光属性魔法伤害。 | F178: 等级2 魔法伤害提升至154%。 | G178: 218011
B179: 1001812 | C179: 天照 | D179: 太阳的光芒清除世间黑暗。 | E179: 对敌方1名敌人造成<color=#b4595eFF>154%</color>光属性魔法伤害。 | F179: 等级3 魔法伤害提升至168%。 | G179: 218012
B180: 1001813 | C180: 天照 | D180: 太阳的光芒清除世间黑暗。 | E180: 对敌方1名敌人造成<color=#b4595eFF>168%</color>光属性魔法伤害。 | F180: 等级4 魔法伤害提升至187%。 | G180: 218013
B181: 1001814 | C181: 天照 | D181: 太阳的光芒清除世间黑暗。 | E181: 对敌方1名敌人造成<color=#b4595eFF>187%</color>光属性魔法伤害。 | G181: 218014
B182: 1001815 | C182: 天照 | D182: 太阳的光芒清除世间黑暗。 | G182: 218015
B183: 1001821 | C183: 剜心刺骨 | D183: 背叛光的人，尸骨无存。 | E183: 对敌方生命最低的1人造成<color=#b4595eFF>200%</color>光属性魔法伤害， 偷取12%攻击，同时造成<color=#4c805eFF>流血效果</color>，每秒造成30%的伤害，持续3秒。 | F183: 等级2 魔法伤害提升至225% 流血效果，每秒造成的伤害提升至35%，持续时间延长至4秒。 | G183: 218021
B184: 1001822 | C184: 剜心刺骨 | D184: 背叛光的人，尸骨无存。 | E184: 对敌方生命最低的1人造成<color=#b4595eFF>220%</color>光属性魔法伤害， 偷取12%攻击，同时造成<color=#4c805eFF>流血效果</color>，每秒造成35%的伤害，持续4秒。 | F184: 等级3 魔法伤害提升至250%，偷取18%攻击，同时流血效果，每秒造成的伤害提升至40%。 | G184: 218022
B185: 1001823 | C185: 剜心刺骨 | D185: 背叛光的人，尸骨无存。 | E185: 对敌方生命最低的1人造成<color=#b4595eFF>250%</color>光属性魔法伤害， 偷取18%攻击，同时造成<color=#4c805eFF>流血效果</color>，每秒造成40%的伤害，持续4秒。 | F185: 等级4 魔法伤害提升至300%，同时流血效果，每秒造成的伤害提升至45%。 | G185: 218023
B186: 1001824 | C186: 剜心刺骨 | D186: 背叛光的人，尸骨无存。 | E186: 对敌方生命最低的1人造成<color=#b4595eFF>300%</color>光属性魔法伤害， 偷取18%攻击，同时造成<color=#4c805eFF>流血效果</color>，每秒造成45%的伤害，持续4秒。 | G186: 218024
B187: 1001825 | C187: 剜心刺骨 | D187: 背叛光的人，尸骨无存。 | G187: 218025
B188: 1001911 | C188: 辰变 | D188: 微风扶起，星辰万变。 | E188: 对敌方单体造成<color=#b4595eFF>70%</color>风属性物理伤害， 增加自身10%攻击。 | F188: 等级2 物理伤害提升至80%，额外增加暴击伤害10%，持续2秒。 | G188: 219011
B189: 1001912 | C189: 辰变 | D189: 微风扶起，星辰万变。 | E189: 对敌方单体造成<color=#b4595eFF>80%</color>风属性物理伤害， 增加自身10%攻击，增加10%暴击伤害，持续2秒。 | F189: 等级3 暴击伤害增加至20%。 | G189: 219012
B190: 1001913 | C190: 辰变 | D190: 微风扶起，星辰万变。 | E190: 对敌方单体造成<color=#b4595eFF>80%</color>风属性物理伤害， 增加自身10%攻击，增加20%暴击伤害，持续2秒。 | F190: 等级4 物理伤害提升至105%，暴击伤害持续时长提升至3秒。 | G190: 219013
B191: 1001914 | C191: 辰变 | D191: 微风扶起，星辰万变。 | E191: 对敌方单体造成<color=#b4595eFF>105%</color>风属性物理伤害， 增加自身10%攻击，增加20%暴击伤害，持续3秒。 | G191: 219014
B192: 1001915 | C192: 辰变 | D192: 微风扶起，星辰万变。 | G192: 219015
B193: 1001921 | C193: 凭虚御风 | D193: 清风伴身，毁天灭地。 | E193: 对敌方全体造成<color=#b4595eFF>75%</color>的风属性物理伤害， 减少全体重击CD1秒，持续1秒。 | F193: 等级2 物理伤害提升至85%。 | G193: 219021
B194: 1001922 | C194: 凭虚御风 | D194: 清风伴身，毁天灭地。 | E194: 对敌方全体造成<color=#b4595eFF>85%</color>的风属性物理伤害， 减少全体重击CD1秒，持续2秒。 | F194: 等级3 物理伤害提升至100%，减少CD效果持续时间延长至2秒。 | G194: 219022
B195: 1001923 | C195: 凭虚御风 | D195: 清风伴身，毁天灭地。 | E195: 对敌方全体造成<color=#b4595eFF>100%</color>的风属性物理伤害， 减少全体重击CD1秒，持续2秒。 | F195: 等级4 物理伤害提升至120%，减少CD效果持续时间延长至3秒。 | G195: 219023
B196: 1001924 | C196: 凭虚御风 | D196: 清风伴身，毁天灭地。 | E196: 对敌方全体造成<color=#b4595eFF>120%</color>的风属性物理伤害， 减少全体重击CD1秒，持续3秒。 | G196: 219024
B197: 1001925 | C197: 凭虚御风 | D197: 清风伴身，毁天灭地。 | G197: 219025
B198: 1002011 | C198: 天回 | D198: 让灵魂回归龙之业火。 | E198: 对敌方随机1人造成3段<color=#b4595eFF>35%</color>火属性物理伤害， 并随机回复2名友军自身攻击80%的生命。 | F198: 等级2 生命恢复效果提升至90%。 | G198: 220011
B199: 1002012 | C199: 天回 | D199: 让灵魂回归龙之业火。 | E199: 对敌方随机1人造成3段<color=#b4595eFF>35%</color>火属性物理伤害， 并随机回复2名友军自身攻击90%的生命。 | F199: 等级3 物理伤害提升至45%，恢复生命效果增加至105% | G199: 220012
B200: 1002013 | C200: 天回 | D200: 让灵魂回归龙之业火。 | E200: 对敌方随机1人造成3段<color=#b4595eFF>45%</color>火属性物理伤害， 并随机回复2名友军自身攻击105%的生命。 | F200: 等级4 物理伤害提升至50%，恢复生命效果增加至120%。 | G200: 220013
... 427 more rows

Sheet y异妖技能
A1: 对敌方随机3名敌人造成1000点伤害，增加我方2人攻击10%，持续5秒，增加防御20%，持续5秒。 | B1: =CLEAN(SUBSTITUTE(SUBSTITUTE(SUBSTITUTE(SUBSTITUTE(SUBSTITUTE(SUBSTITUTE(SUBSTITUTE(A1,"成","成<color=#4c805eFF>",1),"点","点</color>",1),"沉默","<color=#4c805eFF>沉默</color>",1),"眩晕","<color=#4c805eFF>眩晕</color>",1),"中毒目标","<color=#4c805eFF>中毒目标</color>",1),"燃烧目标","<color=#4c805eFF>燃烧目标</color>",1),"流血目标","<color=#4c805eFF>流血目标</color>",1)) -> 对敌方随机3名敌人造成<color=#4c805eFF>1000点</color>伤害，增加我方2人攻击10%，持续5秒，增加防御20%，持续5秒。 | C1: 对敌方随机3名敌人造成1000点伤害，增加我方2人攻击10%，持续5秒，增加防御20%，持续5秒。
A2: 对敌方随机3名敌人造成1000点伤害，增加我方2人攻击20%，持续5秒，增加防御20%，持续5秒。 | B2: =CLEAN(SUBSTITUTE(SUBSTITUTE(SUBSTITUTE(SUBSTITUTE(SUBSTITUTE(SUBSTITUTE(SUBSTITUTE(A2,"成","成<color=#4c805eFF>",1),"点","点</color>",1),"沉默","<color=#4c805eFF>沉默</color>",1),"眩晕","<color=#4c805eFF>眩晕</color>",1),"中毒目标","<color=#4c805eFF>中毒目标</color>",1),"燃烧目标","<color=#4c805eFF>燃烧目标</color>",1),"流血目标","<color=#4c805eFF>流血目标</color>",1)) -> 对敌方随机3名敌人造成<color=#4c805eFF>1000点</color>伤害，增加我方2人攻击20%，持续5秒，增加防御20%，持续5秒。 | C2: 对敌方随机3名敌人造成1000点伤害，增加我方2人攻击<color=#4c805eFF>20%</color>，持续5秒，增加防御20%，持续5秒。
A3: 对敌方随机3名敌人造成2000点伤害，增加我方2人攻击20%，持续5秒，增加防御20%，持续5秒。 | B3: 对敌方随机3名敌人造成<color=#4c805eFF>2000点</color>伤害，增加我方2人攻击20%，持续5秒，增加防御20%，持续5秒。 | C3: 对敌方随机3名敌人造成<color=#4c805eFF>2000点</color>伤害，增加我方2人攻击20%，持续5秒，增加防御20%，持续5秒。
A4: 对敌方随机3名敌人造成2000点伤害，增加我方2人攻击30%，持续5秒，增加防御20%，持续5秒。 | B4: 对敌方随机3名敌人造成<color=#4c805eFF>2000点</color>伤害，增加我方2人攻击30%，持续5秒，增加防御20%，持续5秒。 | C4: 对敌方随机3名敌人造成2000点伤害，增加我方2人攻击<color=#4c805eFF>30%</color>，持续5秒，增加防御20%，持续5秒。
A5: 对敌方随机3名敌人造成3000点伤害，增加我方2人攻击30%，持续5秒，增加防御20%，持续5秒。 | B5: 对敌方随机3名敌人造成<color=#4c805eFF>3000点</color>伤害，增加我方2人攻击30%，持续5秒，增加防御20%，持续5秒。 | C5: 对敌方随机3名敌人造成<color=#4c805eFF>3000点</color>伤害，增加我方2人攻击30%，持续5秒，增加防御20%，持续5秒。
A6: 对敌方随机3名敌人造成3000点伤害，增加我方2人攻击30%，持续10秒，增加防御20%，持续5秒。 | B6: 对敌方随机3名敌人造成<color=#4c805eFF>3000点</color>伤害，增加我方2人攻击30%，持续10秒，增加防御20%，持续5秒。 | C6: 对敌方随机3名敌人造成<color=#4c805eFF>3000点</color>伤害，增加我方2人攻击30%，持续10秒，增加防御20%，持续5秒。
A7: 对敌方随机3名敌人造成4000点伤害，增加我方2人攻击30%，持续10秒，增加防御20%，持续5秒。 | B7: 对敌方随机3名敌人造成<color=#4c805eFF>4000点</color>伤害，增加我方2人攻击30%，持续10秒，增加防御20%，持续5秒。 | C7: 对敌方随机3名敌人造成<color=#4c805eFF>4000点</color>伤害，增加我方2人攻击30%，持续10秒，增加防御20%，持续5秒。
A8: 对敌方随机3名敌人造成4000点伤害，增加我方2人攻击30%，持续10秒，增加防御20%，持续10秒。 | B8: 对敌方随机3名敌人造成<color=#4c805eFF>4000点</color>伤害，增加我方2人攻击30%，持续10秒，增加防御20%，持续10秒。 | C8: 对敌方随机3名敌人造成<color=#4c805eFF>4000点</color>伤害，增加我方2人攻击30%，持续10秒，增加防御20%，持续10秒。
A9: 对敌方随机3名敌人造成5000点伤害，增加我方2人攻击30%，持续10秒，增加防御20%，持续10秒。 | B9: 对敌方随机3名敌人造成<color=#4c805eFF>5000点</color>伤害，增加我方2人攻击30%，持续10秒，增加防御20%，持续10秒。 | C9: 对敌方随机3名敌人造成<color=#4c805eFF>5000点</color>伤害，增加我方2人攻击30%，持续10秒，增加防御20%，持续10秒。
A10: 对敌方随机3名敌人造成5000点伤害，增加我方2人攻击30%，持续10秒，增加防御30%，持续10秒。 | B10: 对敌方随机3名敌人造成<color=#4c805eFF>5000点</color>伤害，增加我方2人攻击30%，持续10秒，增加防御30%，持续10秒。 | C10: 对敌方随机3名敌人造成<color=#4c805eFF>5000点</color>伤害，增加我方2人攻击30%，持续10秒，增加防御30%，持续10秒。
A11: 对敌方随机2名敌人造成1800点伤害，降低对方速度20%，持续5秒，恢复我方4人20%的生命。 | B11: 对敌方随机2名敌人造成<color=#4c805eFF>1800点</color>伤害，降低对方速度20%，持续5秒，恢复我方4人20%的生命。 | C11: 对敌方随机2名敌人造成<color=#4c805eFF>1800点</color>伤害，降低对方速度20%，持续5秒，恢复我方4人20%的生命。
A12: 对敌方随机2名敌人造成1800点伤害，降低对方速度30%，持续5秒，恢复我方4人20%的生命。 | B12: 对敌方随机2名敌人造成<color=#4c805eFF>1800点</color>伤害，降低对方速度30%，持续5秒，恢复我方4人20%的生命。 | C12: 对敌方随机2名敌人造成<color=#4c805eFF>1800点</color>伤害，降低对方速度30%，持续5秒，恢复我方4人20%的生命。
A13: 对敌方随机2名敌人造成3600点伤害，降低对方速度30%，持续5秒，恢复我方4人20%的生命。 | B13: 对敌方随机2名敌人造成<color=#4c805eFF>3600点</color>伤害，降低对方速度30%，持续5秒，恢复我方4人20%的生命。 | C13: 对敌方随机2名敌人造成<color=#4c805eFF>3600点</color>伤害，降低对方速度30%，持续5秒，恢复我方4人20%的生命。
A14: 对敌方随机2名敌人造成3600点伤害，降低对方速度40%，持续5秒，恢复我方4人20%的生命。 | B14: 对敌方随机2名敌人造成<color=#4c805eFF>3600点</color>伤害，降低对方速度40%，持续5秒，恢复我方4人20%的生命。 | C14: 对敌方随机2名敌人造成<color=#4c805eFF>3600点</color>伤害，降低对方速度40%，持续5秒，恢复我方4人20%的生命。
A15: 对敌方随机2名敌人造成5400点伤害，降低对方速度40%，持续5秒，恢复我方4人20%的生命。 | B15: 对敌方随机2名敌人造成<color=#4c805eFF>5400点</color>伤害，降低对方速度40%，持续5秒，恢复我方4人20%的生命。 | C15: 对敌方随机2名敌人造成<color=#4c805eFF>5400点</color>伤害，降低对方速度40%，持续5秒，恢复我方4人20%的生命。
A16: 对敌方随机2名敌人造成5400点伤害，降低对方速度40%，持续10秒，恢复我方4人20%的生命。 | B16: 对敌方随机2名敌人造成<color=#4c805eFF>5400点</color>伤害，降低对方速度40%，持续10秒，恢复我方4人20%的生命。 | C16: 对敌方随机2名敌人造成<color=#4c805eFF>5400点</color>伤害，降低对方速度40%，持续10秒，恢复我方4人20%的生命。
A17: 对敌方随机2名敌人造成7200点伤害，降低对方速度40%，持续10秒，恢复我方4人20%的生命。 | B17: 对敌方随机2名敌人造成<color=#4c805eFF>7200点</color>伤害，降低对方速度40%，持续10秒，恢复我方4人20%的生命。 | C17: 对敌方随机2名敌人造成<color=#4c805eFF>7200点</color>伤害，降低对方速度40%，持续10秒，恢复我方4人20%的生命。
A18: 对敌方随机2名敌人造成7200点伤害，降低对方速度40%，持续10秒，恢复我方4人30%的生命。 | B18: 对敌方随机2名敌人造成<color=#4c805eFF>7200点</color>伤害，降低对方速度40%，持续10秒，恢复我方4人30%的生命。 | C18: 对敌方随机2名敌人造成<color=#4c805eFF>7200点</color>伤害，降低对方速度40%，持续10秒，恢复我方4人30%的生命。
A19: 对敌方随机2名敌人造成9000点伤害，降低对方速度40%，持续10秒，恢复我方4人30%的生命。 | B19: 对敌方随机2名敌人造成<color=#4c805eFF>9000点</color>伤害，降低对方速度40%，持续10秒，恢复我方4人30%的生命。 | C19: 对敌方随机2名敌人造成<color=#4c805eFF>9000点</color>伤害，降低对方速度40%，持续10秒，恢复我方4人30%的生命。
A20: 对敌方随机2名敌人造成9000点伤害，降低对方速度50%，持续10秒，恢复我方4人30%的生命。 | B20: 对敌方随机2名敌人造成<color=#4c805eFF>9000点</color>伤害，降低对方速度50%，持续10秒，恢复我方4人30%的生命。 | C20: 对敌方随机2名敌人造成<color=#4c805eFF>9000点</color>伤害，降低对方速度50%，持续10秒，恢复我方4人30%的生命。
A21: 对敌方随机2人造成2600点伤害，增加我方4人10%暴击率，持续4秒,增加20%暴击伤害，持续4秒。 | B21: 对敌方随机2人造成<color=#4c805eFF>2600点</color>伤害，增加我方4人10%暴击率，持续4秒,增加20%暴击伤害，持续4秒。 | C21: 对敌方随机2人造成<color=#4c805eFF>2600点</color>伤害，增加我方4人10%暴击率，持续4秒,增加20%暴击伤害，持续4秒。
A22: 对敌方随机2人造成2600点伤害，增加我方4人20%暴击率，持续4秒,增加20%暴击伤害，持续4秒。 | B22: 对敌方随机2人造成<color=#4c805eFF>2600点</color>伤害，增加我方4人20%暴击率，持续4秒,增加20%暴击伤害，持续4秒。 | C22: 对敌方随机2人造成<color=#4c805eFF>2600点</color>伤害，增加我方4人20%暴击率，持续4秒,增加20%暴击伤害，持续4秒。
A23: 对敌方随机2人造成5200点伤害，增加我方4人20%暴击率，持续4秒,增加20%暴击伤害，持续4秒。 | B23: 对敌方随机2人造成<color=#4c805eFF>5200点</color>伤害，增加我方4人20%暴击率，持续4秒,增加20%暴击伤害，持续4秒。 | C23: 对敌方随机2人造成<color=#4c805eFF>5200点</color>伤害，增加我方4人20%暴击率，持续4秒,增加20%暴击伤害，持续4秒。
A24: 对敌方随机2人造成5200点伤害，增加我方4人30%暴击率，持续4秒,增加20%暴击伤害，持续4秒。 | B24: 对敌方随机2人造成<color=#4c805eFF>5200点</color>伤害，增加我方4人30%暴击率，持续4秒,增加20%暴击伤害，持续4秒。 | C24: 对敌方随机2人造成<color=#4c805eFF>5200点</color>伤害，增加我方4人30%暴击率，持续4秒,增加20%暴击伤害，持续4秒。
A25: 对敌方随机2人造成7800点伤害，增加我方4人30%暴击率，持续4秒,增加20%暴击伤害，持续4秒。 | B25: 对敌方随机2人造成<color=#4c805eFF>7800点</color>伤害，增加我方4人30%暴击率，持续4秒,增加20%暴击伤害，持续4秒。 | C25: 对敌方随机2人造成<color=#4c805eFF>7800点</color>伤害，增加我方4人30%暴击率，持续4秒,增加20%暴击伤害，持续4秒。
A26: 对敌方随机2人造成7800点伤害，增加我方4人30%暴击率，持续8秒,增加20%暴击伤害，持续4秒。 | B26: 对敌方随机2人造成<color=#4c805eFF>7800点</color>伤害，增加我方4人30%暴击率，持续8秒,增加20%暴击伤害，持续4秒。 | C26: 对敌方随机2人造成<color=#4c805eFF>7800点</color>伤害，增加我方4人30%暴击率，持续8秒,增加20%暴击伤害，持续4秒。
A27: 对敌方随机2人造成10400点伤害，增加我方4人30%暴击率，持续8秒,增加20%暴击伤害，持续4秒。 | B27: 对敌方随机2人造成<color=#4c805eFF>10400点</color>伤害，增加我方4人30%暴击率，持续8秒,增加20%暴击伤害，持续4秒。 | C27: 对敌方随机2人造成<color=#4c805eFF>10400点</color>伤害，增加我方4人30%暴击率，持续8秒,增加20%暴击伤害，持续4秒。
A28: 对敌方随机2人造成10400点伤害，增加我方4人30%暴击率，持续8秒,增加30%暴击伤害，持续8秒。 | B28: 对敌方随机2人造成<color=#4c805eFF>10400点</color>伤害，增加我方4人30%暴击率，持续8秒,增加30%暴击伤害，持续8秒。 | C28: 对敌方随机2人造成<color=#4c805eFF>10400点</color>伤害，增加我方4人30%暴击率，持续8秒,增加30%暴击伤害，持续8秒。
A29: 对敌方随机2人造成13000点伤害，增加我方4人30%暴击率，持续8秒,增加30%暴击伤害，持续8秒。 | B29: 对敌方随机2人造成<color=#4c805eFF>13000点</color>伤害，增加我方4人30%暴击率，持续8秒,增加30%暴击伤害，持续8秒。 | C29: 对敌方随机2人造成<color=#4c805eFF>13000点</color>伤害，增加我方4人30%暴击率，持续8秒,增加30%暴击伤害，持续8秒。
A30: 对敌方随机2人造成13000点伤害，增加我方4人30%暴击率，持续8秒,增加50%暴击伤害，持续8秒。 | B30: 对敌方随机2人造成<color=#4c805eFF>13000点</color>伤害，增加我方4人30%暴击率，持续8秒,增加50%暴击伤害，持续8秒。 | C30: 对敌方随机2人造成<color=#4c805eFF>13000点</color>伤害，增加我方4人30%暴击率，持续8秒,增加50%暴击伤害，持续8秒。
A31: 对敌方随机2人造成3905点伤害，同时给对方增加一层虚弱buff，buff 期间收到的异妖伤害增加10%，buff持续正常，最大叠加1层。 | B31: 对敌方随机2人造成<color=#4c805eFF>3905点</color>伤害，同时给对方增加一层虚弱buff，buff 期间收到的异妖伤害增加10%，buff持续正常，最大叠加1层。 | C31: 对敌方随机2人造成<color=#4c805eFF>3905点</color>伤害，同时给对方增加一层虚弱buff，buff 期间收到的异妖伤害增加10%，buff持续正常，最大叠加1层。
A32: 对敌方随机2人造成3905点伤害，同时给对方增加一层虚弱buff，buff 期间收到的异妖伤害增加20%，buff持续正常，最大叠加1层。 | B32: 对敌方随机2人造成<color=#4c805eFF>3905点</color>伤害，同时给对方增加一层虚弱buff，buff 期间收到的异妖伤害增加20%，buff持续正常，最大叠加1层。 | C32: 对敌方随机2人造成<color=#4c805eFF>3905点</color>伤害，同时给对方增加一层虚弱buff，buff 期间收到的异妖伤害增加20%，buff持续正常，最大叠加1层。
A33: 对敌方随机2人造成7810点伤害，同时给对方增加一层虚弱buff，buff 期间收到的异妖伤害增加20%，buff持续正常，最大叠加1层。 | B33: 对敌方随机2人造成<color=#4c805eFF>7810点</color>伤害，同时给对方增加一层虚弱buff，buff 期间收到的异妖伤害增加20%，buff持续正常，最大叠加1层。 | C33: 对敌方随机2人造成<color=#4c805eFF>7810点</color>伤害，同时给对方增加一层虚弱buff，buff 期间收到的异妖伤害增加20%，buff持续正常，最大叠加1层。
A34: 对敌方随机2人造成7810点伤害，同时给对方增加一层虚弱buff，buff 期间收到的异妖伤害增加30%，buff持续正常，最大叠加1层。 | B34: =CLEAN(SUBSTITUTE(SUBSTITUTE(SUBSTITUTE(SUBSTITUTE(SUBSTITUTE(SUBSTITUTE(SUBSTITUTE(A34,"成","成<color=#4c805eFF>",1),"点","点</color>",1),"沉默","<color=#4c805eFF>沉默</color>",1),"眩晕","<color=#4c805eFF>眩晕</color>",1),"中毒目标","<color=#4c805eFF>中毒目标</color>",1),"燃烧目标","<color=#4c805eFF>燃烧目标</color>",1),"流血目标","<color=#4c805eFF>流血目标</color>",1)) -> 对敌方随机2人造成<color=#4c805eFF>7810点</color>伤害，同时给对方增加一层虚弱buff，buff 期间收到的异妖伤害增加30%，buff持续正常，最大叠加1层。 | C34: 对敌方随机2人造成<color=#4c805eFF>7810点</color>伤害，同时给对方增加一层虚弱buff，buff 期间收到的异妖伤害增加30%，buff持续正常，最大叠加1层。
A35: 对敌方随机2人造成11716点伤害，同时给对方增加一层虚弱buff，buff 期间收到的异妖伤害增加30%，buff持续正常，最大叠加1层。 | B35: 对敌方随机2人造成<color=#4c805eFF>11716点</color>伤害，同时给对方增加一层虚弱buff，buff 期间收到的异妖伤害增加30%，buff持续正常，最大叠加1层。 | C35: 对敌方随机2人造成<color=#4c805eFF>11716点</color>伤害，同时给对方增加一层虚弱buff，buff 期间收到的异妖伤害增加30%，buff持续正常，最大叠加1层。
A36: 对敌方随机2人造成11716点伤害，同时给对方增加一层虚弱buff，buff 期间收到的异妖伤害增加30%，buff持续正常，最大叠加2层。 | B36: 对敌方随机2人造成<color=#4c805eFF>11716点</color>伤害，同时给对方增加一层虚弱buff，buff 期间收到的异妖伤害增加30%，buff持续正常，最大叠加2层。 | C36: 对敌方随机2人造成<color=#4c805eFF>11716点</color>伤害，同时给对方增加一层虚弱buff，buff 期间收到的异妖伤害增加30%，buff持续正常，最大叠加2层。
A37: 对敌方随机2人造成15621点伤害，同时给对方增加一层虚弱buff，buff 期间收到的异妖伤害增加30%，buff持续正常，最大叠加2层。 | B37: 对敌方随机2人造成<color=#4c805eFF>15621点</color>伤害，同时给对方增加一层虚弱buff，buff 期间收到的异妖伤害增加30%，buff持续正常，最大叠加2层。 | C37: 对敌方随机2人造成<color=#4c805eFF>15621点</color>伤害，同时给对方增加一层虚弱buff，buff 期间收到的异妖伤害增加30%，buff持续正常，最大叠加2层。
A38: 对敌方随机2人造成15621点伤害，同时给对方增加一层虚弱buff，buff 期间收到的异妖伤害增加40%，buff持续正常，最大叠加2层。 | B38: 对敌方随机2人造成<color=#4c805eFF>15621点</color>伤害，同时给对方增加一层虚弱buff，buff 期间收到的异妖伤害增加40%，buff持续正常，最大叠加2层。 | C38: 对敌方随机2人造成<color=#4c805eFF>15621点</color>伤害，同时给对方增加一层虚弱buff，buff 期间收到的异妖伤害增加40%，buff持续正常，最大叠加2层。
A39: 对敌方随机2人造成19527点伤害，同时给对方增加一层虚弱buff，buff 期间收到的异妖伤害增加40%，buff持续正常，最大叠加2层。 | B39: 对敌方随机2人造成<color=#4c805eFF>19527点</color>伤害，同时给对方增加一层虚弱buff，buff 期间收到的异妖伤害增加40%，buff持续正常，最大叠加2层。 | C39: 对敌方随机2人造成<color=#4c805eFF>19527点</color>伤害，同时给对方增加一层虚弱buff，buff 期间收到的异妖伤害增加40%，buff持续正常，最大叠加2层。
A40: 对敌方随机2人造成19527点伤害，同时给对方增加一层虚弱buff，buff 期间收到的异妖伤害增加50%，buff持续正常，最大叠加2层。 | B40: 对敌方随机2人造成<color=#4c805eFF>19527点</color>伤害，同时给对方增加一层虚弱buff，buff 期间收到的异妖伤害增加50%，buff持续正常，最大叠加2层。 | C40: 对敌方随机2人造成<color=#4c805eFF>19527点</color>伤害，同时给对方增加一层虚弱buff，buff 期间收到的异妖伤害增加50%，buff持续正常，最大叠加2层。
A41: 对随机3名敌人造成4014点伤害，每秒额外造成300点额外伤害，持续5秒，提高我方随机3人对中毒目标20%的伤害加深，持续5秒。 | B41: 对随机3名敌人造成<color=#4c805eFF>4014点</color>伤害，每秒额外造成300点额外伤害，持续5秒，提高我方随机3人对<color=#4c805eFF>中毒目标</color>20%的伤害加深，持续5秒。 | C41: 对随机3名敌人造成<color=#4c805eFF>4014点</color>伤害，每秒额外造成300点额外伤害，持续5秒，提高我方随机3人对<color=#4c805eFF>中毒目标</color>20%的伤害加深，持续5秒。
A42: 对随机3名敌人造成4014点伤害，每秒额外造成400点额外伤害，持续5秒，提高我方随机3人对中毒目标20%的伤害加深，持续5秒。 | B42: 对随机3名敌人造成<color=#4c805eFF>4014点</color>伤害，每秒额外造成400点额外伤害，持续5秒，提高我方随机3人对<color=#4c805eFF>中毒目标</color>20%的伤害加深，持续5秒。 | C42: 对随机3名敌人造成<color=#4c805eFF>4014点</color>伤害，每秒额外造成400点额外伤害，持续5秒，提高我方随机3人对<color=#4c805eFF>中毒目标</color>20%的伤害加深，持续5秒。
A43: 对随机3名敌人造成8028点伤害，每秒额外造成400点额外伤害，持续5秒，提高我方随机3人对中毒目标20%的伤害加深，持续5秒。 | B43: 对随机3名敌人造成<color=#4c805eFF>8028点</color>伤害，每秒额外造成400点额外伤害，持续5秒，提高我方随机3人对<color=#4c805eFF>中毒目标</color>20%的伤害加深，持续5秒。 | C43: 对随机3名敌人造成<color=#4c805eFF>8028点</color>伤害，每秒额外造成400点额外伤害，持续5秒，提高我方随机3人对<color=#4c805eFF>中毒目标</color>20%的伤害加深，持续5秒。
A44: 对随机3名敌人造成8028点伤害，每秒额外造成500点额外伤害，持续5秒，提高我方随机3人对中毒目标20%的伤害加深，持续5秒。 | B44: 对随机3名敌人造成<color=#4c805eFF>8028点</color>伤害，每秒额外造成500点额外伤害，持续5秒，提高我方随机3人对<color=#4c805eFF>中毒目标</color>20%的伤害加深，持续5秒。 | C44: 对随机3名敌人造成<color=#4c805eFF>8028点</color>伤害，每秒额外造成500点额外伤害，持续5秒，提高我方随机3人对<color=#4c805eFF>中毒目标</color>20%的伤害加深，持续5秒。
A45: 对随机3名敌人造成12043点伤害，每秒额外造成500点额外伤害，持续5秒，提高我方随机3人对中毒目标20%的伤害加深，持续5秒。 | B45: 对随机3名敌人造成<color=#4c805eFF>12043点</color>伤害，每秒额外造成500点额外伤害，持续5秒，提高我方随机3人对<color=#4c805eFF>中毒目标</color>20%的伤害加深，持续5秒。 | C45: 对随机3名敌人造成<color=#4c805eFF>12043点</color>伤害，每秒额外造成500点额外伤害，持续5秒，提高我方随机3人对<color=#4c805eFF>中毒目标</color>20%的伤害加深，持续5秒。
A46: 对随机3名敌人造成12043点伤害，每秒额外造成500点额外伤害，持续10秒，提高我方随机3人对中毒目标20%的伤害加深，持续5秒。 | B46: 对随机3名敌人造成<color=#4c805eFF>12043点</color>伤害，每秒额外造成500点额外伤害，持续10秒，提高我方随机3人对<color=#4c805eFF>中毒目标</color>20%的伤害加深，持续5秒。 | C46: 对随机3名敌人造成<color=#4c805eFF>12043点</color>伤害，每秒额外造成500点额外伤害，持续10秒，提高我方随机3人对<color=#4c805eFF>中毒目标</color>20%的伤害加深，持续5秒。
A47: 对随机3名敌人造成16057点伤害，每秒额外造成500点额外伤害，持续10秒，提高我方随机3人对中毒目标20%的伤害加深，持续5秒。 | B47: 对随机3名敌人造成<color=#4c805eFF>16057点</color>伤害，每秒额外造成500点额外伤害，持续10秒，提高我方随机3人对<color=#4c805eFF>中毒目标</color>20%的伤害加深，持续5秒。 | C47: 对随机3名敌人造成<color=#4c805eFF>16057点</color>伤害，每秒额外造成500点额外伤害，持续10秒，提高我方随机3人对<color=#4c805eFF>中毒目标</color>20%的伤害加深，持续5秒。
A48: 对随机3名敌人造成16057点伤害，每秒额外造成500点额外伤害，持续10秒，提高我方随机3人对中毒目标20%的伤害加深，持续10秒。 | B48: 对随机3名敌人造成<color=#4c805eFF>16057点</color>伤害，每秒额外造成500点额外伤害，持续10秒，提高我方随机3人对<color=#4c805eFF>中毒目标</color>20%的伤害加深，持续10秒。 | C48: 对随机3名敌人造成<color=#4c805eFF>16057点</color>伤害，每秒额外造成500点额外伤害，持续10秒，提高我方随机3人对<color=#4c805eFF>中毒目标</color>20%的伤害加深，持续10秒。
A49: 对随机3名敌人造成20072点伤害，每秒额外造成500点额外伤害，持续10秒，提高我方随机3人对中毒目标20%的伤害加深，持续10秒。 | B49: 对随机3名敌人造成<color=#4c805eFF>20072点</color>伤害，每秒额外造成500点额外伤害，持续10秒，提高我方随机3人对<color=#4c805eFF>中毒目标</color>20%的伤害加深，持续10秒。 | C49: 对随机3名敌人造成<color=#4c805eFF>20072点</color>伤害，每秒额外造成500点额外伤害，持续10秒，提高我方随机3人对<color=#4c805eFF>中毒目标</color>20%的伤害加深，持续10秒。
A50: 对随机3名敌人造成20072点伤害，每秒额外造成500点额外伤害，持续10秒，提高我方随机3人对中毒目标30%的伤害加深，持续10秒。 | B50: 对随机3名敌人造成<color=#4c805eFF>20072点</color>伤害，每秒额外造成500点额外伤害，持续10秒，提高我方随机3人对<color=#4c805eFF>中毒目标</color>30%的伤害加深，持续10秒。 | C50: 对随机3名敌人造成<color=#4c805eFF>20072点</color>伤害，每秒额外造成500点额外伤害，持续10秒，提高我方随机3人对<color=#4c805eFF>中毒目标</color>30%的伤害加深，持续10秒。
A51: 对随机3名敌人造成4272点伤害，每秒额外造成300点额外伤害，持续5秒，提高我方随机3人对流血目标20%的伤害加深，持续5秒。 | B51: 对随机3名敌人造成<color=#4c805eFF>4272点</color>伤害，每秒额外造成300点额外伤害，持续5秒，提高我方随机3人对<color=#4c805eFF>流血目标</color>20%的伤害加深，持续5秒。 | C51: 对随机3名敌人造成<color=#4c805eFF>4272点</color>伤害，每秒额外造成300点额外伤害，持续5秒，提高我方随机3人对<color=#4c805eFF>流血目标</color>20%的伤害加深，持续5秒。
A52: 对随机3名敌人造成4272点伤害，每秒额外造成400点额外伤害，持续5秒，提高我方随机3人对流血目标20%的伤害加深，持续5秒。 | B52: 对随机3名敌人造成<color=#4c805eFF>4272点</color>伤害，每秒额外造成400点额外伤害，持续5秒，提高我方随机3人对<color=#4c805eFF>流血目标</color>20%的伤害加深，持续5秒。 | C52: 对随机3名敌人造成<color=#4c805eFF>4272点</color>伤害，每秒额外造成400点额外伤害，持续5秒，提高我方随机3人对<color=#4c805eFF>流血目标</color>20%的伤害加深，持续5秒。
A53: 对随机3名敌人造成8545点伤害，每秒额外造成400点额外伤害，持续5秒，提高我方随机3人对流血目标20%的伤害加深，持续5秒。 | B53: 对随机3名敌人造成<color=#4c805eFF>8545点</color>伤害，每秒额外造成400点额外伤害，持续5秒，提高我方随机3人对<color=#4c805eFF>流血目标</color>20%的伤害加深，持续5秒。 | C53: 对随机3名敌人造成<color=#4c805eFF>8545点</color>伤害，每秒额外造成400点额外伤害，持续5秒，提高我方随机3人对<color=#4c805eFF>流血目标</color>20%的伤害加深，持续5秒。
A54: 对随机3名敌人造成8545点伤害，每秒额外造成400点额外伤害，持续10秒，提高我方随机3人对流血目标20%的伤害加深，持续5秒。 | B54: 对随机3名敌人造成<color=#4c805eFF>8545点</color>伤害，每秒额外造成400点额外伤害，持续10秒，提高我方随机3人对<color=#4c805eFF>流血目标</color>20%的伤害加深，持续5秒。 | C54: 对随机3名敌人造成<color=#4c805eFF>8545点</color>伤害，每秒额外造成400点额外伤害，持续10秒，提高我方随机3人对<color=#4c805eFF>流血目标</color>20%的伤害加深，持续5秒。
A55: 对随机3名敌人造成12817点伤害，每秒额外造成400点额外伤害，持续10秒，提高我方随机3人对流血目标20%的伤害加深，持续5秒。 | B55: 对随机3名敌人造成<color=#4c805eFF>12817点</color>伤害，每秒额外造成400点额外伤害，持续10秒，提高我方随机3人对<color=#4c805eFF>流血目标</color>20%的伤害加深，持续5秒。 | C55: 对随机3名敌人造成<color=#4c805eFF>12817点</color>伤害，每秒额外造成400点额外伤害，持续10秒，提高我方随机3人对<color=#4c805eFF>流血目标</color>20%的伤害加深，持续5秒。
A56: 对随机3名敌人造成12817点伤害，每秒额外造成600点额外伤害，持续10秒，提高我方随机3人对流血目标20%的伤害加深，持续5秒。 | B56: 对随机3名敌人造成<color=#4c805eFF>12817点</color>伤害，每秒额外造成600点额外伤害，持续10秒，提高我方随机3人对<color=#4c805eFF>流血目标</color>20%的伤害加深，持续5秒。 | C56: 对随机3名敌人造成<color=#4c805eFF>12817点</color>伤害，每秒额外造成600点额外伤害，持续10秒，提高我方随机3人对<color=#4c805eFF>流血目标</color>20%的伤害加深，持续5秒。
A57: 对随机3名敌人造成17090点伤害，每秒额外造成600点额外伤害，持续10秒，提高我方随机3人对流血目标20%的伤害加深，持续5秒。 | B57: 对随机3名敌人造成<color=#4c805eFF>17090点</color>伤害，每秒额外造成600点额外伤害，持续10秒，提高我方随机3人对<color=#4c805eFF>流血目标</color>20%的伤害加深，持续5秒。 | C57: 对随机3名敌人造成<color=#4c805eFF>17090点</color>伤害，每秒额外造成600点额外伤害，持续10秒，提高我方随机3人对<color=#4c805eFF>流血目标</color>20%的伤害加深，持续5秒。
A58: 对随机3名敌人造成17090点伤害，每秒额外造成600点额外伤害，持续10秒，提高我方随机3人对流血目标20%的伤害加深，持续10秒。 | B58: 对随机3名敌人造成<color=#4c805eFF>17090点</color>伤害，每秒额外造成600点额外伤害，持续10秒，提高我方随机3人对<color=#4c805eFF>流血目标</color>20%的伤害加深，持续10秒。 | C58: 对随机3名敌人造成<color=#4c805eFF>17090点</color>伤害，每秒额外造成600点额外伤害，持续10秒，提高我方随机3人对<color=#4c805eFF>流血目标</color>20%的伤害加深，持续10秒。
A59: 对随机3名敌人造成21363点伤害，每秒额外造成600点额外伤害，持续10秒，提高我方随机3人对流血目标20%的伤害加深，持续10秒。 | B59: 对随机3名敌人造成<color=#4c805eFF>21363点</color>伤害，每秒额外造成600点额外伤害，持续10秒，提高我方随机3人对<color=#4c805eFF>流血目标</color>20%的伤害加深，持续10秒。 | C59: 对随机3名敌人造成<color=#4c805eFF>21363点</color>伤害，每秒额外造成600点额外伤害，持续10秒，提高我方随机3人对<color=#4c805eFF>流血目标</color>20%的伤害加深，持续10秒。
A60: 对随机3名敌人造成21363点伤害，每秒额外造成600点额外伤害，持续10秒，提高我方随机3人对流血目标30%的伤害加深，持续10秒。 | B60: 对随机3名敌人造成<color=#4c805eFF>21363点</color>伤害，每秒额外造成600点额外伤害，持续10秒，提高我方随机3人对<color=#4c805eFF>流血目标</color>30%的伤害加深，持续10秒。 | C60: 对随机3名敌人造成<color=#4c805eFF>21363点</color>伤害，每秒额外造成600点额外伤害，持续10秒，提高我方随机3人对<color=#4c805eFF>流血目标</color>30%的伤害加深，持续10秒。
A61: 对随机3名敌人造成5401点伤害，每秒额外造成300点额外伤害，持续5秒，提高我方随机3人对燃烧目标20%的伤害加深，持续5秒。 | B61: 对随机3名敌人造成<color=#4c805eFF>5401点</color>伤害，每秒额外造成300点额外伤害，持续5秒，提高我方随机3人对<color=#4c805eFF>燃烧目标</color>20%的伤害加深，持续5秒。 | C61: 对随机3名敌人造成<color=#4c805eFF>5401点</color>伤害，每秒额外造成300点额外伤害，持续5秒，提高我方随机3人对<color=#4c805eFF>燃烧目标</color>20%的伤害加深，持续5秒。
A62: 对随机3名敌人造成5401点伤害，每秒额外造成600点额外伤害，持续5秒，提高我方随机3人对燃烧目标20%的伤害加深，持续5秒。 | B62: 对随机3名敌人造成<color=#4c805eFF>5401点</color>伤害，每秒额外造成600点额外伤害，持续5秒，提高我方随机3人对<color=#4c805eFF>燃烧目标</color>20%的伤害加深，持续5秒。 | C62: 对随机3名敌人造成<color=#4c805eFF>5401点</color>伤害，每秒额外造成600点额外伤害，持续5秒，提高我方随机3人对<color=#4c805eFF>燃烧目标</color>20%的伤害加深，持续5秒。
A63: 对随机3名敌人造成10803点伤害，每秒额外造成600点额外伤害，持续5秒，提高我方随机3人对燃烧目标20%的伤害加深，持续5秒。 | B63: 对随机3名敌人造成<color=#4c805eFF>10803点</color>伤害，每秒额外造成600点额外伤害，持续5秒，提高我方随机3人对<color=#4c805eFF>燃烧目标</color>20%的伤害加深，持续5秒。 | C63: 对随机3名敌人造成<color=#4c805eFF>10803点</color>伤害，每秒额外造成600点额外伤害，持续5秒，提高我方随机3人对<color=#4c805eFF>燃烧目标</color>20%的伤害加深，持续5秒。
A64: 对随机3名敌人造成10803点伤害，每秒额外造成600点额外伤害，持续10秒，提高我方随机3人对燃烧目标20%的伤害加深，持续5秒。 | B64: 对随机3名敌人造成<color=#4c805eFF>10803点</color>伤害，每秒额外造成600点额外伤害，持续10秒，提高我方随机3人对<color=#4c805eFF>燃烧目标</color>20%的伤害加深，持续5秒。 | C64: 对随机3名敌人造成<color=#4c805eFF>10803点</color>伤害，每秒额外造成600点额外伤害，持续10秒，提高我方随机3人对<color=#4c805eFF>燃烧目标</color>20%的伤害加深，持续5秒。
A65: 对随机3名敌人造成16205点伤害，每秒额外造成600点额外伤害，持续10秒，提高我方随机3人对燃烧目标20%的伤害加深，持续5秒。 | B65: 对随机3名敌人造成<color=#4c805eFF>16205点</color>伤害，每秒额外造成600点额外伤害，持续10秒，提高我方随机3人对<color=#4c805eFF>燃烧目标</color>20%的伤害加深，持续5秒。 | C65: 对随机3名敌人造成<color=#4c805eFF>16205点</color>伤害，每秒额外造成600点额外伤害，持续10秒，提高我方随机3人对<color=#4c805eFF>燃烧目标</color>20%的伤害加深，持续5秒。
A66: 对随机3名敌人造成16205点伤害，每秒额外造成900点额外伤害，持续10秒，提高我方随机3人对燃烧目标20%的伤害加深，持续5秒。 | B66: =CLEAN(SUBSTITUTE(SUBSTITUTE(SUBSTITUTE(SUBSTITUTE(SUBSTITUTE(SUBSTITUTE(SUBSTITUTE(A66,"成","成<color=#4c805eFF>",1),"点","点</color>",1),"沉默","<color=#4c805eFF>沉默</color>",1),"眩晕","<color=#4c805eFF>眩晕</color>",1),"中毒目标","<color=#4c805eFF>中毒目标</color>",1),"燃烧目标","<color=#4c805eFF>燃烧目标</color>",1),"流血目标","<color=#4c805eFF>流血目标</color>",1)) -> 对随机3名敌人造成<color=#4c805eFF>16205点</color>伤害，每秒额外造成900点额外伤害，持续10秒，提高我方随机3人对<color=#4c805eFF>燃烧目标</color>20%的伤害加深，持续5秒。 | C66: 对随机3名敌人造成<color=#4c805eFF>16205点</color>伤害，每秒额外造成900点额外伤害，持续10秒，提高我方随机3人对<color=#4c805eFF>燃烧目标</color>20%的伤害加深，持续5秒。
A67: 对随机3名敌人造成21607点伤害，每秒额外造成900点额外伤害，持续10秒，提高我方随机3人对燃烧目标20%的伤害加深，持续5秒。 | B67: 对随机3名敌人造成<color=#4c805eFF>21607点</color>伤害，每秒额外造成900点额外伤害，持续10秒，提高我方随机3人对<color=#4c805eFF>燃烧目标</color>20%的伤害加深，持续5秒。 | C67: 对随机3名敌人造成<color=#4c805eFF>21607点</color>伤害，每秒额外造成900点额外伤害，持续10秒，提高我方随机3人对<color=#4c805eFF>燃烧目标</color>20%的伤害加深，持续5秒。
A68: 对随机3名敌人造成21607点伤害，每秒额外造成900点额外伤害，持续10秒，提高我方随机3人对燃烧目标20%的伤害加深，持续10秒。 | B68: 对随机3名敌人造成<color=#4c805eFF>21607点</color>伤害，每秒额外造成900点额外伤害，持续10秒，提高我方随机3人对<color=#4c805eFF>燃烧目标</color>20%的伤害加深，持续10秒。 | C68: 对随机3名敌人造成<color=#4c805eFF>21607点</color>伤害，每秒额外造成900点额外伤害，持续10秒，提高我方随机3人对<color=#4c805eFF>燃烧目标</color>20%的伤害加深，持续10秒。
A69: 对随机3名敌人造成27009点伤害，每秒额外造成900点额外伤害，持续10秒，提高我方随机3人对燃烧目标20%的伤害加深，持续10秒。 | B69: 对随机3名敌人造成<color=#4c805eFF>27009点</color>伤害，每秒额外造成900点额外伤害，持续10秒，提高我方随机3人对<color=#4c805eFF>燃烧目标</color>20%的伤害加深，持续10秒。 | C69: 对随机3名敌人造成<color=#4c805eFF>27009点</color>伤害，每秒额外造成900点额外伤害，持续10秒，提高我方随机3人对<color=#4c805eFF>燃烧目标</color>20%的伤害加深，持续10秒。
A70: 对随机3名敌人造成27009点伤害，每秒额外造成900点额外伤害，持续10秒，提高我方随机3人对燃烧目标30%的伤害加深，持续10秒。 | B70: 对随机3名敌人造成<color=#4c805eFF>27009点</color>伤害，每秒额外造成900点额外伤害，持续10秒，提高我方随机3人对<color=#4c805eFF>燃烧目标</color>30%的伤害加深，持续10秒。 | C70: 对随机3名敌人造成<color=#4c805eFF>27009点</color>伤害，每秒额外造成900点额外伤害，持续10秒，提高我方随机3人对<color=#4c805eFF>燃烧目标</color>30%的伤害加深，持续10秒。
A71: 对随机3名敌人造成7758点伤害，同时有20%对敌人沉默，持续5秒，提高我方随机3人对沉默敌人20%的伤害加深，持续5秒。 | B71: 对随机3名敌人造成<color=#4c805eFF>7758点</color>伤害，同时有20%对敌人<color=#4c805eFF>沉默</color>，持续5秒，提高我方随机3人对沉默敌人20%的伤害加深，持续5秒。 | C71: 对随机3名敌人造成<color=#4c805eFF>7758点</color>伤害，同时有20%对敌人<color=#4c805eFF>沉默</color>，持续5秒，提高我方随机3人对沉默敌人20%的伤害加深，持续5秒。
A72: 对随机3名敌人造成7758点伤害，同时有40%对敌人沉默，持续5秒，提高我方随机3人对沉默敌人20%的伤害加深，持续5秒。 | B72: 对随机3名敌人造成<color=#4c805eFF>7758点</color>伤害，同时有40%对敌人<color=#4c805eFF>沉默</color>，持续5秒，提高我方随机3人对沉默敌人20%的伤害加深，持续5秒。 | C72: 对随机3名敌人造成<color=#4c805eFF>7758点</color>伤害，同时有40%对敌人<color=#4c805eFF>沉默</color>，持续5秒，提高我方随机3人对沉默敌人20%的伤害加深，持续5秒。
A73: 对随机3名敌人造成15516点伤害，同时有40%对敌人沉默，持续5秒，提高我方随机3人对沉默敌人20%的伤害加深，持续5秒。 | B73: 对随机3名敌人造成<color=#4c805eFF>15516点</color>伤害，同时有40%对敌人<color=#4c805eFF>沉默</color>，持续5秒，提高我方随机3人对沉默敌人20%的伤害加深，持续5秒。 | C73: 对随机3名敌人造成<color=#4c805eFF>15516点</color>伤害，同时有40%对敌人<color=#4c805eFF>沉默</color>，持续5秒，提高我方随机3人对沉默敌人20%的伤害加深，持续5秒。
A74: 对随机3名敌人造成15516点伤害，同时有40%对敌人沉默，持续10秒，提高我方随机3人对沉默敌人20%的伤害加深，持续5秒。 | B74: 对随机3名敌人造成<color=#4c805eFF>15516点</color>伤害，同时有40%对敌人<color=#4c805eFF>沉默</color>，持续10秒，提高我方随机3人对沉默敌人20%的伤害加深，持续5秒。 | C74: 对随机3名敌人造成<color=#4c805eFF>15516点</color>伤害，同时有40%对敌人<color=#4c805eFF>沉默</color>，持续10秒，提高我方随机3人对沉默敌人20%的伤害加深，持续5秒。
A75: 对随机3名敌人造成23274点伤害，同时有40%对敌人沉默，持续10秒，提高我方随机3人对沉默敌人20%的伤害加深，持续5秒。 | B75: 对随机3名敌人造成<color=#4c805eFF>23274点</color>伤害，同时有40%对敌人<color=#4c805eFF>沉默</color>，持续10秒，提高我方随机3人对沉默敌人20%的伤害加深，持续5秒。 | C75: 对随机3名敌人造成<color=#4c805eFF>23274点</color>伤害，同时有40%对敌人<color=#4c805eFF>沉默</color>，持续10秒，提高我方随机3人对沉默敌人20%的伤害加深，持续5秒。
A76: 对随机3名敌人造成23274点伤害，同时有50%对敌人沉默，持续10秒，提高我方随机3人对沉默敌人20%的伤害加深，持续5秒。 | B76: 对随机3名敌人造成<color=#4c805eFF>23274点</color>伤害，同时有50%对敌人<color=#4c805eFF>沉默</color>，持续10秒，提高我方随机3人对沉默敌人20%的伤害加深，持续5秒。 | C76: 对随机3名敌人造成<color=#4c805eFF>23274点</color>伤害，同时有50%对敌人<color=#4c805eFF>沉默</color>，持续10秒，提高我方随机3人对沉默敌人20%的伤害加深，持续5秒。
A77: 对随机3名敌人造成31032点伤害，同时有50%对敌人沉默，持续10秒，提高我方随机3人对沉默敌人20%的伤害加深，持续5秒。 | B77: 对随机3名敌人造成<color=#4c805eFF>31032点</color>伤害，同时有50%对敌人<color=#4c805eFF>沉默</color>，持续10秒，提高我方随机3人对沉默敌人20%的伤害加深，持续5秒。 | C77: 对随机3名敌人造成<color=#4c805eFF>31032点</color>伤害，同时有50%对敌人<color=#4c805eFF>沉默</color>，持续10秒，提高我方随机3人对沉默敌人20%的伤害加深，持续5秒。
A78: 对随机3名敌人造成31032点伤害，同时有50%对敌人沉默，持续10秒，提高我方随机3人对沉默敌人20%的伤害加深，持续10秒。 | B78: 对随机3名敌人造成<color=#4c805eFF>31032点</color>伤害，同时有50%对敌人<color=#4c805eFF>沉默</color>，持续10秒，提高我方随机3人对沉默敌人20%的伤害加深，持续10秒。 | C78: 对随机3名敌人造成<color=#4c805eFF>31032点</color>伤害，同时有50%对敌人<color=#4c805eFF>沉默</color>，持续10秒，提高我方随机3人对沉默敌人20%的伤害加深，持续10秒。
A79: 对随机3名敌人造成38790点伤害，同时有50%对敌人沉默，持续10秒，提高我方随机3人对沉默敌人20%的伤害加深，持续10秒。 | B79: 对随机3名敌人造成<color=#4c805eFF>38790点</color>伤害，同时有50%对敌人<color=#4c805eFF>沉默</color>，持续10秒，提高我方随机3人对沉默敌人20%的伤害加深，持续10秒。 | C79: 对随机3名敌人造成<color=#4c805eFF>38790点</color>伤害，同时有50%对敌人<color=#4c805eFF>沉默</color>，持续10秒，提高我方随机3人对沉默敌人20%的伤害加深，持续10秒。
A80: 对随机3名敌人造成38790点伤害，同时有50%对敌人沉默，持续10秒，提高我方随机3人对沉默敌人30%的伤害加深，持续10秒。 | B80: 对随机3名敌人造成<color=#4c805eFF>38790点</color>伤害，同时有50%对敌人<color=#4c805eFF>沉默</color>，持续10秒，提高我方随机3人对沉默敌人30%的伤害加深，持续10秒。 | C80: 对随机3名敌人造成<color=#4c805eFF>38790点</color>伤害，同时有50%对敌人<color=#4c805eFF>沉默</color>，持续10秒，提高我方随机3人对沉默敌人30%的伤害加深，持续10秒。
A81: 对随机3名敌人造成10436点伤害，同时有20%对敌人眩晕，持续5秒，提高我方随机3人对眩晕敌人20%的伤害加深，持续5秒。 | B81: 对随机3名敌人造成<color=#4c805eFF>10436点</color>伤害，同时有20%对敌人<color=#4c805eFF>眩晕</color>，持续5秒，提高我方随机3人对眩晕敌人20%的伤害加深，持续5秒。 | C81: 对随机3名敌人造成<color=#4c805eFF>10436点</color>伤害，同时有20%对敌人<color=#4c805eFF>眩晕</color>，持续5秒，提高我方随机3人对眩晕敌人20%的伤害加深，持续5秒。
A82: 对随机3名敌人造成10436点伤害，同时有40%对敌人眩晕，持续5秒，提高我方随机3人对眩晕敌人20%的伤害加深，持续5秒。 | B82: 对随机3名敌人造成<color=#4c805eFF>10436点</color>伤害，同时有40%对敌人<color=#4c805eFF>眩晕</color>，持续5秒，提高我方随机3人对眩晕敌人20%的伤害加深，持续5秒。 | C82: 对随机3名敌人造成<color=#4c805eFF>10436点</color>伤害，同时有40%对敌人<color=#4c805eFF>眩晕</color>，持续5秒，提高我方随机3人对眩晕敌人20%的伤害加深，持续5秒。
A83: 对随机3名敌人造成20872点伤害，同时有40%对敌人眩晕，持续5秒，提高我方随机3人对眩晕敌人20%的伤害加深，持续5秒。 | B83: 对随机3名敌人造成<color=#4c805eFF>20872点</color>伤害，同时有40%对敌人<color=#4c805eFF>眩晕</color>，持续5秒，提高我方随机3人对眩晕敌人20%的伤害加深，持续5秒。 | C83: 对随机3名敌人造成<color=#4c805eFF>20872点</color>伤害，同时有40%对敌人<color=#4c805eFF>眩晕</color>，持续5秒，提高我方随机3人对眩晕敌人20%的伤害加深，持续5秒。
A84: 对随机3名敌人造成20872点伤害，同时有40%对敌人眩晕，持续10秒，提高我方随机3人对眩晕敌人20%的伤害加深，持续5秒。 | B84: 对随机3名敌人造成<color=#4c805eFF>20872点</color>伤害，同时有40%对敌人<color=#4c805eFF>眩晕</color>，持续10秒，提高我方随机3人对眩晕敌人20%的伤害加深，持续5秒。 | C84: 对随机3名敌人造成<color=#4c805eFF>20872点</color>伤害，同时有40%对敌人<color=#4c805eFF>眩晕</color>，持续10秒，提高我方随机3人对眩晕敌人20%的伤害加深，持续5秒。
A85: 对随机3名敌人造成31308点伤害，同时有40%对敌人眩晕，持续10秒，提高我方随机3人对眩晕敌人20%的伤害加深，持续5秒。 | B85: 对随机3名敌人造成<color=#4c805eFF>31308点</color>伤害，同时有40%对敌人<color=#4c805eFF>眩晕</color>，持续10秒，提高我方随机3人对眩晕敌人20%的伤害加深，持续5秒。 | C85: 对随机3名敌人造成<color=#4c805eFF>31308点</color>伤害，同时有40%对敌人<color=#4c805eFF>眩晕</color>，持续10秒，提高我方随机3人对眩晕敌人20%的伤害加深，持续5秒。
A86: 对随机3名敌人造成31308点伤害，同时有50%对敌人眩晕，持续10秒，提高我方随机3人对眩晕敌人20%的伤害加深，持续5秒。 | B86: 对随机3名敌人造成<color=#4c805eFF>31308点</color>伤害，同时有50%对敌人<color=#4c805eFF>眩晕</color>，持续10秒，提高我方随机3人对眩晕敌人20%的伤害加深，持续5秒。 | C86: 对随机3名敌人造成<color=#4c805eFF>31308点</color>伤害，同时有50%对敌人<color=#4c805eFF>眩晕</color>，持续10秒，提高我方随机3人对眩晕敌人20%的伤害加深，持续5秒。
A87: 对随机3名敌人造成41744点伤害，同时有50%对敌人眩晕，持续10秒，提高我方随机3人对眩晕敌人20%的伤害加深，持续5秒。 | B87: 对随机3名敌人造成<color=#4c805eFF>41744点</color>伤害，同时有50%对敌人<color=#4c805eFF>眩晕</color>，持续10秒，提高我方随机3人对眩晕敌人20%的伤害加深，持续5秒。 | C87: 对随机3名敌人造成<color=#4c805eFF>41744点</color>伤害，同时有50%对敌人<color=#4c805eFF>眩晕</color>，持续10秒，提高我方随机3人对眩晕敌人20%的伤害加深，持续5秒。
A88: 对随机3名敌人造成41744点伤害，同时有50%对敌人眩晕，持续10秒，提高我方随机3人对眩晕敌人20%的伤害加深，持续10秒。 | B88: 对随机3名敌人造成<color=#4c805eFF>41744点</color>伤害，同时有50%对敌人<color=#4c805eFF>眩晕</color>，持续10秒，提高我方随机3人对眩晕敌人20%的伤害加深，持续10秒。 | C88: 对随机3名敌人造成<color=#4c805eFF>41744点</color>伤害，同时有50%对敌人<color=#4c805eFF>眩晕</color>，持续10秒，提高我方随机3人对眩晕敌人20%的伤害加深，持续10秒。
A89: 对随机3名敌人造成52181点伤害，同时有50%对敌人眩晕，持续10秒，提高我方随机3人对眩晕敌人20%的伤害加深，持续10秒。 | B89: 对随机3名敌人造成<color=#4c805eFF>52181点</color>伤害，同时有50%对敌人<color=#4c805eFF>眩晕</color>，持续10秒，提高我方随机3人对眩晕敌人20%的伤害加深，持续10秒。 | C89: 对随机3名敌人造成<color=#4c805eFF>52181点</color>伤害，同时有50%对敌人<color=#4c805eFF>眩晕</color>，持续10秒，提高我方随机3人对眩晕敌人20%的伤害加深，持续10秒。
A90: 对随机3名敌人造成52181点伤害，同时有50%对敌人眩晕，持续10秒，提高我方随机3人对眩晕敌人30%的伤害加深，持续10秒。 | B90: 对随机3名敌人造成<color=#4c805eFF>52181点</color>伤害，同时有50%对敌人<color=#4c805eFF>眩晕</color>，持续10秒，提高我方随机3人对眩晕敌人30%的伤害加深，持续10秒。 | C90: 对随机3名敌人造成<color=#4c805eFF>52181点</color>伤害，同时有50%对敌人<color=#4c805eFF>眩晕</color>，持续10秒，提高我方随机3人对眩晕敌人30%的伤害加深，持续10秒。
A91: 对敌方随机4人造成6400点伤害，增加我方全体30%速度，持续5秒，同时给全体附加神圣buff，buff 期间受到的伤害减少20%，持续5秒。 | B91: 对敌方随机4人造成<color=#4c805eFF>6400点</color>伤害，增加我方全体30%速度，持续5秒，同时给全体附加神圣buff，buff 期间受到的伤害减少20%，持续5秒。 | C91: 对敌方随机4人造成<color=#4c805eFF>6400点</color>伤害，增加我方全体30%速度，持续5秒，同时给全体附加神圣buff，buff 期间受到的伤害减少20%，持续5秒。
A92: 对敌方随机4人造成6400点伤害，增加我方全体60%速度，持续5秒，同时给全体附加神圣buff，buff 期间受到的伤害减少20%，持续5秒。 | B92: 对敌方随机4人造成<color=#4c805eFF>6400点</color>伤害，增加我方全体60%速度，持续5秒，同时给全体附加神圣buff，buff 期间受到的伤害减少20%，持续5秒。 | C92: 对敌方随机4人造成<color=#4c805eFF>6400点</color>伤害，增加我方全体60%速度，持续5秒，同时给全体附加神圣buff，buff 期间受到的伤害减少20%，持续5秒。
A93: 对敌方随机4人造成12800点伤害，增加我方全体60%速度，持续5秒，同时给全体附加神圣buff，buff 期间受到的伤害减少20%，持续5秒。 | B93: 对敌方随机4人造成<color=#4c805eFF>12800点</color>伤害，增加我方全体60%速度，持续5秒，同时给全体附加神圣buff，buff 期间受到的伤害减少20%，持续5秒。 | C93: 对敌方随机4人造成<color=#4c805eFF>12800点</color>伤害，增加我方全体60%速度，持续5秒，同时给全体附加神圣buff，buff 期间受到的伤害减少20%，持续5秒。
A94: 对敌方随机4人造成12800点伤害，增加我方全体60%速度，持续10秒，同时给全体附加神圣buff，buff 期间受到的伤害减少20%，持续5秒。 | B94: 对敌方随机4人造成<color=#4c805eFF>12800点</color>伤害，增加我方全体60%速度，持续10秒，同时给全体附加神圣buff，buff 期间受到的伤害减少20%，持续5秒。 | C94: 对敌方随机4人造成<color=#4c805eFF>12800点</color>伤害，增加我方全体60%速度，持续10秒，同时给全体附加神圣buff，buff 期间受到的伤害减少20%，持续5秒。
A95: 对敌方随机4人造成19200点伤害，增加我方全体60%速度，持续10秒，同时给全体附加神圣buff，buff 期间受到的伤害减少20%，持续5秒。 | B95: 对敌方随机4人造成<color=#4c805eFF>19200点</color>伤害，增加我方全体60%速度，持续10秒，同时给全体附加神圣buff，buff 期间受到的伤害减少20%，持续5秒。 | C95: 对敌方随机4人造成<color=#4c805eFF>19200点</color>伤害，增加我方全体60%速度，持续10秒，同时给全体附加神圣buff，buff 期间受到的伤害减少20%，持续5秒。
A96: 对敌方随机4人造成19200点伤害，增加我方全体100%速度，持续10秒，同时给全体附加神圣buff，buff 期间受到的伤害减少20%，持续5秒。 | B96: 对敌方随机4人造成<color=#4c805eFF>19200点</color>伤害，增加我方全体100%速度，持续10秒，同时给全体附加神圣buff，buff 期间受到的伤害减少20%，持续5秒。 | C96: 对敌方随机4人造成<color=#4c805eFF>19200点</color>伤害，增加我方全体100%速度，持续10秒，同时给全体附加神圣buff，buff 期间受到的伤害减少20%，持续5秒。
A97: 对敌方随机4人造成25600点伤害，增加我方全体100%速度，持续10秒，同时给全体附加神圣buff，buff 期间受到的伤害减少20%，持续5秒。 | B97: 对敌方随机4人造成<color=#4c805eFF>25600点</color>伤害，增加我方全体100%速度，持续10秒，同时给全体附加神圣buff，buff 期间受到的伤害减少20%，持续5秒。 | C97: 对敌方随机4人造成<color=#4c805eFF>25600点</color>伤害，增加我方全体100%速度，持续10秒，同时给全体附加神圣buff，buff 期间受到的伤害减少20%，持续5秒。
A98: 对敌方随机4人造成25600点伤害，增加我方全体100%速度，持续10秒，同时给全体附加神圣buff，buff 期间受到的伤害减少20%，持续10秒。 | B98: 对敌方随机4人造成<color=#4c805eFF>25600点</color>伤害，增加我方全体100%速度，持续10秒，同时给全体附加神圣buff，buff 期间受到的伤害减少20%，持续10秒。 | C98: 对敌方随机4人造成<color=#4c805eFF>25600点</color>伤害，增加我方全体100%速度，持续10秒，同时给全体附加神圣buff，buff 期间受到的伤害减少20%，持续10秒。
A99: 对敌方随机4人造成32000点伤害，增加我方全体100%速度，持续10秒，同时给全体附加神圣buff，buff 期间受到的伤害减少20%，持续10秒。 | B99: 对敌方随机4人造成<color=#4c805eFF>32000点</color>伤害，增加我方全体100%速度，持续10秒，同时给全体附加神圣buff，buff 期间受到的伤害减少20%，持续10秒。 | C99: 对敌方随机4人造成<color=#4c805eFF>32000点</color>伤害，增加我方全体100%速度，持续10秒，同时给全体附加神圣buff，buff 期间受到的伤害减少20%，持续10秒。
A100: 对敌方随机4人造成32000点伤害，增加我方全体100%速度，持续10秒，同时给全体附加神圣buff，buff 期间受到的伤害减少45%，持续10秒。 | B100: 对敌方随机4人造成<color=#4c805eFF>32000点</color>伤害，增加我方全体100%速度，持续10秒，同时给全体附加神圣buff，buff 期间受到的伤害减少45%，持续10秒。 | C100: 对敌方随机4人造成<color=#4c805eFF>32000点</color>伤害，增加我方全体100%速度，持续10秒，同时给全体附加神圣buff，buff 期间受到的伤害减少45%，持续10秒。

Sheet Sheet3
D3: 原版记录
E4: 1002411 | F4: 狂风 | G4: 小心我沙包大的拳头。 | H4: 对敌方随机2人造成<color=#b4595eFF>54%</color>风属性物理伤害。 | I4: =H5 -> 对敌方随机2人造成<color=#b4595eFF>62%</color>风属性物理伤害。
E5: 1002412 | F5: 狂风 | G5: 小心我沙包大的拳头。 | H5: 对敌方随机2人造成<color=#b4595eFF>62%</color>风属性物理伤害。 | I5: 对敌方随机2人造成<color=#b4595eFF>72%</color>风属性物理伤害。
E6: 1002413 | F6: 狂风 | G6: 小心我沙包大的拳头。 | H6: 对敌方随机2人造成<color=#b4595eFF>72%</color>风属性物理伤害。 | I6: 对敌方随机2人造成<color=#b4595eFF>86%</color>风属性物理伤害。
E7: 1002414 | F7: 狂风 | G7: 小心我沙包大的拳头。 | H7: 对敌方随机2人造成<color=#b4595eFF>86%</color>风属性物理伤害。 | I7: ="" -> 
E8: 1002415 | F8: 狂风 | G8: 小心我沙包大的拳头。 | I8: =I7 -> 
E9: 1002421 | F9: 风烈打 | G9: 握紧的拳头，伴随烈风。 | H9: 对敌方单体造成<color=#b4595eFF>76%</color>风属性物理伤害，有60%的概率眩晕目标，持续8秒。 | I9: =H10 -> 对敌方单体造成<color=#b4595eFF>82%</color>风属性物理伤害，有60%的概率眩晕目标，持续8秒。
E10: 1002422 | F10: 风烈打 | G10: 握紧的拳头，伴随烈风。 | H10: 对敌方单体造成<color=#b4595eFF>82%</color>风属性物理伤害，有60%的概率眩晕目标，持续8秒。 | I10: 对敌方单体造成<color=#b4595eFF>96%</color>风属性物理伤害，有60%的概率眩晕目标，持续8秒。
E11: 1002423 | F11: 风烈打 | G11: 握紧的拳头，伴随烈风。 | H11: 对敌方单体造成<color=#b4595eFF>96%</color>风属性物理伤害，有60%的概率眩晕目标，持续8秒。 | I11: 对敌方单体造成<color=#b4595eFF>110%</color>风属性物理伤害，有60%的概率眩晕目标，持续8秒。
E12: 1002424 | F12: 风烈打 | G12: 握紧的拳头，伴随烈风。 | H12: 对敌方单体造成<color=#b4595eFF>110%</color>风属性物理伤害，有60%的概率眩晕目标，持续8秒。 | I12: ="" -> 
E13: 1002425 | F13: 风烈打 | G13: 握紧的拳头，伴随烈风。 | I13: =I12 -> 
E14: 1002511 | F14: 虎爪拳 | G14: 嗷呜！吃我两拳！ | H14: 对敌方单体造成2段<color=#b4595eFF>68%</color>火属性魔法伤害。 | I14: =H15 -> 对敌方单体造成2段<color=#b4595eFF>76%</color>火属性魔法伤害。
E15: 1002512 | F15: 虎爪拳 | G15: 嗷呜！吃我两拳！ | H15: 对敌方单体造成2段<color=#b4595eFF>76%</color>火属性魔法伤害。 | I15: 对敌方单体造成2段<color=#b4595eFF>84%</color>火属性魔法伤害。
E16: 1002513 | F16: 虎爪拳 | G16: 嗷呜！吃我两拳！ | H16: 对敌方单体造成2段<color=#b4595eFF>84%</color>火属性魔法伤害。 | I16: 对敌方单体造成2段<color=#b4595eFF>92%</color>火属性魔法伤害。
E17: 1002514 | F17: 虎爪拳 | G17: 嗷呜！吃我两拳！ | H17: 对敌方单体造成2段<color=#b4595eFF>92%</color>火属性魔法伤害。 | I17: ="" -> 
E18: 1002515 | F18: 虎爪拳 | G18: 嗷呜！吃我两拳！ | I18: =I17 -> 
E19: 1002521 | F19: 萌虎怒气 | G19: 我也是会生气哒！ | H19: 对敌方单体造成<color=#b4595eFF>84%</color>火属性魔法伤害，有75%的概率眩晕目标，持续8秒。 | I19: =H20 -> 对敌方单体造成<color=#b4595eFF>92%</color>火属性魔法伤害，有75%的概率眩晕目标，持续8秒。
E20: 1002522 | F20: 萌虎怒气 | G20: 我也是会生气哒！ | H20: 对敌方单体造成<color=#b4595eFF>92%</color>火属性魔法伤害，有75%的概率眩晕目标，持续8秒。 | I20: 对敌方单体造成<color=#b4595eFF>106%</color>火属性魔法伤害，有75%的概率眩晕目标，持续8秒。
E21: 1002523 | F21: 萌虎怒气 | G21: 我也是会生气哒！ | H21: 对敌方单体造成<color=#b4595eFF>106%</color>火属性魔法伤害，有75%的概率眩晕目标，持续8秒。 | I21: 对敌方单体造成<color=#b4595eFF>123%</color>火属性魔法伤害，有75%的概率眩晕目标，持续8秒。
E22: 1002524 | F22: 萌虎怒气 | G22: 我也是会生气哒！ | H22: 对敌方单体造成<color=#b4595eFF>123%</color>火属性魔法伤害，有75%的概率眩晕目标，持续8秒。 | I22: ="" -> 
E23: 1002525 | F23: 萌虎怒气 | G23: 我也是会生气哒！ | I23: =I22 -> 
E24: 1002611 | F24: 啸牙 | G24: 呼啸狂风的利齿。 | H24: 对敌人造成2段<color=#b4595eFF>68%</color>光属性物理伤害，对天罚类额外造成15%的伤害。 | I24: =H25 -> 对敌人造成2段<color=#b4595eFF>72%</color>光属性物理伤害，对天罚类额外造成15%的伤害。
E25: 1002612 | F25: 啸牙 | G25: 呼啸狂风的利齿。 | H25: 对敌人造成2段<color=#b4595eFF>72%</color>光属性物理伤害，对天罚类额外造成15%的伤害。 | I25: 对敌人造成2段<color=#b4595eFF>78%</color>光属性物理伤害，对天罚类额外造成15%的伤害。
E26: 1002613 | F26: 啸牙 | G26: 呼啸狂风的利齿。 | H26: 对敌人造成2段<color=#b4595eFF>78%</color>光属性物理伤害，对天罚类额外造成15%的伤害。 | I26: 对敌人造成2段<color=#b4595eFF>86%</color>光属性物理伤害，对天罚类额外造成15%的伤害。
E27: 1002614 | F27: 啸牙 | G27: 呼啸狂风的利齿。 | H27: 对敌人造成2段<color=#b4595eFF>86%</color>光属性物理伤害，对天罚类额外造成15%的伤害。 | I27: ="" -> 
E28: 1002615 | F28: 啸牙 | G28: 呼啸狂风的利齿。 | I28: =I27 -> 
E29: 1002621 | F29: 白虎风涛 | G29: 剑齿的虎牙掀起凛冽的风涛。 | H29: 对敌方全体造成<color=#b4595eFF>58%</color>光属性物理伤害。 | I29: =H30 -> 对敌方全体造成<color=#b4595eFF>64%</color>光属性物理伤害。
E30: 1002622 | F30: 白虎风涛 | G30: 剑齿的虎牙掀起凛冽的风涛。 | H30: 对敌方全体造成<color=#b4595eFF>64%</color>光属性物理伤害。 | I30: 对敌方全体造成<color=#b4595eFF>75%</color>光属性物理伤害。
E31: 1002623 | F31: 白虎风涛 | G31: 剑齿的虎牙掀起凛冽的风涛。 | H31: 对敌方全体造成<color=#b4595eFF>75%</color>光属性物理伤害。 | I31: 对敌方全体造成<color=#b4595eFF>88%</color>光属性物理伤害。
E32: 1002624 | F32: 白虎风涛 | G32: 剑齿的虎牙掀起凛冽的风涛。 | H32: 对敌方全体造成<color=#b4595eFF>88%</color>光属性物理伤害。 | I32: ="" -> 
E33: 1002625 | F33: 白虎风涛 | G33: 剑齿的虎牙掀起凛冽的风涛。 | I33: =I32 -> 
E34: 1002711 | F34: 光耀 | G34: 光芒照耀世间。 | H34: 对敌方单体造成<color=#b4595eFF>64%</color>光属性物理伤害，为我方随机1名角色恢复攻击60%的血量。 | I34: =H35 -> 对敌方单体造成<color=#b4595eFF>72%</color>光属性物理伤害，为我方随机1名角色恢复攻击60%的血量。
E35: 1002712 | F35: 光耀 | G35: 光芒照耀世间。 | H35: 对敌方单体造成<color=#b4595eFF>72%</color>光属性物理伤害，为我方随机1名角色恢复攻击60%的血量。 | I35: 对敌方单体造成<color=#b4595eFF>83%</color>光属性物理伤害，为我方随机1名角色恢复攻击60%的血量。
E36: 1002713 | F36: 光耀 | G36: 光芒照耀世间。 | H36: 对敌方单体造成<color=#b4595eFF>83%</color>光属性物理伤害，为我方随机1名角色恢复攻击60%的血量。 | I36: 对敌方单体造成<color=#b4595eFF>96%</color>光属性物理伤害，为我方随机1名角色恢复攻击60%的血量。
E37: 1002714 | F37: 光耀 | G37: 光芒照耀世间。 | H37: 对敌方单体造成<color=#b4595eFF>96%</color>光属性物理伤害，为我方随机1名角色恢复攻击60%的血量。 | I37: ="" -> 
E38: 1002715 | F38: 光耀 | G38: 光芒照耀世间。 | I38: =I37 -> 
E39: 1002721 | F39: 柳天一击 | G39: 看看我们柳家人的力量吧！ | H39: 对敌方随机两人造成<color=#b4595eFF>64%</color>光属性物理伤害，提升自身暴击率提高20%，持续8秒。 | I39: =H40 -> 对敌方随机两人造成<color=#b4595eFF>72%</color>光属性物理伤害，提升自身暴击率提高20%，持续8秒。
E40: 1002722 | F40: 柳天一击 | G40: 看看我们柳家人的力量吧！ | H40: 对敌方随机两人造成<color=#b4595eFF>72%</color>光属性物理伤害，提升自身暴击率提高20%，持续8秒。 | I40: 对敌方随机两人造成<color=#b4595eFF>83%</color>光属性物理伤害，提升自身暴击率提高20%，持续8秒。
E41: 1002723 | F41: 柳天一击 | G41: 看看我们柳家人的力量吧！ | H41: 对敌方随机两人造成<color=#b4595eFF>83%</color>光属性物理伤害，提升自身暴击率提高20%，持续8秒。 | I41: 对敌方随机两人造成<color=#b4595eFF>98%</color>光属性物理伤害，提升自身暴击率提高20%，持续8秒。
E42: 1002724 | F42: 柳天一击 | G42: 看看我们柳家人的力量吧！ | H42: 对敌方随机两人造成<color=#b4595eFF>98%</color>光属性物理伤害，提升自身暴击率提高20%，持续8秒。 | I42: ="" -> 
E43: 1002725 | F43: 柳天一击 | G43: 看看我们柳家人的力量吧！ | I43: =I42 -> 
E44: 1002811 | F44: 无明火 | G44: 超越常理的火焰。 | H44: 随机2名敌人造成<color=#b4595eFF>64%</color>光属性魔法伤害。 | I44: =H45 -> 随机2名敌人造成<color=#b4595eFF>75%</color>光属性魔法伤害。
E45: 1002812 | F45: 无明火 | G45: 超越常理的火焰。 | H45: 随机2名敌人造成<color=#b4595eFF>75%</color>光属性魔法伤害。 | I45: 随机2名敌人造成<color=#b4595eFF>86%</color>光属性魔法伤害。
E46: 1002813 | F46: 无明火 | G46: 超越常理的火焰。 | H46: 随机2名敌人造成<color=#b4595eFF>86%</color>光属性魔法伤害。 | I46: 随机2名敌人造成<color=#b4595eFF>100%</color>光属性魔法伤害。
E47: 1002814 | F47: 无明火 | G47: 超越常理的火焰。 | H47: 随机2名敌人造成<color=#b4595eFF>100%</color>光属性魔法伤害。 | I47: ="" -> 
E48: 1002815 | F48: 无明火 | G48: 超越常理的火焰。 | I48: =I47 -> 
E49: 1002821 | F49: 禁焰觉醒 | G49: 禁忌的力量，在此觉醒。 | H49: 对敌方单体造成<color=#b4595eFF>70%</color>光属性魔法伤害，若暴击，则减少下次发动技能CD1秒。 | I49: =H50 -> 对敌方单体造成<color=#b4595eFF>78%</color>光属性魔法伤害，若暴击，则减少下次发动技能CD1秒。
E50: 1002822 | F50: 禁焰觉醒 | G50: 禁忌的力量，在此觉醒。 | H50: 对敌方单体造成<color=#b4595eFF>78%</color>光属性魔法伤害，若暴击，则减少下次发动技能CD1秒。 | I50: 对敌方单体造成<color=#b4595eFF>89%</color>光属性魔法伤害，若暴击，则减少下次发动技能CD1秒。
E51: 1002823 | F51: 禁焰觉醒 | G51: 禁忌的力量，在此觉醒。 | H51: 对敌方单体造成<color=#b4595eFF>89%</color>光属性魔法伤害，若暴击，则减少下次发动技能CD1秒。 | I51: 对敌方单体造成<color=#b4595eFF>105%</color>光属性魔法伤害，若暴击，则减少下次发动技能CD1秒。
E52: 1002824 | F52: 禁焰觉醒 | G52: 禁忌的力量，在此觉醒。 | H52: 对敌方单体造成<color=#b4595eFF>105%</color>光属性魔法伤害，若暴击，则减少下次发动技能CD1秒。 | I52: ="" -> 
E53: 1002825 | F53: 禁焰觉醒 | G53: 禁忌的力量，在此觉醒。 | I53: =I52 -> 
E54: 1002911 | F54: 绝息 | G54: 在黑暗中，永远长眠吧。 | H54: 对敌方随机2人造成<color=#b4595eFF>58%</color>地属性魔法伤害。 | I54: =H55 -> 对敌方随机2人造成<color=#b4595eFF>64%</color>地属性魔法伤害。
E55: 1002912 | F55: 绝息 | G55: 在黑暗中，永远长眠吧。 | H55: 对敌方随机2人造成<color=#b4595eFF>64%</color>地属性魔法伤害。 | I55: 对敌方随机2人造成<color=#b4595eFF>72%</color>地属性魔法伤害。
E56: 1002913 | F56: 绝息 | G56: 在黑暗中，永远长眠吧。 | H56: 对敌方随机2人造成<color=#b4595eFF>72%</color>地属性魔法伤害。 | I56: 对敌方随机2人造成<color=#b4595eFF>84%</color>地属性魔法伤害。
E57: 1002914 | F57: 绝息 | G57: 在黑暗中，永远长眠吧。 | H57: 对敌方随机2人造成<color=#b4595eFF>84%</color>地属性魔法伤害。 | I57: ="" -> 
E58: 1002915 | F58: 绝息 | G58: 在黑暗中，永远长眠吧。 | I58: =I57 -> 
E59: 1002921 | F59: 化灵灭影 | G59: 在黑域里，悄无声息的告别世间吧。 | H59: 对敌方1名角色造成2段<color=#b4595eFF>64%</color>地属性魔法伤害，提升自身攻击20%，持续8秒。 | I59: =H60 -> 对敌方1名角色造成2段<color=#b4595eFF>72%</color>地属性魔法伤害，提升自身攻击20%，持续8秒。
E60: 1002922 | F60: 化灵灭影 | G60: 在黑域里，悄无声息的告别世间吧。 | H60: 对敌方1名角色造成2段<color=#b4595eFF>72%</color>地属性魔法伤害，提升自身攻击20%，持续8秒。 | I60: 对敌方1名角色造成2段<color=#b4595eFF>80%</color>地属性魔法伤害，提升自身攻击20%，持续8秒。
E61: 1002923 | F61: 化灵灭影 | G61: 在黑域里，悄无声息的告别世间吧。 | H61: 对敌方1名角色造成2段<color=#b4595eFF>80%</color>地属性魔法伤害，提升自身攻击20%，持续8秒。 | I61: 对敌方1名角色造成2段<color=#b4595eFF>92%</color>地属性魔法伤害，提升自身攻击20%，持续8秒。
E62: 1002924 | F62: 化灵灭影 | G62: 在黑域里，悄无声息的告别世间吧。 | H62: 对敌方1名角色造成2段<color=#b4595eFF>92%</color>地属性魔法伤害，提升自身攻击20%，持续8秒。 | I62: ="" -> 
E63: 1002925 | F63: 化灵灭影 | G63: 在黑域里，悄无声息的告别世间吧。 | I63: =I62 -> 
E64: 1003011 | F64: 飞莲 | G64: 飞散的莲花，是黑泉的气力。 | H64: 对敌方单体造成2段<color=#b4595eFF>54%</color>风属性魔法伤害。 | I64: =H65 -> 对敌方单体造成2段<color=#b4595eFF>62%</color>风属性魔法伤害。
E65: 1003012 | F65: 飞莲 | G65: 飞散的莲花，是黑泉的气力。 | H65: 对敌方单体造成2段<color=#b4595eFF>62%</color>风属性魔法伤害。 | I65: 对敌方单体造成2段<color=#b4595eFF>70%</color>风属性魔法伤害。
E66: 1003013 | F66: 飞莲 | G66: 飞散的莲花，是黑泉的气力。 | H66: 对敌方单体造成2段<color=#b4595eFF>70%</color>风属性魔法伤害。 | I66: 对敌方单体造成2段<color=#b4595eFF>82%</color>风属性魔法伤害。
E67: 1003014 | F67: 飞莲 | G67: 飞散的莲花，是黑泉的气力。 | H67: 对敌方单体造成2段<color=#b4595eFF>82%</color>风属性魔法伤害。 | I67: ="" -> 
E68: 1003015 | F68: 飞莲 | G68: 飞散的莲花，是黑泉的气力。 | I68: =I67 -> 
E69: 1003021 | F69: 莲花散落 | G69: 莲花散落之时，黑泉将赐予你死亡。 | H69: 对敌方单体造成<color=#b4595eFF>58%</color>风属性魔法伤害，降低目标护甲10%，持续9秒。 | I69: =H70 -> 对敌方单体造成<color=#b4595eFF>64%</color>风属性魔法伤害，降低目标护甲15%，持续9秒。
E70: 1003022 | F70: 莲花散落 | G70: 莲花散落之时，黑泉将赐予你死亡。 | H70: 对敌方单体造成<color=#b4595eFF>64%</color>风属性魔法伤害，降低目标护甲15%，持续9秒。 | I70: 对敌方单体造成<color=#b4595eFF>72%</color>风属性魔法伤害，降低目标护甲30%，持续9秒。
E71: 1003023 | F71: 莲花散落 | G71: 莲花散落之时，黑泉将赐予你死亡。 | H71: 对敌方单体造成<color=#b4595eFF>72%</color>风属性魔法伤害，降低目标护甲30%，持续9秒。 | I71: 对敌方单体造成<color=#b4595eFF>89%</color>风属性魔法伤害，降低目标护甲30%，持续12秒。
E72: 1003024 | F72: 莲花散落 | G72: 莲花散落之时，黑泉将赐予你死亡。 | H72: 对敌方单体造成<color=#b4595eFF>89%</color>风属性魔法伤害，降低目标护甲30%，持续12秒。 | I72: ="" -> 
E73: 1003025 | F73: 莲花散落 | G73: 莲花散落之时，黑泉将赐予你死亡。 | I73: =I72 -> 
E74: 1003111 | F74: 炎龙破 | G74: 燃烧万物的炽焰。 | H74: 对敌人单体造成<color=#b4595eFF>62%</color>地属性物理伤害。 | I74: =H75 -> 对敌人单体造成<color=#b4595eFF>70%</color>地属性物理伤害。
E75: 1003112 | F75: 炎龙破 | G75: 燃烧万物的炽焰。 | H75: 对敌人单体造成<color=#b4595eFF>70%</color>地属性物理伤害。 | I75: 对敌人单体造成<color=#b4595eFF>83%</color>地属性物理伤害。
E76: 1003113 | F76: 炎龙破 | G76: 燃烧万物的炽焰。 | H76: 对敌人单体造成<color=#b4595eFF>83%</color>地属性物理伤害。 | I76: 对敌人单体造成<color=#b4595eFF>92%</color>地属性物理伤害。
E77: 1003114 | F77: 炎龙破 | G77: 燃烧万物的炽焰。 | H77: 对敌人单体造成<color=#b4595eFF>92%</color>地属性物理伤害。 | I77: ="" -> 
E78: 1003115 | F78: 炎龙破 | G78: 燃烧万物的炽焰。 | I78: =I77 -> 
E79: 1003121 | F79: 煌炎斩 | G79: 怒火与裁决。 | H79: 对敌人单体造成2段<color=#b4595eFF>54%</color>地属性物理伤害，对秘法类额外造成20%的伤害。 | I79: =H80 -> 对敌人单体造成2段<color=#b4595eFF>58%</color>地属性物理伤害，对秘法类额外造成20%的伤害。
E80: 1003122 | F80: 煌炎斩 | G80: 怒火与裁决。 | H80: 对敌人单体造成2段<color=#b4595eFF>58%</color>地属性物理伤害，对秘法类额外造成20%的伤害。 | I80: 对敌人单体造成2段<color=#b4595eFF>64%</color>地属性物理伤害，对秘法类额外造成20%的伤害。
E81: 1003123 | F81: 煌炎斩 | G81: 怒火与裁决。 | H81: 对敌人单体造成2段<color=#b4595eFF>64%</color>地属性物理伤害，对秘法类额外造成20%的伤害。 | I81: 对敌人单体造成2段<color=#b4595eFF>76%</color>地属性物理伤害，对秘法类额外造成20%的伤害。
E82: 1003124 | F82: 煌炎斩 | G82: 怒火与裁决。 | H82: 对敌人单体造成2段<color=#b4595eFF>76%</color>地属性物理伤害，对秘法类额外造成20%的伤害。 | I82: ="" -> 
E83: 1003125 | F83: 煌炎斩 | G83: 怒火与裁决。 | I83: =I82 -> 
E84: 1003211 | F84: 敲山震虎 | G84: 看我的大锤锤！ | H84: 对敌方单体造成2段<color=#b4595eFF>58%</color>地属性物理伤害。 | I84: =H85 -> 对敌方单体造成2段<color=#b4595eFF>64%</color>地属性物理伤害。
E85: 1003212 | F85: 敲山震虎 | G85: 看我的大锤锤！ | H85: 对敌方单体造成2段<color=#b4595eFF>64%</color>地属性物理伤害。 | I85: 对敌方单体造成2段<color=#b4595eFF>72%</color>地属性物理伤害。
E86: 1003213 | F86: 敲山震虎 | G86: 看我的大锤锤！ | H86: 对敌方单体造成2段<color=#b4595eFF>72%</color>地属性物理伤害。 | I86: 对敌方单体造成2段<color=#b4595eFF>86%</color>地属性物理伤害。
E87: 1003214 | F87: 敲山震虎 | G87: 看我的大锤锤！ | H87: 对敌方单体造成2段<color=#b4595eFF>86%</color>地属性物理伤害。 | I87: ="" -> 
E88: 1003215 | F88: 敲山震虎 | G88: 看我的大锤锤！ | I88: =I87 -> 
E89: 1003221 | F89: 崩雷式 | G89: 见过可以砸出雷光的巨锤吗！看招！ | H89: 对敌方单体造成<color=#b4595eFF>58%</color>地属性物理伤害，并造成<color=#4c805eFF>燃烧效果</color>，每秒附加10%攻击的额外伤害，持续9秒。 | I89: =H90 -> 对敌方单体造成<color=#b4595eFF>64%</color>地属性物理伤害，并造成<color=#4c805eFF>燃烧效果</color>，每秒附加15%攻击的额外伤害，持续9秒。
E90: 1003222 | F90: 崩雷式 | G90: 见过可以砸出雷光的巨锤吗！看招！ | H90: 对敌方单体造成<color=#b4595eFF>64%</color>地属性物理伤害，并造成<color=#4c805eFF>燃烧效果</color>，每秒附加15%攻击的额外伤害，持续9秒。 | I90: 对敌方单体造成<color=#b4595eFF>72%</color>地属性物理伤害，并造成<color=#4c805eFF>燃烧效果</color>，每秒附加20%攻击的额外伤害，持续9秒。
E91: 1003223 | F91: 崩雷式 | G91: 见过可以砸出雷光的巨锤吗！看招！ | H91: 对敌方单体造成<color=#b4595eFF>72%</color>地属性物理伤害，并造成<color=#4c805eFF>燃烧效果</color>，每秒附加20%攻击的额外伤害，持续9秒。 | I91: 对敌方单体造成<color=#b4595eFF>86%</color>地属性物理伤害，并造成<color=#4c805eFF>燃烧效果</color>，每秒附加20%攻击的额外伤害，持续12秒。
E92: 1003224 | F92: 崩雷式 | G92: 见过可以砸出雷光的巨锤吗！看招！ | H92: 对敌方单体造成<color=#b4595eFF>86%</color>地属性物理伤害，并造成<color=#4c805eFF>燃烧效果</color>，每秒附加20%攻击的额外伤害，持续12秒。 | I92: ="" -> 
E93: 1003225 | F93: 崩雷式 | G93: 见过可以砸出雷光的巨锤吗！看招！ | I93: =I92 -> 
E94: 1003311 | F94: 清风击 | G94: 清风拂面。 | H94: 对随机敌人造成2段<color=#b4595eFF>72%</color>地属性物理伤害。 | I94: =H95 -> 对随机敌人造成2段<color=#b4595eFF>78%</color>地属性物理伤害。
E95: 1003312 | F95: 清风击 | G95: 清风拂面。 | H95: 对随机敌人造成2段<color=#b4595eFF>78%</color>地属性物理伤害。 | I95: 对随机敌人造成2段<color=#b4595eFF>87%</color>地属性物理伤害。
E96: 1003313 | F96: 清风击 | G96: 清风拂面。 | H96: 对随机敌人造成2段<color=#b4595eFF>87%</color>地属性物理伤害。 | I96: 对随机敌人造成2段<color=#b4595eFF>104%</color>地属性物理伤害。
E97: 1003314 | F97: 清风击 | G97: 清风拂面。 | H97: 对随机敌人造成2段<color=#b4595eFF>104%</color>地属性物理伤害。 | I97: ="" -> 
E98: 1003315 | F98: 清风击 | G98: 清风拂面。 | I98: =I97 -> 
E99: 1003321 | F99: 烈风打 | G99: 烈风洗礼。 | H99: 对敌人单体造成2段<color=#b4595eFF>68%</color>地属性物理伤害，对生花类额外造成20%的伤害。 | I99: =H100 -> 对敌人单体造成2段<color=#b4595eFF>74%</color>地属性物理伤害，对生花类额外造成20%的伤害。
E100: 1003322 | F100: 烈风打 | G100: 烈风洗礼。 | H100: 对敌人单体造成2段<color=#b4595eFF>74%</color>地属性物理伤害，对生花类额外造成20%的伤害。 | I100: 对敌人单体造成2段<color=#b4595eFF>86%</color>地属性物理伤害，对生花类额外造成20%的伤害。
E101: 1003323 | F101: 烈风打 | G101: 烈风洗礼。 | H101: 对敌人单体造成2段<color=#b4595eFF>86%</color>地属性物理伤害，对生花类额外造成20%的伤害。 | I101: 对敌人单体造成2段<color=#b4595eFF>94%</color>地属性物理伤害，对生花类额外造成20%的伤害。
E102: 1003324 | F102: 烈风打 | G102: 烈风洗礼。 | H102: 对敌人单体造成2段<color=#b4595eFF>94%</color>地属性物理伤害，对生花类额外造成20%的伤害。 | I102: ="" -> 
E103: 1003325 | F103: 烈风打 | G103: 烈风洗礼。 | I103: =I102 -> 
E104: 1003411 | F104: 晦影 | G104: 看不见的影子里，暗藏着杀气。 | H104: 对敌方单体造成<color=#b4595eFF>68%</color>暗属性魔法伤害，有20%概率眩晕目标，持续8秒。 | I104: =H105 -> 对敌方单体造成<color=#b4595eFF>76%</color>暗属性魔法伤害，有20%概率眩晕目标，持续8秒。
E105: 1003412 | F105: 晦影 | G105: 看不见的影子里，暗藏着杀气。 | H105: 对敌方单体造成<color=#b4595eFF>76%</color>暗属性魔法伤害，有20%概率眩晕目标，持续8秒。 | I105: 对敌方单体造成<color=#b4595eFF>88%</color>暗属性魔法伤害，有20%概率眩晕目标，持续8秒。
E106: 1003413 | F106: 晦影 | G106: 看不见的影子里，暗藏着杀气。 | H106: 对敌方单体造成<color=#b4595eFF>88%</color>暗属性魔法伤害，有20%概率眩晕目标，持续8秒。 | I106: 对敌方单体造成<color=#b4595eFF>105%</color>暗属性魔法伤害，有30%概率眩晕目标，持续8秒。
E107: 1003414 | F107: 晦影 | G107: 看不见的影子里，暗藏着杀气。 | H107: 对敌方单体造成<color=#b4595eFF>105%</color>暗属性魔法伤害，有30%概率眩晕目标，持续8秒。 | I107: ="" -> 
E108: 1003415 | F108: 晦影 | G108: 看不见的影子里，暗藏着杀气。 | I108: =I107 -> 
E109: 1003421 | F109: 常世之暗 | G109: 无光的世界里长眠吧。 | H109: 对敌方全体造成<color=#b4595eFF>64%</color>暗属性魔法伤害。 | I109: =H110 -> 对敌方全体造成<color=#b4595eFF>72%</color>暗属性魔法伤害。
E110: 1003422 | F110: 常世之暗 | G110: 无光的世界里长眠吧。 | H110: 对敌方全体造成<color=#b4595eFF>72%</color>暗属性魔法伤害。 | I110: 对敌方全体造成<color=#b4595eFF>84%</color>暗属性魔法伤害。
E111: 1003423 | F111: 常世之暗 | G111: 无光的世界里长眠吧。 | H111: 对敌方全体造成<color=#b4595eFF>84%</color>暗属性魔法伤害。 | I111: 对敌方全体造成<color=#b4595eFF>97%</color>暗属性魔法伤害。
E112: 1003424 | F112: 常世之暗 | G112: 无光的世界里长眠吧。 | H112: 对敌方全体造成<color=#b4595eFF>97%</color>暗属性魔法伤害。 | I112: ="" -> 
E113: 1003425 | F113: 常世之暗 | G113: 无光的世界里长眠吧。 | I113: =I112 -> 
E114: 1003511 | F114: 地煞 | G114: 地煞神威！ | H114: 对敌人造成3段<color=#b4595eFF>54%</color>暗属性物理伤害，对武卫额外造成20%的伤害。 | I114: =H115 -> 对敌人造成3段<color=#b4595eFF>58%</color>暗属性物理伤害，对武卫额外造成20%的伤害。
E115: 1003512 | F115: 地煞 | G115: 地煞神威！ | H115: 对敌人造成3段<color=#b4595eFF>58%</color>暗属性物理伤害，对武卫额外造成20%的伤害。 | I115: 对敌人造成3段<color=#b4595eFF>64%</color>暗属性物理伤害，对武卫额外造成20%的伤害。
E116: 1003513 | F116: 地煞 | G116: 地煞神威！ | H116: 对敌人造成3段<color=#b4595eFF>64%</color>暗属性物理伤害，对武卫额外造成20%的伤害。 | I116: 对敌人造成3段<color=#b4595eFF>78%</color>暗属性物理伤害，对武卫额外造成20%的伤害。
E117: 1003514 | F117: 地煞 | G117: 地煞神威！ | H117: 对敌人造成3段<color=#b4595eFF>78%</color>暗属性物理伤害，对武卫额外造成20%的伤害。 | I117: ="" -> 
E118: 1003515 | F118: 地煞 | G118: 地煞神威！ | I118: =I117 -> 
E119: 1003521 | F119: 隐遁 | G119: 无形的伤害，就在你的身后。 | H119: 对敌方生命最低单体造成<color=#b4595eFF>85%</color>暗属性物理伤害。 | I119: =H120 -> 对敌方生命最低单体造成<color=#b4595eFF>90%</color>暗属性物理伤害。
E120: 1003522 | F120: 隐遁 | G120: 无形的伤害，就在你的身后。 | H120: 对敌方生命最低单体造成<color=#b4595eFF>90%</color>暗属性物理伤害。 | I120: 对敌方生命最低单体造成<color=#b4595eFF>100%</color>暗属性物理伤害。
E121: 1003523 | F121: 隐遁 | G121: 无形的伤害，就在你的身后。 | H121: 对敌方生命最低单体造成<color=#b4595eFF>100%</color>暗属性物理伤害。 | I121: 对敌方生命最低单体造成<color=#b4595eFF>120%</color>暗属性物理伤害。
E122: 1003524 | F122: 隐遁 | G122: 无形的伤害，就在你的身后。 | H122: 对敌方生命最低单体造成<color=#b4595eFF>120%</color>暗属性物理伤害。 | I122: ="" -> 
E123: 1003525 | F123: 隐遁 | G123: 无形的伤害，就在你的身后。 | I123: =I122 -> 
E124: 1003611 | F124: 水玉缚灵 | G124: 你的魂魄就由水玉收下了！ | H124: 对敌方单体造成<color=#b4595eFF>60%</color>水属性魔法伤害。 | I124: =H125 -> 对敌方单体造成<color=#b4595eFF>68%</color>水属性魔法伤害。
E125: 1003612 | F125: 水玉缚灵 | G125: 你的魂魄就由水玉收下了！ | H125: 对敌方单体造成<color=#b4595eFF>68%</color>水属性魔法伤害。 | I125: 对敌方单体造成<color=#b4595eFF>75%</color>水属性魔法伤害。
E126: 1003613 | F126: 水玉缚灵 | G126: 你的魂魄就由水玉收下了！ | H126: 对敌方单体造成<color=#b4595eFF>75%</color>水属性魔法伤害。 | I126: 对敌方单体造成<color=#b4595eFF>83%</color>水属性魔法伤害。
E127: 1003614 | F127: 水玉缚灵 | G127: 你的魂魄就由水玉收下了！ | H127: 对敌方单体造成<color=#b4595eFF>83%</color>水属性魔法伤害。 | I127: ="" -> 
E128: 1003615 | F128: 水玉缚灵 | G128: 你的魂魄就由水玉收下了！ | I128: =I127 -> 
E129: 1003621 | F129: 深渊流葬 | G129: 既然拿不到灵魂，那就埋葬于深渊中吧！ | H129: 对敌方单体造成2段<color=#b4595eFF>58%</color>水属性魔法伤害，对天罚类额外造成20%的伤害。 | I129: =H130 -> 对敌方单体造成2段<color=#b4595eFF>64%</color>水属性魔法伤害，对天罚类额外造成20%的伤害。
E130: 1003622 | F130: 深渊流葬 | G130: 既然拿不到灵魂，那就埋葬于深渊中吧！ | H130: 对敌方单体造成2段<color=#b4595eFF>64%</color>水属性魔法伤害，对天罚类额外造成20%的伤害。 | I130: 对敌方单体造成2段<color=#b4595eFF>72%</color>水属性魔法伤害，对天罚类额外造成20%的伤害。
E131: 1003623 | F131: 深渊流葬 | G131: 既然拿不到灵魂，那就埋葬于深渊中吧！ | H131: 对敌方单体造成2段<color=#b4595eFF>72%</color>水属性魔法伤害，对天罚类额外造成20%的伤害。 | I131: 对敌方单体造成2段<color=#b4595eFF>88%</color>水属性魔法伤害，对天罚类额外造成20%的伤害。
E132: 1003624 | F132: 深渊流葬 | G132: 既然拿不到灵魂，那就埋葬于深渊中吧！ | H132: 对敌方单体造成2段<color=#b4595eFF>88%</color>水属性魔法伤害，对天罚类额外造成20%的伤害。 | I132: ="" -> 
E133: 1003625 | F133: 深渊流葬 | G133: 既然拿不到灵魂，那就埋葬于深渊中吧！ | I133: =I132 -> 
E134: 1003711 | F134: 秋水无痕 | G134: 清冽无痕，杀人无形。 | H134: 对敌方单体造成2段<color=#b4595eFF>64%</color>水属性物理伤害。 | I134: =H135 -> 对敌方单体造成2段<color=#b4595eFF>68%</color>水属性物理伤害。
E135: 1003712 | F135: 秋水无痕 | G135: 清冽无痕，杀人无形。 | H135: 对敌方单体造成2段<color=#b4595eFF>68%</color>水属性物理伤害。 | I135: 对敌方单体造成2段<color=#b4595eFF>75%</color>水属性物理伤害。
E136: 1003713 | F136: 秋水无痕 | G136: 清冽无痕，杀人无形。 | H136: 对敌方单体造成2段<color=#b4595eFF>75%</color>水属性物理伤害。 | I136: 对敌方单体造成2段<color=#b4595eFF>83%</color>水属性物理伤害。
E137: 1003714 | F137: 秋水无痕 | G137: 清冽无痕，杀人无形。 | H137: 对敌方单体造成2段<color=#b4595eFF>83%</color>水属性物理伤害。 | I137: ="" -> 
E138: 1003715 | F138: 秋水无痕 | G138: 清冽无痕，杀人无形。 | I138: =I137 -> 
E139: 1003721 | F139: 凝霜箭 | G139: 枪法的华丽，取决于能否解决敌人。 | H139: 对敌方单体造成<color=#b4595eFF>58%</color>水属性魔法伤害，增加自身双防御30%，持续9秒。 | I139: =H140 -> 对敌方单体造成<color=#b4595eFF>64%</color>水属性魔法伤害，增加自身双防御30%，持续9秒。
E140: 1003722 | F140: 凝霜箭 | G140: 枪法的华丽，取决于能否解决敌人。 | H140: 对敌方单体造成<color=#b4595eFF>64%</color>水属性魔法伤害，增加自身双防御30%，持续9秒。 | I140: 对敌方单体造成<color=#b4595eFF>72%</color>水属性魔法伤害，增加自身双防御30%，持续9秒。
E141: 1003723 | F141: 凝霜箭 | G141: 枪法的华丽，取决于能否解决敌人。 | H141: 对敌方单体造成<color=#b4595eFF>72%</color>水属性魔法伤害，增加自身双防御30%，持续9秒。 | I141: 对敌方单体造成<color=#b4595eFF>86%</color>水属性魔法伤害，增加自身双防御30%，持续9秒。
E142: 1003724 | F142: 凝霜箭 | G142: 枪法的华丽，取决于能否解决敌人。 | H142: 对敌方单体造成<color=#b4595eFF>86%</color>水属性魔法伤害，增加自身双防御30%，持续9秒。 | I142: ="" -> 
E143: 1003725 | F143: 凝霜箭 | G143: 枪法的华丽，取决于能否解决敌人。 | I143: =I142 -> 
E144: 1003811 | F144: 辟魂 | G144: 你的灵魂，只会成为小女的食粮。 | H144: 对敌方随机2人造成<color=#b4595eFF>58%</color>火属性魔法伤害。 | I144: =H145 -> 对敌方随机2人造成<color=#b4595eFF>64%</color>火属性魔法伤害。
E145: 1003812 | F145: 辟魂 | G145: 你的灵魂，只会成为小女的食粮。 | H145: 对敌方随机2人造成<color=#b4595eFF>64%</color>火属性魔法伤害。 | I145: 对敌方随机2人造成<color=#b4595eFF>72%</color>火属性魔法伤害。
E146: 1003813 | F146: 辟魂 | G146: 你的灵魂，只会成为小女的食粮。 | H146: 对敌方随机2人造成<color=#b4595eFF>72%</color>火属性魔法伤害。 | I146: 对敌方随机2人造成<color=#b4595eFF>80%</color>火属性魔法伤害。
E147: 1003814 | F147: 辟魂 | G147: 你的灵魂，只会成为小女的食粮。 | H147: 对敌方随机2人造成<color=#b4595eFF>80%</color>火属性魔法伤害。 | I147: ="" -> 
E148: 1003815 | F148: 辟魂 | G148: 你的灵魂，只会成为小女的食粮。 | I148: =I147 -> 
E149: 1003821 | F149: 夺形之雾 | G149: 连灵魂都被夺走的人，还留着肉体有何用！ | H149: 对敌方单体造成<color=#b4595eFF>64%</color>火属性魔法伤害，降低武卫类目标30%的双防，持续9秒。 | I149: =H150 -> 对敌方单体造成<color=#b4595eFF>72%</color>火属性魔法伤害，降低武卫类目标30%的双防，持续9秒。
E150: 1003822 | F150: 夺形之雾 | G150: 连灵魂都被夺走的人，还留着肉体有何用！ | H150: 对敌方单体造成<color=#b4595eFF>72%</color>火属性魔法伤害，降低武卫类目标30%的双防，持续9秒。 | I150: 对敌方单体造成<color=#b4595eFF>82%</color>火属性魔法伤害，降低武卫类目标30%的双防，持续9秒。
E151: 1003823 | F151: 夺形之雾 | G151: 连灵魂都被夺走的人，还留着肉体有何用！ | H151: 对敌方单体造成<color=#b4595eFF>82%</color>火属性魔法伤害，降低武卫类目标30%的双防，持续9秒。 | I151: 对敌方单体造成<color=#b4595eFF>99%</color>火属性魔法伤害，降低武卫类目标30%的双防，持续9秒。
E152: 1003824 | F152: 夺形之雾 | G152: 连灵魂都被夺走的人，还留着肉体有何用！ | H152: 对敌方单体造成<color=#b4595eFF>99%</color>火属性魔法伤害，降低武卫类目标30%的双防，持续9秒。 | I152: ="" -> 
E153: 1003825 | F153: 夺形之雾 | G153: 连灵魂都被夺走的人，还留着肉体有何用！ | I153: =I152 -> 
E154: 1003911 | F154: 分水斩 | G154: 开山分水，剑破万法。 | H154: 对敌方单体造成2段<color=#b4595eFF>58%</color>水属性的物理伤害。 | I154: =H155 -> 对敌方单体造成2段<color=#b4595eFF>64%</color>水属性的物理伤害。
E155: 1003912 | F155: 分水斩 | G155: 开山分水，剑破万法。 | H155: 对敌方单体造成2段<color=#b4595eFF>64%</color>水属性的物理伤害。 | I155: 对敌方单体造成2段<color=#b4595eFF>72%</color>水属性的物理伤害。
E156: 1003913 | F156: 分水斩 | G156: 开山分水，剑破万法。 | H156: 对敌方单体造成2段<color=#b4595eFF>72%</color>水属性的物理伤害。 | I156: 对敌方单体造成2段<color=#b4595eFF>80%</color>水属性的物理伤害。
E157: 1003914 | F157: 分水斩 | G157: 开山分水，剑破万法。 | H157: 对敌方单体造成2段<color=#b4595eFF>80%</color>水属性的物理伤害。 | I157: ="" -> 
E158: 1003915 | F158: 分水斩 | G158: 开山分水，剑破万法。 | I158: =I157 -> 
E159: 1003921 | F159: 寒芒刺 | G159: 长枪折射的刀光，寒意之中透露着几分悲伤。 | H159: 对敌方单体造成<color=#b4595eFF>64%</color>水属性的物理伤害，降低其魔抗40%，持续9秒。 | I159: =H160 -> 对敌方单体造成<color=#b4595eFF>72%</color>水属性的物理伤害，降低其魔抗40%，持续9秒。
E160: 1003922 | F160: 寒芒刺 | G160: 长枪折射的刀光，寒意之中透露着几分悲伤。 | H160: 对敌方单体造成<color=#b4595eFF>72%</color>水属性的物理伤害，降低其魔抗40%，持续9秒。 | I160: 对敌方单体造成<color=#b4595eFF>82%</color>水属性的物理伤害，降低其魔抗40%，持续9秒。
E161: 1003923 | F161: 寒芒刺 | G161: 长枪折射的刀光，寒意之中透露着几分悲伤。 | H161: 对敌方单体造成<color=#b4595eFF>82%</color>水属性的物理伤害，降低其魔抗40%，持续9秒。 | I161: 对敌方单体造成<color=#b4595eFF>98%</color>水属性的物理伤害，降低其魔抗40%，持续9秒。
E162: 1003924 | F162: 寒芒刺 | G162: 长枪折射的刀光，寒意之中透露着几分悲伤。 | H162: 对敌方单体造成<color=#b4595eFF>98%</color>水属性的物理伤害，降低其魔抗40%，持续9秒。 | I162: ="" -> 
E163: 1003925 | F163: 寒芒刺 | G163: 长枪折射的刀光，寒意之中透露着几分悲伤。 | I163: =I162 -> 
E164: 1004011 | F164: 诸邪退散 | G164: 哼！退下！ | H164: 敌人单体造成<color=#b4595eFF>64%</color>火属性物理伤害。 | I164: =H165 -> 敌人单体造成<color=#b4595eFF>76%</color>火属性物理伤害。
E165: 1004012 | F165: 诸邪退散 | G165: 哼！退下！ | H165: 敌人单体造成<color=#b4595eFF>76%</color>火属性物理伤害。 | I165: 敌人单体造成<color=#b4595eFF>84%</color>火属性物理伤害。
E166: 1004013 | F166: 诸邪退散 | G166: 哼！退下！ | H166: 敌人单体造成<color=#b4595eFF>84%</color>火属性物理伤害。 | I166: 敌人单体造成<color=#b4595eFF>96%</color>火属性物理伤害。
E167: 1004014 | F167: 诸邪退散 | G167: 哼！退下！ | H167: 敌人单体造成<color=#b4595eFF>96%</color>火属性物理伤害。 | I167: ="" -> 
E168: 1004015 | F168: 诸邪退散 | G168: 哼！退下！ | I168: =I167 -> 
E169: 1004021 | F169: 破邪二连 | G169: 斩邪除恶。 | H169: 敌人单体造成2段<color=#b4595eFF>58%</color>火属性物理伤害，对玄策类额外造成20%的伤害。 | I169: =H170 -> 敌人单体造成2段<color=#b4595eFF>64%</color>火属性物理伤害，对玄策类额外造成20%的伤害。
E170: 1004022 | F170: 破邪二连 | G170: 斩邪除恶。 | H170: 敌人单体造成2段<color=#b4595eFF>64%</color>火属性物理伤害，对玄策类额外造成20%的伤害。 | I170: 敌人单体造成2段<color=#b4595eFF>72%</color>火属性物理伤害，对玄策类额外造成20%的伤害。
E171: 1004023 | F171: 破邪二连 | G171: 斩邪除恶。 | H171: 敌人单体造成2段<color=#b4595eFF>72%</color>火属性物理伤害，对玄策类额外造成20%的伤害。 | I171: 敌人单体造成2段<color=#b4595eFF>86%</color>火属性物理伤害，对玄策类额外造成20%的伤害。
E172: 1004024 | F172: 破邪二连 | G172: 斩邪除恶。 | H172: 敌人单体造成2段<color=#b4595eFF>86%</color>火属性物理伤害，对玄策类额外造成20%的伤害。 | I172: ="" -> 
E173: 1004025 | F173: 破邪二连 | G173: 斩邪除恶。 | I173: =I172 -> 
E174: 1004111 | F174: 炎击 | G174: 尝尝火焰的力量。 | H174: 对敌方随机2人造成<color=#b4595eFF>64%</color>火属性物理伤害。 | I174: =H175 -> 对敌方随机2人造成<color=#b4595eFF>76%</color>火属性物理伤害。
E175: 1004112 | F175: 炎击 | G175: 尝尝火焰的力量。 | H175: 对敌方随机2人造成<color=#b4595eFF>76%</color>火属性物理伤害。 | I175: 对敌方随机2人造成<color=#b4595eFF>82%</color>火属性物理伤害。
E176: 1004113 | F176: 炎击 | G176: 尝尝火焰的力量。 | H176: 对敌方随机2人造成<color=#b4595eFF>82%</color>火属性物理伤害。 | I176: 对敌方随机2人造成<color=#b4595eFF>94%</color>火属性物理伤害。
E177: 1004114 | F177: 炎击 | G177: 尝尝火焰的力量。 | H177: 对敌方随机2人造成<color=#b4595eFF>94%</color>火属性物理伤害。 | I177: ="" -> 
E178: 1004115 | F178: 炎击 | G178: 尝尝火焰的力量。 | I178: =I177 -> 
E179: 1004121 | F179: 烈虎归山 | G179: 别小瞧我的拳头！ | H179: 对敌方单体造成<color=#b4595eFF>80%</color>火属性物理伤害，恢复此次伤害80%的生命。 | I179: =H180 -> 对敌方单体造成<color=#b4595eFF>90%</color>火属性物理伤害，恢复此次伤害80%的生命。
E180: 1004122 | F180: 烈虎归山 | G180: 别小瞧我的拳头！ | H180: 对敌方单体造成<color=#b4595eFF>90%</color>火属性物理伤害，恢复此次伤害80%的生命。 | I180: 对敌方单体造成<color=#b4595eFF>100%</color>火属性物理伤害，恢复此次伤害80%的生命。
E181: 1004123 | F181: 烈虎归山 | G181: 别小瞧我的拳头！ | H181: 对敌方单体造成<color=#b4595eFF>100%</color>火属性物理伤害，恢复此次伤害80%的生命。 | I181: 对敌方单体造成<color=#b4595eFF>120%</color>火属性物理伤害，恢复此次伤害80%的生命。
E182: 1004124 | F182: 烈虎归山 | G182: 别小瞧我的拳头！ | H182: 对敌方单体造成<color=#b4595eFF>120%</color>火属性物理伤害，恢复此次伤害80%的生命。 | I182: ="" -> 
E183: 1004125 | F183: 烈虎归山 | G183: 别小瞧我的拳头！ | I183: =I182 -> 
E184: 1004211 | F184: 无影 | G184: 连影子你也见不着的。 | H184: 对敌方随机1名角色造成2段<color=#b4595eFF>64%</color>风属性物理伤害。 | I184: =H185 -> 对敌方随机1名角色造成2段<color=#b4595eFF>70%</color>风属性物理伤害。
E185: 1004212 | F185: 无影 | G185: 连影子你也见不着的。 | H185: 对敌方随机1名角色造成2段<color=#b4595eFF>70%</color>风属性物理伤害。 | I185: 对敌方随机1名角色造成2段<color=#b4595eFF>87%</color>风属性物理伤害。
E186: 1004213 | F186: 无影 | G186: 连影子你也见不着的。 | H186: 对敌方随机1名角色造成2段<color=#b4595eFF>87%</color>风属性物理伤害。 | I186: 对敌方随机1名角色造成2段<color=#b4595eFF>94%</color>风属性物理伤害。
E187: 1004214 | F187: 无影 | G187: 连影子你也见不着的。 | H187: 对敌方随机1名角色造成2段<color=#b4595eFF>94%</color>风属性物理伤害。 | I187: ="" -> 
E188: 1004215 | F188: 无影 | G188: 连影子你也见不着的。 | I188: =I187 -> 
E189: 1004221 | F189: 匿踪 | G189: 隐藏起了一切的踪迹。 | H189: 对敌方单体造成<color=#b4595eFF>74%</color>风属性物理伤害，增加自身攻击30%，持续9秒。 | I189: =H190 -> 对敌方单体造成<color=#b4595eFF>86%</color>风属性物理伤害，增加自身攻击30%，持续9秒。
E190: 1004222 | F190: 匿踪 | G190: 隐藏起了一切的踪迹。 | H190: 对敌方单体造成<color=#b4595eFF>86%</color>风属性物理伤害，增加自身攻击30%，持续9秒。 | I190: 对敌方单体造成<color=#b4595eFF>98%</color>风属性物理伤害，增加自身攻击30%，持续9秒。
E191: 1004223 | F191: 匿踪 | G191: 隐藏起了一切的踪迹。 | H191: 对敌方单体造成<color=#b4595eFF>98%</color>风属性物理伤害，增加自身攻击30%，持续9秒。 | I191: 对敌方单体造成<color=#b4595eFF>102%</color>风属性物理伤害，增加自身攻击30%，持续9秒。
E192: 1004224 | F192: 匿踪 | G192: 隐藏起了一切的踪迹。 | H192: 对敌方单体造成<color=#b4595eFF>102%</color>风属性物理伤害，增加自身攻击30%，持续9秒。 | I192: ="" -> 
E193: 1004225 | F193: 匿踪 | G193: 隐藏起了一切的踪迹。 | I193: =I192 -> 
E194: 1004311 | F194: 落英之舞 | G194: 纷飞的花儿，也会绽放光芒。 | H194: 对敌方随机2人造成<color=#b4595eFF>76%</color>水属性物理伤害。 | I194: =H195 -> 对敌方随机2人造成<color=#b4595eFF>82%</color>水属性物理伤害。
E195: 1004312 | F195: 落英之舞 | G195: 纷飞的花儿，也会绽放光芒。 | H195: 对敌方随机2人造成<color=#b4595eFF>82%</color>水属性物理伤害。 | I195: 对敌方随机2人造成<color=#b4595eFF>88%</color>水属性物理伤害。
E196: 1004313 | F196: 落英之舞 | G196: 纷飞的花儿，也会绽放光芒。 | H196: 对敌方随机2人造成<color=#b4595eFF>88%</color>水属性物理伤害。 | I196: 对敌方随机2人造成<color=#b4595eFF>96%</color>水属性物理伤害。
E197: 1004314 | F197: 落英之舞 | G197: 纷飞的花儿，也会绽放光芒。 | H197: 对敌方随机2人造成<color=#b4595eFF>96%</color>水属性物理伤害。 | I197: ="" -> 
E198: 1004315 | F198: 落英之舞 | G198: 纷飞的花儿，也会绽放光芒。 | I198: =I197 -> 
E199: 1004321 | F199: 月舞灵息 | G199: 月光下的身影，那是灵魂在吐息。 | H199: 对敌方单体造成<color=#b4595eFF>64%</color>水属性物理伤害，并造成<color=#4c805eFF>中毒效果</color>，每秒附加15%攻击的额外伤害，持续6秒。 | I199: =H200 -> 对敌方单体造成<color=#b4595eFF>78%</color>水属性物理伤害，并造成<color=#4c805eFF>中毒效果</color>，每秒附加18%攻击的额外伤害，持续6秒。
E200: 1004322 | F200: 月舞灵息 | G200: 月光下的身影，那是灵魂在吐息。 | H200: 对敌方单体造成<color=#b4595eFF>78%</color>水属性物理伤害，并造成<color=#4c805eFF>中毒效果</color>，每秒附加18%攻击的额外伤害，持续6秒。 | I200: 对敌方单体造成<color=#b4595eFF>86%</color>水属性物理伤害，并造成<color=#4c805eFF>中毒效果</color>，每秒附加18%攻击的额外伤害，持续8秒。
E201: 1004323 | F201: 月舞灵息 | G201: 月光下的身影，那是灵魂在吐息。 | H201: 对敌方单体造成<color=#b4595eFF>86%</color>水属性物理伤害，并造成<color=#4c805eFF>中毒效果</color>，每秒附加18%攻击的额外伤害，持续8秒。 | I201: 对敌方单体造成<color=#b4595eFF>104%</color>水属性物理伤害，并造成<color=#4c805eFF>中毒效果</color>，每秒附加25%攻击的额外伤害，持续8秒。
E202: 1004324 | F202: 月舞灵息 | G202: 月光下的身影，那是灵魂在吐息。 | H202: 对敌方单体造成<color=#b4595eFF>104%</color>水属性物理伤害，并造成<color=#4c805eFF>中毒效果</color>，每秒附加25%攻击的额外伤害，持续8秒。 | I202: ="" -> 
... 31 more rows
